Workbook

Sheet Overblik
A1: =A918 -> Retten i Roskilde | B1: =_xlfn.IFS($A$1=$A$902,B902,$A$1=$A$903,B903,$A$1=$A$904,B904,$A$1=$A$905,B905,$A$1=$A$906,B906,$A$1=$A$907,B907,$A$1=$A$908,B908,$A$1=$A$909,B909,$A$1=$A$910,B910,$A$1=$A$911,B911,$A$1=$A$912,B912,$A$1=$A$913,B913,$A$1=$A$914,B914,$A$1=$A$915,B915,$A$1=$A$916,B916,$A$1=$A$917,B917,$A$1=$A$918,B918,$A$1=$A$919,B919,$A$1=$A$920,B920,$A$1=$A$921,B921,$A$1=$A$922,B922,$A$1=$A$923,B923,$A$1=$A$924,B924,$A$1=$A$925,B925) -> 118.7079218 | C1: =_xlfn.IFS($A$1=$A$902,C902,$A$1=$A$903,C903,$A$1=$A$904,C904,$A$1=$A$905,C905,$A$1=$A$906,C906,$A$1=$A$907,C907,$A$1=$A$908,C908,$A$1=$A$909,C909,$A$1=$A$910,C910,$A$1=$A$911,C911,$A$1=$A$912,C912,$A$1=$A$913,C913,$A$1=$A$914,C914,$A$1=$A$915,C915,$A$1=$A$916,C916,$A$1=$A$917,C917,$A$1=$A$918,C918,$A$1=$A$919,C919,$A$1=$A$920,C920,$A$1=$A$921,C921,$A$1=$A$922,C922,$A$1=$A$923,C923,$A$1=$A$924,C924,$A$1=$A$925,C925) -> 113.6459296 | D1: =_xlfn.IFS($A$1=$A$902,D902,$A$1=$A$903,D903,$A$1=$A$904,D904,$A$1=$A$905,D905,$A$1=$A$906,D906,$A$1=$A$907,D907,$A$1=$A$908,D908,$A$1=$A$909,D909,$A$1=$A$910,D910,$A$1=$A$911,D911,$A$1=$A$912,D912,$A$1=$A$913,D913,$A$1=$A$914,D914,$A$1=$A$915,D915,$A$1=$A$916,D916,$A$1=$A$917,D917,$A$1=$A$918,D918,$A$1=$A$919,D919,$A$1=$A$920,D920,$A$1=$A$921,D921,$A$1=$A$922,D922,$A$1=$A$923,D923,$A$1=$A$924,D924,$A$1=$A$925,D925) -> 120.3344471 | E1: 111.461 | F1: =_xlfn.IFS($A$1=$A$902,F902,$A$1=$A$903,F903,$A$1=$A$904,F904,$A$1=$A$905,F905,$A$1=$A$906,F906,$A$1=$A$907,F907,$A$1=$A$908,F908,$A$1=$A$909,F909,$A$1=$A$910,F910,$A$1=$A$911,F911,$A$1=$A$912,F912,$A$1=$A$913,F913,$A$1=$A$914,F914,$A$1=$A$915,F915,$A$1=$A$916,F916,$A$1=$A$917,F917,$A$1=$A$918,F918,$A$1=$A$919,F919,$A$1=$A$920,F920,$A$1=$A$921,F921,$A$1=$A$922,F922,$A$1=$A$923,F923,$A$1=$A$924,F924,$A$1=$A$925,F925) -> 111.3127937 | G1: 111.467 | H1: =_xlfn.IFS($A$1=$A$902,H902,$A$1=$A$903,H903,$A$1=$A$904,H904,$A$1=$A$905,H905,$A$1=$A$906,H906,$A$1=$A$907,H907,$A$1=$A$908,H908,$A$1=$A$909,H909,$A$1=$A$910,H910,$A$1=$A$911,H911,$A$1=$A$912,H912,$A$1=$A$913,H913,$A$1=$A$914,H914,$A$1=$A$915,H915,$A$1=$A$916,H916,$A$1=$A$917,H917,$A$1=$A$918,H918,$A$1=$A$919,H919,$A$1=$A$920,H920,$A$1=$A$921,H921,$A$1=$A$922,H922,$A$1=$A$923,H923,$A$1=$A$924,H924,$A$1=$A$925,H925) -> 0.1533749785 | I1: 0.1349891535 | J1: 145 | K1: 159 | L1: 532.6766467 | M1: 402.0520833 | N1: 60.50785591 | O1: 59.55418394 | P1: 41.51 | Q1: 41.38 | R1: 35.29411765 | S1: 28.57142857 | T1: 0 | U1: 0 | V1: 11.56328699 | W1: 9.679845664 | X1: 8.867312056 | Y1: 4.224425252 | Z1: 61.96581 | AA1: 62.67419 | AB1: 18.59425 | AC1: 18.99181 | AD1: =_xlfn.IFS($A$1=$A$902,AD902,$A$1=$A$903,AD903,$A$1=$A$904,AD904,$A$1=$A$905,AD905,$A$1=$A$906,AD906,$A$1=$A$907,AD907,$A$1=$A$908,AD908,$A$1=$A$909,AD909,$A$1=$A$910,AD910,$A$1=$A$911,AD911,$A$1=$A$912,AD912,$A$1=$A$913,AD913,$A$1=$A$914,AD914,$A$1=$A$915,AD915,$A$1=$A$916,AD916,$A$1=$A$917,AD917,$A$1=$A$918,AD918,$A$1=$A$919,AD919,$A$1=$A$920,AD920,$A$1=$A$921,AD921,$A$1=$A$922,AD922,$A$1=$A$923,AD923,$A$1=$A$924,AD924,$A$1=$A$925,AD925) -> 36.45566 | AE1: 36.56497 | AF1: 34.74419661 | AG1: 34.61195905 | AH1: =AH902 -> 0 | AI1: =AI902 -> 0 | AJ1: 0
A2: =A ->  | B2: =AH1 -> 0
B3: ÅRSNØGLETAL 2017
I4: Evt. sammenligning
B5: =A1 -> Retten i Roskilde | I5: =B35 -> Retten i Aalborg | L5: Datatabeller
D6: 2016 | E6: 2017 | F6: Gnst. BR 2017 | G6: 5. bedste 2017 | I6: =$D$6 -> 2016 | J6: =$E$6 -> 2017 | L6: KLIK PÅ PILENE FOR AT HOPPE TIL DATA:
B7: Samlet produktivitet, retten (indeks) | D7: =B1 -> 118.7079218 | E7: =C1 -> 113.6459296 | F7: 101.8725556 | G7: =LARGE(C902:C925,5) -> 108.2112909 | I7: =IF($B$5=$I$5,"",C35) -> 102.0401416 | J7: =IF($B$5=$I$5,"",D35) -> 100.2049531 | M7: Produktivitet, samlet for retten
B8: Samlet produktivitet, jurister (indeks) | D8: =D1 -> 120.3344471 | E8: =E1 -> 111.461 | F8: 99.52218115 | G8: =LARGE(E902:E925,5) -> 108.38 | I8: =IF($B$5=$I$5,"",E35) -> 100.592683 | J8: =IF($B$5=$I$5,"",F35) -> 97.792 | M8: Produktivitet, jurister
B9: Samlet produktivitet, kontorfunktionærer (indeks) | D9: =F1 -> 111.3127937 | E9: =G1 -> 111.467 | F9: 105.0201529 | G9: =LARGE(G902:G925,5) -> 114.767 | I9: =IF($B$5=$I$5,"",G35) -> 99.20429628 | J9: =IF($B$5=$I$5,"",H35) -> 101.499 | M9: Produktivitet, kontor
B10: Årsværksandel til generel ledelse og administration (pct.) | D10: =H1*100 -> 15.33749785 | E10: =I1*100 -> 13.49891535 | F10: 16.28512618 | I10: =IF($B$5=$I$5,"",I35*100) -> 15.38765506 | J10: =IF($B$5=$I$5,"",J35*100) -> 16.18874542 | M10: Årsværk, ledelse og administration
B11: Gnst. sagsbehandlingstid, domsmandssager (dage) | D11: =J1 -> 145 | E11: =K1 -> 159 | F11: 126.0366475 | G11: 95 | I11: =IF($B$5=$I$5,"",K35) -> 124 | J11: =IF($B$5=$I$5,"",L35) -> 118 | M11: Aktivitet ved retten
B12: Gnst. sagsbehandlingstid, hovedforhandlet alm. civil sag (dage) | D12: =L1 -> 532.6766467 | E12: =M1 -> 402.0520833 | F12: 436.6407947 | G12: 345.7209302 | I12: =IF($B$5=$I$5,"",M35) -> 552.4871795 | J12: =IF($B$5=$I$5,"",N35) -> 416.1111111 | M12: Målopfyldelse, straffesager
B13: Gnst. sagsbehandlingstid, almindelig fogedsag (dage) | D13: =N1 -> 60.50785591 | E13: =O1 -> 59.55418394 | F13: 77.77558883 | G13: 53.88521798 | I13: =IF($B$5=$I$5,"",O35) -> 65.18546196 | J13: =IF($B$5=$I$5,"",P35) -> 56.32976967 | M13: Målopfyldelse, civile sager
B14: Gnst. sagsbehandlingstid, boudlæg (dage) | D14: =P1 -> 41.51 | E14: =Q1 -> 41.38 | F14: 47.08044387 | G14: 40.17 | I14: =IF($B$5=$I$5,"",Q35) -> 44.55 | J14: =IF($B$5=$I$5,"",R35) -> 41.52 | M14: Målopfyldelse, fogedsager
B15: Målopfyldelse, voldssager 37-dages frist (procent) | D15: =R1 -> 35.29411765 | E15: =S1 -> 28.57142857 | F15: 40.17521902 | G15: 55 | I15: =IF($B$5=$I$5,"",S35) -> 50 | J15: =IF($B$5=$I$5,"",T35) -> 29.16666667 | M15: Målopfyldelse, skiftesager
B16: Målopfyldelse, voldtægtssager 37-dages frist (procent) | D16: =IF(T1=999," -",T1) -> 0 | E16: =IF(U1=999," -",U1) -> 0 | F16: 29.03225806 | G16: 45.45454545 | I16: =IF($B$5=$I$5,"",U35) -> 50 | J16: =IF($B$5=$I$5,"",V35) -> 0 | M16: Gnst. Sagsbehandlingstid, straffesager
B17: Gnst. sygefravær pr. medarbejder (dage pr. år) | D17: =V1 -> 11.56328699 | E17: =W1 -> 9.679845664 | F17: 9.40737053 | G17: 5.333551361 | I17: =IF($B$5=$I$5,"",W35) -> 5.752183986 | J17: =IF($B$5=$I$5,"",X35) -> 6.76901361 | M17: Gnst. Sagsbehandlingstid, civile sager
B18: Personaleomsætningsprocent (procent) | D18: =X1 -> 8.867312056 | E18: =Y1 -> 4.224425252 | F18: 9.280484834 | I18: =IF($B$5=$I$5,"",Y35) -> 12.82245102 | J18: =IF($B$5=$I$5,"",Z35) -> 11.8338101 | M18: Gnst. Sagsbehandlingstid, fogedsager
B19: Samlet årsværksforbrug, retten (årsværk) | D19: =Z1 -> 61.96581 | E19: =AA1 -> 62.67419 | F19: 58.51644625 | I19: =IF($B$5=$I$5,"",AA35) -> 70.41211 | J19: =IF($B$5=$I$5,"",AB35) -> 70.80056 | M19: Gnst. Sagsbehandlingstid, skiftesager
B20: Samlet årsværksforbrug, jurister (årsværk) | D20: =AB1 -> 18.59425 | E20: =AC1 -> 18.99181 | F20: 17.18371667 | I20: =IF($B$5=$I$5,"",AC35) -> 21.04804 | J20: =IF($B$5=$I$5,"",AD35) -> 20.04874 | M20: HR-nøgletal
B21: Samlet årsværksforbrug, kontorfunktionærer (årsværk) | D21: =AD1 -> 36.45566 | E21: =AE1 -> 36.56497 | F21: 32.81678792 | I21: =IF($B$5=$I$5,"",AE35) -> 40.85833 | J21: =IF($B$5=$I$5,"",AF35) -> 40.77501 | M21: Årsværksforbrug, personalekategorier
B22: Samlet lønsumsforbrug (mio. kr.) | D22: =AF1 -> 34.74419661 | E22: =AG1 -> 34.61195905 | F22: 31.375 | I22: =IF($B$5=$I$5,"",AG35) -> 36.32340593 | J22: =IF($B$5=$I$5,"",AH35) -> 36.85092626 | M22: Årsværksforbrug, sagsområder
B24: Noter:
B25: 1) Ved beregningen af indeks for produktivitet samlet for retten, for jurister og kontor er indeks 100 lig gennemsnittet ved byretterne i 2012. Der er sket en genberegning af indeks, da vægten for civile sager som tidligere nævnt er kvalitetssikret.
B27: 2) Årsværksandel til generel ledelse og administration er samlet for retten og inkluderer alle personalegrupper.
B28: 3) Den gennemsnitlige sagsbehandlingstid for en hovedforhandlet almindelig civil sag inkluderer sagstypen almindelige sager. Boligretssager og småsager indgår ikke.
B29: 4) Ansatte under socialt kapitel indgår ikke i beregningen af det gennemsnitlige sygefravær pr. medarbejder (årsværk).
B30: 5) Lønsumsforbruget inkluderer egentlig løn, over- og merarbejde, stævningsmænd, refusioner og pensionsbidrag.
B32: KLIK FOR AT AKTIVERE SAMMENLIGNING:
B34: =A926 -> 0 | C34: =B925 -> 62.41298617 | D34: 60.31573545 | E34: 62.96127296 | F34: 62.171 | G34: 71.82940512 | H34: 66.594 | I34: 0.30252568 | J34: 0.3694017284 | K34: 49 | L34: 52 | M34: 298 | N34: 274.125 | O34: 33.87987271 | P34: 31.61662631 | Q34: 22.55 | R34: 27.79 | S34: 66.66666667 | T34: 100 | U34: - | V34: - | W34: 5.995101458 | X34: 3.273421734 | Y34: 0 | Z34: 11.35838021 | AA34: 13.56407 | AB34: 14.0448 | AC34: 3.34178 | AD34: 3.23784 | AE34: 6.67167 | AF34: 7.08914 | AG34: 7.50432764
B35: =A903 -> Retten i Aalborg | C35: =B903 -> 102.0401416 | D35: 100.2049531 | E35: 100.592683 | F35: 97.792 | G35: 99.20429628 | H35: 101.499 | I35: 0.1538765506 | J35: 0.1618874542 | K35: 124 | L35: 118 | M35: 552.4871795 | N35: 416.1111111 | O35: 65.18546196 | P35: 56.32976967 | Q35: 44.55 | R35: 41.52 | S35: 50 | T35: 29.16666667 | U35: 50 | V35: 0 | W35: 5.752183986 | X35: 6.76901361 | Y35: 12.82245102 | Z35: 11.8338101 | AA35: 70.41211 | AB35: 70.80056 | AC35: 21.04804 | AD35: 20.04874 | AE35: 40.85833 | AF35: 40.77501 | AG35: 36.32340593 | AH35: 36.85092626 | AI35: 0
B900: Samlet produktivitet, retten | D900: Samlet produktivitet, jurister | F900: Samlet produktivitet, kontor | H900: ÅRVK ledelse og adm. (andel) | J900: Sagstider domsmandssager | L900: Sagstider hfh. alm. Civil | N900: Sagstid alm. fogedsag | P900: Sagstider boudlæg | R900: Målopfyldelse vold | T900: Målopfyldelse voldtægt | V900: Sygefravær | X900: Personaleomsætning | Z900: Årsværk retten | AB900: Årsværk jurist | AD900: Årsværk kontor | AF900: Samlet lønsum
A901: Ret | B901: =$D$6 -> 2016 | C901: =$E$6 -> 2017 | D901: =$D$6 -> 2016 | E901: =$E$6 -> 2017 | F901: =$D$6 -> 2016 | G901: =$E$6 -> 2017 | H901: =$D$6 -> 2016 | I901: =$E$6 -> 2017 | J901: =$D$6 -> 2016 | K901: =$E$6 -> 2017 | L901: =$D$6 -> 2016 | M901: =$E$6 -> 2017 | N901: =$D$6 -> 2016 | O901: =$E$6 -> 2017 | P901: =$D$6 -> 2016 | Q901: =$E$6 -> 2017 | R901: =$D$6 -> 2016 | S901: =$E$6 -> 2017 | T901: =$D$6 -> 2016 | U901: =$E$6 -> 2017 | V901: =$D$6 -> 2016 | W901: =$E$6 -> 2017 | X901: =$D$6 -> 2016 | Y901: =$E$6 -> 2017 | Z901: =$D$6 -> 2016 | AA901: =$E$6 -> 2017 | AB901: =$D$6 -> 2016 | AC901: =$E$6 -> 2017 | AD901: =$D$6 -> 2016 | AE901: =$E$6 -> 2017 | AF901: =$D$6 -> 2016 | AG901: =$E$6 -> 2017
A902: Retten i Hjørring | B902: 100.7666106 | C902: 102.3501558 | D902: 101.8581145 | E902: 108.38 | F902: 100.5558502 | G902: 98.993 | H902: 0.1407695713 | I902: 0.1309276329 | J902: 107 | K902: 101 | L902: 491.1612903 | M902: 340.4950495 | N902: 64.53514563 | O902: 55.54402808 | P902: 51.71 | Q902: 53.06 | R902: 68.29268293 | S902: 34.61538462 | T902: 35 | U902: 20 | V902: 7.42811166 | W902: 5.046419979 | X902: 9.614683161 | Y902: 2.010494068 | Z902: 50.0274 | AA902: 48.59899 | AB902: 13.09029 | AC902: 12.0152 | AD902: 28.01293 | AE902: 28.8538 | AF902: 23.73664065 | AG902: 23.62848272
A903: Retten i Aalborg | B903: 102.0401416 | C903: 100.2049531 | D903: 100.592683 | E903: 97.792 | F903: 99.20429628 | G903: 101.499 | H903: 0.1538765506 | I903: 0.1618874542 | J903: 124 | K903: 118 | L903: 552.4871795 | M903: 416.1111111 | N903: 65.18546196 | O903: 56.32976967 | P903: 44.55 | Q903: 41.52 | R903: 50 | S903: 29.16666667 | T903: 50 | U903: 0 | V903: 5.752183986 | W903: 6.76901361 | X903: 12.82245102 | Y903: 11.8338101 | Z903: 70.41211 | AA903: 70.80056 | AB903: 21.04804 | AC903: 20.04874 | AD903: 40.85833 | AE903: 40.77501 | AF903: 36.32340593 | AG903: 36.85092626
A904: Retten i Randers | B904: 97.72230797 | C904: 97.57627318 | D904: 89.82215475 | E904: 94.751 | F904: 114.5475658 | G904: 109.378 | H904: 0.1837404473 | I904: 0.1993317086 | J904: 133 | K904: 127 | L904: 477.2135922 | M904: 468.5813953 | N904: 47.4419418 | O904: 69.43215259 | P904: 45.94 | Q904: 48.66 | R904: 37.5 | S904: 42.85714286 | T904: 33.33333333 | U904: 33.33333333 | V904: 8.634346523 | W904: 3.939503049 | X904: 10.34776398 | Y904: 3.782834789 | Z904: 47.81164 | AA904: 46.18983 | AB904: 14.09916 | AC904: 12.6618 | AD904: 23.69363 | AE904: 23.96233 | AF904: 24.83670107 | AG904: 23.9664546
A905: Retten i Århus | B905: 94.17890149 | C905: 94.52024098 | D905: 89.92279501 | E905: 92.282 | F905: 100.7600439 | G905: 96.562 | H905: 0.1541494376 | I905: 0.1313505977 | J905: 172 | K905: 143 | L905: 490.6065574 | M905: 446.1372549 | N905: 76.49530957 | O905: 119.6671426 | P905: 68.28 | Q905: 65.33 | R905: 40.54054054 | S905: 32.43243243 | T905: 0 | U905: 23.07692308 | V905: 7.978979748 | W905: 13.80442757 | X905: 12.21683291 | Y905: 15.84281489 | Z905: 76.92565 | AA905: 77.28388 | AB905: 24.42019 | AC905: 23.41791 | AD905: 41.19717 | AE905: 44.89386 | AF905: 40.85150004 | AG905: 42.09587755
A906: Retten i Viborg | B906: 104.9549343 | C906: 101.3301677 | D906: 101.0458473 | E906: 94.035 | F906: 113.3188851 | G906: 114.767 | H906: 0.1652702733 | I906: 0.1507946121 | J906: 113 | K906: 130 | L906: 520.3565217 | M906: 410.9880952 | N906: 54.37966833 | O906: 64.63577023 | P906: 41.15 | Q906: 44.11 | R906: 37.5 | S906: 52.63157895 | T906: 0 | U906: 42.85714286 | V906: 10.69045596 | W906: 13.87929991 | X906: 14.54596076 | Y906: 7.677776741 | Z906: 47.90858 | AA906: 47.71591 | AB906: 13.99976 | AC906: 13.99941 | AD906: 24.30079 | AE906: 24.05859 | AF906: 24.07442473 | AG906: 24.04642911
A907: Retten i Holstebro | B907: 93.05673734 | C907: 108.2112909 | D907: 86.07588518 | E907: 115.109 | F907: 105.1768084 | G907: 106.88 | H907: 0.2213445941 | I907: 0.2112448284 | J907: 69 | K907: 79 | L907: 419.8412698 | M907: 364.4 | N907: 38.45575221 | O907: 39.40611054 | P907: 50.92 | Q907: 54.34 | R907: 56 | S907: 53.33333333 | T907: 50 | U907: 18.18181818 | V907: 8.443035636 | W907: 17.46607961 | X907: 15.80137134 | Y907: 2.784766948 | Z907: 34.44871 | AA907: 32.81738 | AB907: 10.09303 | AC907: 7.80251 | AD907: 17.99253 | AE907: 18.67454 | AF907: 18.47919505 | AG907: 17.3063266
A908: Retten i Herning | B908: 104.9324679 | C908: 103.081567 | D908: 98.27365151 | E908: 96.829 | F908: 112.3184893 | G908: 111.171 | H908: 0.1412712832 | I908: 0.1271947787 | J908: 106 | K908: 93 | L908: 499.7058824 | M908: 366.4532374 | N908: 57.83672357 | O908: 53.88521798 | P908: 59.6 | Q908: 61.14 | R908: 42.85714286 | S908: 36.36363636 | T908: 0 | U908: 0 | V908: 8.784040007 | W908: 5.333551361 | X908: 12.52412276 | Y908: 7.422151788 | Z908: 35.45019 | AA908: 37.21286 | AB908: 10.8528 | AC908: 11.25485 | AD908: 19.73039 | AE908: 20.28622 | AF908: 18.19917992 | AG908: 18.99683136
A909: Retten i Horsens | B909: 96.34604569 | C909: 96.06768543 | D909: 89.19656434 | E909: 87.989 | F909: 114.7481586 | G909: 118.965 | H909: 0.1796089045 | I909: 0.1704603932 | J909: 143 | K909: 112 | L909: 452.3401361 | M909: 605.1505376 | N909: 60.74822372 | O909: 62.37785688 | P909: 52.64 | Q909: 49.13 | R909: 20 | S909: 27.02702703 | T909: 60 | U909: 75 | V909: 13.02269107 | W909: 16.0847127 | X909: 6.447852629 | Y909: 13.01072294 | Z909: 42.66576 | AA909: 43.93011 | AB909: 13.10784 | AC909: 12.80383 | AD909: 20.12447 | AE909: 18.51828 | AF909: 22.92565475 | AG909: 22.19232827
A910: Retten i Kolding | B910: 108.1864949 | C910: 110.2163317 | D910: 104.7398676 | E910: 108.33 | F910: 109.8548711 | G910: 110.954 | H910: 0.1423580005 | I910: 0.1393581009 | J910: 121 | K910: 129 | L910: 453.248227 | M910: 386.1547619 | N910: 44.44932058 | O910: 50.80989608 | P910: 34.41 | Q910: 35.62 | R910: 53.84615385 | S910: 64.1025641 | T910: - | U910: 100 | V910: 8.541325877 | W910: 6.743828937 | X910: 8.021751175 | Y910: 7.311036601 | Z910: 65.17976 | AA910: 64.92623 | AB910: 19.00959 | AC910: 18.68477 | AD910: 36.55367 | AE910: 36.50969 | AF910: 33.52274704 | AG910: 33.79555173
A911: Retten i Esbjerg | B911: 99.21631248 | C911: 93.80590167 | D911: 90.05202775 | E911: 88.276 | F911: 111.3423652 | G911: 101.204 | H911: 0.141765627 | I911: 0.1311366779 | J911: 141 | K911: 147 | L911: 548.9242424 | M911: 426.961039 | N911: 52.5408805 | O911: 48.83268127 | P911: 42.24 | Q911: 54.39 | R911: 60.71428571 | S911: 59.45945946 | T911: 75 | U911: 0 | V911: 7.828831644 | W911: 12.14565349 | X911: 6.157762877 | Y911: 8.613865387 | Z911: 45.84075 | AA911: 47.07367 | AB911: 13.98767 | AC911: 13.98469 | AD911: 24.25812 | AE911: 26.00158 | AF911: 22.92695405 | AG911: 23.83790805
A912: Retten i Sønderborg | B912: 106.9929863 | C912: 105.8769155 | D912: 102.0933223 | E912: 99.006 | F912: 115.1153884 | G912: 117.455 | H912: 0.1712239433 | I912: 0.1697879508 | J912: 88 | K912: 116 | L912: 469.2857143 | M912: 515.7769231 | N912: 69.92268261 | O912: 69.47039732 | P912: 46.23 | Q912: 54.66 | R912: 26.66666667 | S912: 25.53191489 | T912: 0 | U912: 44.44444444 | V912: 10.25191296 | W912: 16.85459244 | X912: 5.413876114 | Y912: 11.04904839 | Z912: 52.40571 | AA912: 52.97334 | AB912: 15.79957 | AC912: 16.56155 | AD912: 29.77665 | AE912: 29.24831 | AF912: 30.17495846 | AG912: 30.5533366
A913: Retten i Odense | B913: 101.1456782 | C913: 109.3484703 | D913: 94.6131613 | E913: 107.227 | F913: 108.6484782 | G913: 112.246 | H913: 0.1427970106 | I913: 0.1308949304 | J913: 100 | K913: 101 | L913: 489.2846715 | M913: 305.741784 | N913: 84.49412313 | O913: 85.39605376 | P913: 38.28 | Q913: 45.82 | R913: 31.11111111 | S913: 34.61538462 | T913: 23.52941176 | U913: 0 | V913: 7.91835029 | W913: 7.514927499 | X913: 9.339614332 | Y913: 10.50482438 | Z913: 71.18115 | AA913: 68.86796 | AB913: 22.41219 | AC913: 20.31509 | AD913: 40.05602 | AE913: 40.75796 | AF913: 37.72660619 | AG913: 36.03915131
A914: Retten i Svendborg | B914: 96.04366106 | C914: 105.3221331 | D914: 95.96751974 | E914: 102.165 | F914: 100.2980697 | G914: 114.872 | H914: 0.2185807879 | I914: 0.1903312498 | J914: 135 | K914: 170 | L914: 479.5522388 | M914: 352.6470588 | N914: 86.08307045 | O914: 104.4154221 | P914: 51.7 | Q914: 51.29 | R914: 35.29411765 | S914: 41.17647059 | T914: 9.090909091 | U914: 50 | V914: 7.740658599 | W914: 6.668163574 | X914: 12.63463817 | Y914: 11.5170435 | Z914: 35.67732 | AA914: 35.01362 | AB914: 9.81133 | AC914: 10.03782 | AD914: 20.09274 | AE914: 19.02911 | AF914: 17.96306117 | AG914: 18.59404624
A915: Retten i Nykøbing F. | B915: 102.5324871 | C915: 104.8087614 | D915: 103.4003237 | E915: 109.41 | F915: 103.2797536 | G915: 101.948 | H915: 0.174611391 | I915: 0.1811860244 | J915: 108 | K915: 92 | L915: 391.3584906 | M915: 345.7209302 | N915: 66.31437655 | O915: 74.16159696 | P915: 36.59 | Q915: 35.21 | R915: 46.875 | S915: 27.02702703 | T915: 50 | U915: 45.45454545 | V915: 5.917867437 | W915: 4.636120841 | X915: 2.038092413 | Y915: 8.51199942 | Z915: 46.42736 | AA915: 46.88106 | AB915: 13.56433 | AC915: 12.63913 | AD915: 28.51952 | AE915: 29.83541 | AF915: 24.71422188 | AG915: 24.65441364
A916: Retten i Næstved | B916: 104.1711982 | C916: 119.3033442 | D916: 98.11874151 | E916: 124.543 | F916: 107.8669948 | G916: 114.601 | H916: 0.1966801074 | I916: 0.1987183827 | J916: 122 | K916: 132 | L916: 492.1463415 | M916: 364.6089109 | N916: 90.70906404 | O916: 106.1116657 | P916: 48.33 | Q916: 53.85 | R916: 57.14285714 | S916: 52.17391304 | T916: 45.45454545 | U916: 40 | V916: 13.46418958 | W916: 9.149256557 | X916: 6.674636951 | Y916: 23.3910835 | Z916: 59.26503 | AA916: 59.13184 | AB916: 17.20789 | AC916: 14.97519 | AD916: 32.20663 | AE916: 34.13728 | AF916: 28.72501881 | AG916: 28.7374546
A917: Retten i Holbæk | B917: 92.61511522 | C917: 93.92639715 | D917: 90.66960469 | E917: 89.265 | F917: 95.0595337 | G917: 95.714 | H917: 0.1715712256 | I917: 0.1519957668 | J917: 84 | K917: 95 | L917: 464.6944444 | M917: 280.609375 | N917: 59.35607235 | O917: 55.72065165 | P917: 39.48 | Q917: 49.88 | R917: 27.77777778 | S917: 50 | T917: 0 | U917: 0 | V917: 6.445137148 | W917: 8.902072309 | X917: 6.290714062 | Y917: 10.1093667 | Z917: 46.19257 | AA917: 43.8935 | AB917: 12.5207 | AC917: 12.33761 | AD917: 25.33596 | AE917: 25.08114 | AF917: 22.67363671 | AG917: 21.96599279
A918: Retten i Roskilde | B918: 118.7079218 | C918: 113.6459296 | D918: 120.3344471 | E918: 111.461 | F918: 111.3127937 | G918: 111.467 | H918: 0.1533749785 | I918: 0.1349891535 | J918: 145 | K918: 159 | L918: 532.6766467 | M918: 402.0520833 | N918: 60.50785591 | O918: 59.55418394 | P918: 41.51 | Q918: 41.38 | R918: 35.29411765 | S918: 28.57142857 | T918: 0 | U918: 0 | V918: 11.56328699 | W918: 9.679845664 | X918: 8.867312056 | Y918: 4.224425252 | Z918: 61.96581 | AA918: 62.67419 | AB918: 18.59425 | AC918: 18.99181 | AD918: 36.45566 | AE918: 36.56497 | AF918: 34.74419661 | AG918: 34.61195905
A919: Retten i Hillerød | B919: 103.8677381 | C919: 102.7593508 | D919: 101.7466393 | E919: 96.816 | F919: 115.5215668 | G919: 122.558 | H919: 0.1756333422 | I919: 0.1792496578 | J919: 111 | K919: 141 | L919: 452.7142857 | M919: 476.5819672 | N919: 62.57556071 | O919: 79.48039826 | P919: 43.87 | Q919: 43.81 | R919: 52.63157895 | S919: 33.33333333 | T919: 0 | U919: 0 | V919: 11.70379962 | W919: 6.369150131 | X919: 7.981119575 | Y919: 7.978419258 | Z919: 47.63132 | AA919: 46.44969 | AB919: 13.65091 | AC919: 14.08489 | AD919: 23.01597 | AE919: 21.79332 | AF919: 24.26868614 | AG919: 24.11553388
A920: Retten i Helsingør | B920: 98.02279549 | C920: 97.48044275 | D920: 90.70887356 | E920: 90.196 | F920: 104.9829353 | G920: 103.463 | H920: 0.1704134393 | I920: 0.1672006624 | J920: 232 | K920: 135 | L920: 540.5882353 | M920: 436.07 | N920: 74.9231835 | O920: 94.51259237 | P920: 44.48 | Q920: 53.88 | R920: 30 | S920: 55 | T920: 16.66666667 | U920: 40 | V920: 9.210220221 | W920: 10.39178217 | X920: 10.01239211 | Y920: 6.226884515 | Z920: 46.77993 | AA920: 43.70089 | AB920: 13.55784 | AC920: 12.97882 | AD920: 23.56972 | AE920: 22.99761 | AF920: 23.48838307 | AG920: 22.78695388
A921: Retten i Lyngby | B921: 110.6822239 | C921: 104.1186623 | D921: 104.6807489 | E921: 98.652 | F921: 116.877276 | G921: 108.93 | H921: 0.1760621233 | I921: 0.1717978066 | J921: 146 | K921: 117 | L921: 431.483871 | M921: 445.9375 | N921: 49.91486968 | O921: 57.29748707 | P921: 47.64 | Q921: 37.25 | R921: 75 | S921: 76.92307692 | T921: 50 | U921: 100 | V921: 9.927967883 | W921: 9.655802825 | X921: 8.96421104 | Y921: 10.89434771 | Z921: 52.95963 | AA921: 54.1861 | AB921: 17.7778 | AC921: 17.84505 | AD921: 28.88693 | AE921: 30.00472 | AF921: 28.65437696 | AG921: 29.41661831
A922: Retten i Glostrup | B922: 102.7652194 | C922: 99.49248491 | D922: 98.43980794 | E922: 93.734 | F922: 104.4633785 | G922: 103.48 | H922: 0.1445192868 | I922: 0.1562956998 | J922: 147 | K922: 135 | L922: 549.8122449 | M922: 563.9087452 | N922: 87.73820572 | O922: 116.5858821 | P922: 41.87 | Q922: 40.17 | R922: 38.88888889 | S922: 27.5 | T922: 12.5 | U922: 16.66666667 | V922: 10.72348178 | W922: 10.93379319 | X922: 10.13389133 | Y922: 10.66483288 | Z922: 97.68429 | AA922: 97.06123 | AB922: 30.66644 | AC922: 29.82185 | AD922: 56.97563 | AE922: 56.2308 | AF922: 52.04283591 | AG922: 51.70124728
A923: Retten på Frederiksberg | B923: 100.1675279 | C923: 101.2390041 | D923: 98.25900066 | E923: 98.479 | F923: 102.9435532 | G923: 107.917 | H923: 0.165116252 | I923: 0.1485984445 | J923: 145 | K923: 149 | L923: 522.59375 | M923: 660.3421053 | N923: 81.82170137 | O923: 102.9720144 | P923: 49.19 | Q923: 50.24 | R923: 46.875 | S923: 22.5 | T923: 33.33333333 | U923: 45.45454545 | V923: 19.81958458 | W923: 14.87865078 | X923: 10.07988466 | Y923: 8.791300009 | Z923: 78.01156 | AA923: 76.78293 | AB923: 23.17093 | AC923: 22.92363 | AD923: 43.03292 | AE923: 40.91034 | AF923: 44.50388388 | AG923: 44.67166856
A924: Københavns Byret | B924: 98.44655391 | C924: 97.66119994 | D924: 100.2374104 | E924: 99.432 | F924: 92.84226832 | G924: 91.983 | H924: 0.2316527362 | I924: 0.1782861169 | J924: 143 | K924: 128 | L924: 501.9934354 | M924: 488.9716312 | N924: 88.75109825 | O924: 88.04387145 | P924: 33.82 | Q924: 42.31 | R924: 32.43243243 | S924: 37.03703704 | T924: 20 | U924: 25 | V924: 12.13076452 | W924: 8.885792531 | X924: 8.467714351 | Y924: 7.219406038 | Z924: 181.57802 | AA924: 186.18414 | AB924: 57.36273 | AC924: 58.98521 | AD924: 107.80327 | AE924: 111.3889 | AF924: 106.718567 | AG924: 109.6134618
A925: Retten på Bornholm | B925: 62.41298617 | C925: 60.31573545 | D925: 62.96127296 | E925: 62.171 | F925: 71.82940512 | G925: 66.594 | H925: 0.30252568 | I925: 0.3694017284 | J925: 49 | K925: 52 | L925: 298 | M925: 274.125 | N925: 33.87987271 | O925: 31.61662631 | P925: 22.55 | Q925: 27.79 | R925: 66.66666667 | S925: 100 | T925: - | U925: - | V925: 5.995101458 | W925: 3.273421734 | X925: 0 | Y925: 11.35838021 | Z925: 13.56407 | AA925: 14.0448 | AB925: 3.34178 | AC925: 3.23784 | AD925: 6.67167 | AE925: 7.08914 | AF925: 7.50432764 | AG925: 8.75901086

Sheet Produkt.SAML.
B2: PRODUKTIVITETSINDEKS SAMLET FOR RETTEN
D4: Samlet | F4: Retssager | H4: Straffesager | J4: Civile sager | L4: Fogedsager | N4: Skiftesager
D5: =Overblik!$D$6 -> 2016 | E5: =Overblik!$E$6 -> 2017 | F5: =Overblik!$D$6 -> 2016 | G5: =Overblik!$E$6 -> 2017 | H5: =Overblik!$D$6 -> 2016 | I5: =Overblik!$E$6 -> 2017 | J5: =Overblik!$D$6 -> 2016 | K5: =Overblik!$E$6 -> 2017 | L5: =Overblik!$D$6 -> 2016 | M5: =Overblik!$E$6 -> 2017 | N5: =Overblik!$D$6 -> 2016 | O5: =Overblik!$E$6 -> 2017
C6: 5. BEDSTE RET | D6: 104.9549343 | E6: =LARGE(E9:E32,5) -> 108.2112909 | F6: 103.4123195 | G6: =LARGE(G9:G32,5) -> 103.2987214 | H6: 106.8127472 | I6: =LARGE(I9:I32,5) -> 100.8409392 | J6: 107.7618302 | K6: =LARGE(K9:K32,5) -> 112.1092609 | L6: 105.474623 | M6: =LARGE(M9:M32,5) -> 118.7201552 | N6: 132.3917243 | O6: =LARGE(O9:O32,5) -> 135.7425492
C7: SAMLET BYRETTERNE | D7: 101.3250951 | E7: 101.8725556 | F7: 100.0545358 | G7: 98.2143479 | H7: 98.30995849 | I7: 94.5680084 | J7: 101.9728009 | K7: 102.7604907 | L7: 97.41724134 | M7: 105.9614104 | N7: 112.8161338 | O7: 114.4969262
B8: EID | C8: Ret
B9: 901 | C9: Retten i Hjørring | D9: 100.7666106 | E9: 102.3501558 | F9: 94.68711695 | G9: 89.72551568 | H9: 86.45533924 | I9: 80.54646306 | J9: 102.8098446 | K9: 99.86071644 | L9: 100.2049454 | M9: 115.6929616 | N9: 125.8075163 | O9: 138.6094189
B10: 902 | C10: Retten i Aalborg | D10: 102.0401416 | E10: 100.2049531 | F10: 101.9208673 | G10: 96.36421067 | H10: 98.52032169 | I10: 98.42596363 | J10: 105.3458254 | K10: 94.22485265 | L10: 88.71889368 | M10: 103.0704531 | N10: 120.9234436 | O10: 111.6556714
B11: 903 | C11: Retten i Randers | D11: 97.72230797 | E11: 97.57627318 | F11: 85.99601389 | G11: 85.49077048 | H11: 85.2648702 | I11: 88.57295091 | J11: 86.78656549 | K11: 82.59736371 | L11: 115.2670536 | M11: 111.946327 | N11: 126.2838206 | O11: 132.0144646
B12: 904 | C12: Retten i Århus | D12: 94.17890149 | E12: 94.52024098 | F12: 87.06175407 | G12: 87.40501283 | H12: 80.52919021 | I12: 80.21431293 | J12: 95.28378499 | K12: 99.90368719 | L12: 96.06101291 | M12: 107.3861992 | N12: 127.0925678 | O12: 113.4011608
B13: 905 | C13: Retten i Viborg | D13: 104.9549343 | E13: 101.3301677 | F13: 102.4137192 | G13: 95.82119337 | H13: 98.97674663 | I13: 98.35182262 | J13: 105.6058645 | K13: 93.76048554 | L13: 84.35046497 | M13: 92.32467429 | N13: 156.6031784 | O13: 139.8731234
B14: 906 | C14: Retten i Holstebro | D14: 93.05673734 | E14: 108.2112909 | F14: 88.96250561 | G14: 97.24872598 | H14: 91.54451813 | I14: 95.16200163 | J14: 85.67221674 | K14: 99.62192812 | L14: 108.3806809 | M14: 122.1553283 | N14: 95.26751663 | O14: 135.7425492
B15: 907 | C15: Retten i Herning | D15: 104.9324679 | E15: 103.081567 | F15: 103.2294331 | G15: 103.2344192 | H15: 102.9971947 | I15: 100.8409392 | J15: 103.4235923 | K15: 106.0076202 | L15: 102.0849881 | M15: 99.23018532 | N15: 117.4190507 | O15: 110.0449873
B16: 908 | C16: Retten i Horsens | D16: 96.34604569 | E16: 96.06768543 | F16: 95.97606769 | G16: 100.469381 | H16: 107.2016325 | I16: 88.79901334 | J16: 87.53420724 | K16: 111.7488478 | L16: 90.28685419 | M16: 82.45876106 | N16: 108.9542727 | O16: 100.4416175
B17: 909 | C17: Retten i Kolding | D17: 108.1864949 | E17: 110.2163317 | F17: 102.6897662 | G17: 103.2987214 | H17: 105.924723 | I17: 99.58044849 | J17: 99.03892022 | K17: 107.6282047 | L17: 112.3082637 | M17: 120.5805045 | N17: 132.3917243 | O17: 137.0896629
B18: 910 | C18: Retten i Esbjerg | D18: 99.21631248 | E18: 93.80590167 | F18: 92.4999739 | G18: 87.41782327 | H18: 84.23351001 | I18: 81.12971675 | J18: 107.2066238 | K18: 99.15370043 | L18: 97.3259645 | M18: 98.79620093 | N18: 135.7661819 | O18: 116.6617158
B19: 911 | C19: Retten i Sønderborg | D19: 106.9929863 | E19: 105.8769155 | F19: 102.6282472 | G19: 99.10843877 | H19: 123.2306167 | I19: 112.1232184 | J19: 79.39502043 | K19: 82.3160523 | L19: 108.004487 | M19: 118.7201552 | N19: 129.9129653 | O19: 127.0897545
B20: 912 | C20: Retten i Odense | D20: 101.1456782 | E20: 109.3484703 | F20: 103.1372855 | G20: 105.0849843 | H20: 106.522133 | I20: 95.1821268 | J20: 97.98270492 | K20: 120.7012904 | L20: 98.31198705 | M20: 126.312511 | N20: 98.33414925 | O20: 112.3653845
B21: 913 | C21: Retten i Svendborg | D21: 96.04366106 | E21: 105.3221331 | F21: 90.17034952 | G21: 92.42906514 | H21: 79.18912704 | I21: 80.01263356 | J21: 105.4764511 | K21: 113.7828307 | L21: 88.25627975 | M21: 105.4080959 | N21: 130.5157987 | O21: 160.9643934
B22: 914 | C22: Retten i Nykøbing F. | D22: 102.5324871 | E22: 104.8087614 | F22: 103.8229484 | G22: 101.0780191 | H22: 101.0818442 | I22: 94.39126335 | J22: 107.7618302 | K22: 112.1092609 | L22: 97.36931047 | M22: 109.4151105 | N22: 107.180503 | O22: 114.4357558
B23: 915 | C23: Retten i Næstved | D23: 104.1711982 | E23: 119.3033442 | F23: 103.4123195 | G23: 119.4419677 | H23: 97.7447084 | I23: 114.2586875 | J23: 110.8752603 | K23: 126.4980824 | L23: 97.70087352 | M23: 115.8929993 | N23: 116.8884319 | O23: 124.7335327
B24: 916 | C24: Retten i Holbæk | D24: 92.61511522 | E24: 93.92639715 | F24: 89.23892494 | G24: 88.9739072 | H24: 76.22660339 | I24: 77.48123223 | J24: 105.0765113 | K24: 102.1197314 | L24: 89.40554795 | M24: 95.7294427 | N24: 111.8653091 | O24: 110.8698545
B25: 917 | C25: Retten i Roskilde | D25: 118.7079218 | E25: 113.6459296 | F25: 116.676187 | G25: 107.6115951 | H25: 95.75939915 | I25: 97.23286953 | J25: 141.0657799 | K25: 119.9129299 | L25: 100.552608 | M25: 118.0781534 | N25: 156.0218767 | O25: 134.2611806
B26: 918 | C26: Retten i Hillerød | D26: 103.8677381 | E26: 102.7593508 | F26: 103.2346839 | G26: 96.43743641 | H26: 106.8127472 | I26: 91.17652533 | J26: 98.93587296 | K26: 103.3644964 | L26: 98.31553717 | M26: 119.444133 | N26: 117.9669524 | O26: 117.0824173
B27: 919 | C27: Retten i Helsingør | D27: 98.02279549 | E27: 97.48044275 | F27: 89.85539134 | G27: 92.59632887 | H27: 86.7657956 | I27: 85.77419099 | J27: 92.83091558 | K27: 99.56102073 | L27: 94.45654749 | M27: 88.09365275 | N27: 142.184963 | O27: 131.0014749
B28: 920 | C28: Retten i Lyngby | D28: 110.6822239 | E28: 104.1186623 | F28: 118.8896137 | G28: 106.9737941 | H28: 162.4904882 | I28: 160.3456055 | J28: 90.54007617 | K28: 80.6825469 | L28: 105.2872264 | M28: 111.6644331 | N28: 76.27151318 | O28: 79.17212577
B29: 921 | C29: Retten i Glostrup | D29: 102.7652194 | E29: 99.49248491 | F29: 100.9426893 | G29: 97.09609047 | H29: 94.3825675 | I29: 89.00937361 | J29: 109.6406222 | K29: 108.2417371 | L29: 105.474623 | M29: 96.94134408 | N29: 109.4509444 | O29: 123.0845095
B30: 922 | C30: Retten på Frederiksberg | D30: 100.1675279 | E30: 101.2390041 | F30: 107.0047964 | G30: 100.4840015 | H30: 113.3685184 | I30: 101.727255 | J30: 99.56281209 | K30: 97.71025487 | L30: 91.50298058 | M30: 116.3789485 | N30: 73.5356323 | O30: 78.60446373
B31: 923 | C31: Københavns Byret | D31: 98.44655391 | E31: 97.66119994 | F31: 101.0999202 | G31: 99.64721746 | H31: 95.55893701 | I31: 93.04122885 | J31: 109.4587519 | K31: 110.1505658 | L31: 92.48733185 | M31: 92.92593024 | N31: 61.96460904 | O31: 62.78585896
B32: 924 | C32: Retten på Bornholm | D32: 62.41298617 | E32: 60.31573545 | F32: 64.2351501 | G32: 56.46574606 | H32: 61.6503421 | I32: 53.56393195 | J32: 67.93127449 | K32: 60.08122757 | L32: 57.2544251 | M32: 61.81659735 | N32: 64.37145914 | O32: 69.70252161
B35: 1) Indeks 100 svarer til gennemsnittet ved byretterne i 2012.
B36: 2) "Retssager" svarer til den samlede produktivitet for straffesager og civile sager, "Fogedsager" til den samlede produktivitet for øvrige fogedsager og tvangsauktioner, "Skiftesager" til den samlede produktivitet for Insolvensskifter og Dødsboskifter.
B37: 3) Ved beregningen af den samlede produktivitet, samlet for retten, anvendes rettens samlede vægtede årsværksforbrug - dvs. også årsværksforbruget til generel ledelse og administration mv. Ved beregning af produktiviteten på de enkelte sagsområder er årsværkforbruget til generel ledelse og administration mv. nøgletalsfordelt, således at forskelle i andele i årsværksforbrug til generel ledelse og administration mv. ikke vanskeliggør en sammenligning af de enkelte retter.

Sheet Produkt.JUR
B2: PRODUKTIVITETSINDEKS JURISTER
D4: Samlet | F4: Retssager | H4: Straffesager | J4: Civile sager | L4: Fogedsager | N4: Skiftesager
D5: =Overblik!$D$6 -> 2016 | E5: =Overblik!$E$6 -> 2017 | F5: =Overblik!$D$6 -> 2016 | G5: =Overblik!$E$6 -> 2017 | H5: =Overblik!$D$6 -> 2016 | I5: =Overblik!$E$6 -> 2017 | J5: =Overblik!$D$6 -> 2016 | K5: =Overblik!$E$6 -> 2017 | L5: =Overblik!$D$6 -> 2016 | M5: =Overblik!$E$6 -> 2017 | N5: =Overblik!$D$6 -> 2016 | O5: =Overblik!$E$6 -> 2017
C6: 5. BEDSTE RET | D6: 102.0933223 | E6: =LARGE(E9:E32,5) -> 108.399071 | F6: 100.8540931 | G6: =LARGE(G9:G32,5) -> 101.455187 | H6: 98.99191682 | I6: =LARGE(I9:I32,5) -> 99.55120057 | J6: 106.9268392 | K6: =LARGE(K9:K32,5) -> 117.6992318 | L6: 116.6183708 | M6: =LARGE(M9:M32,5) -> 139.6991109 | N6: 142.0024695 | O6: =LARGE(O9:O32,5) -> 163.5813931
C7: SAMLET BYRETTERNE | D7: 98.20979884 | E7: 99.52218115 | F7: 95.35856966 | G7: 96.01023468 | H7: 92.14104546 | I7: 92.60818869 | J7: 98.89379819 | K7: 99.92165478 | L7: 101.4770997 | M7: 110.3897073 | N7: 113.1950315 | O7: 117.0719242
B8: EID | C8: Ret
B9: 901 | C9: Retten i Hjørring | D9: 101.8581145 | E9: 108.399071 | F9: 91.15784941 | G9: 93.60658654 | H9: 80.90921716 | I9: 84.2056156 | J9: 100.811858 | K9: 103.0103467 | L9: 135.2523604 | M9: 168.7143852 | N9: 142.0024695 | O9: 163.5813931
B10: 902 | C10: Retten i Aalborg | D10: 100.592683 | E10: 97.80947336 | F10: 93.91838 | G10: 90.87795529 | H10: 85.50422449 | I10: 90.22481124 | J10: 102.1037218 | K10: 91.49324506 | L10: 88.89266564 | M10: 102.1296846 | N10: 119.6309033 | O10: 117.8696306
B11: 903 | C11: Retten i Randers | D11: 89.82215475 | E11: 94.76717733 | F11: 80.5562791 | G11: 89.11552909 | H11: 75.30087557 | I11: 87.3009819 | J11: 85.76501331 | K11: 90.90660743 | L11: 91.57316926 | M11: 103.0973182 | N11: 140.6875968 | O11: 166.053476
B12: 904 | C12: Retten i Århus | D12: 89.92279501 | E12: 92.29793167 | F12: 82.66926146 | G12: 87.71276709 | H12: 74.53488763 | I12: 80.38733771 | J12: 92.72102973 | K12: 99.56888245 | L12: 83.98402823 | M12: 93.25219511 | N12: 127.8605968 | O12: 104.7120666
B13: 905 | C13: Retten i Viborg | D13: 101.0458473 | E13: 94.05144784 | F13: 100.8540931 | G13: 93.93722756 | H13: 93.83598525 | I13: 98.54698058 | J13: 106.8485536 | K13: 90.59980684 | L13: 85.79211928 | M13: 94.89785151 | N13: 141.3554992 | O13: 105.2927475
B14: 906 | C14: Retten i Holstebro | D14: 86.07588518 | E14: 115.12928 | F14: 88.02791606 | G14: 110.5224264 | H14: 87.05847008 | I14: 101.0955692 | J14: 88.93000995 | K14: 122.6396413 | L14: 114.8080608 | M14: 164.5922858 | N14: 81.59679769 | O14: 149.1650492
B15: 907 | C15: Retten i Herning | D15: 98.27365151 | E15: 96.84573238 | F15: 91.23398827 | G15: 94.2635823 | H15: 90.29785955 | I15: 91.62950645 | J15: 92.13359908 | K15: 97.17588062 | L15: 116.2499631 | M15: 102.9617785 | N15: 107.03131 | O15: 90.23435839
B16: 908 | C16: Retten i Horsens | D16: 89.19656434 | E16: 88.00474305 | F16: 86.092368 | G16: 89.57172276 | H16: 93.34038866 | I16: 79.1609592 | J16: 80.75899944 | K16: 98.7191452 | L16: 89.71536438 | M16: 65.06342533 | N16: 101.0168003 | O16: 84.9660848
B17: 909 | C17: Retten i Kolding | D17: 104.7398676 | E17: 108.3489567 | F17: 94.55793128 | G17: 96.65309814 | H17: 94.3616984 | I17: 92.45153621 | J17: 94.61356683 | K17: 101.2639094 | L17: 118.7413759 | M17: 141.8210259 | N17: 200.5491615 | O17: 217.6427734
B18: 910 | C18: Retten i Esbjerg | D18: 90.05202775 | E18: 88.29202164 | F18: 82.73728746 | G18: 82.08158044 | H18: 69.7215752 | I18: 72.80411574 | J18: 110.2128787 | K18: 100.6756485 | L18: 107.855321 | M18: 86.83545328 | N18: 138.7859417 | O18: 154.6383017
B19: 911 | C19: Retten i Sønderborg | D19: 102.0933223 | E19: 99.02347384 | F19: 91.09513024 | G19: 87.83350477 | H19: 111.8120016 | I19: 104.3889045 | J19: 69.71632711 | K19: 69.74453591 | L19: 137.1125052 | M19: 139.6991109 | N19: 179.4498432 | O19: 173.8314773
B20: 912 | C20: Retten i Odense | D20: 94.6131613 | E20: 107.2459573 | F20: 97.99077141 | G20: 107.6498761 | H20: 98.76921888 | I20: 99.55120057 | J20: 96.40526639 | K20: 118.7089448 | L20: 88.65484692 | M20: 111.4029301 | N20: 107.4158335 | O20: 132.2996063
B21: 913 | C21: Retten i Svendborg | D21: 95.96751974 | E21: 102.1832179 | F21: 93.0862179 | G21: 95.00667576 | H21: 79.66923452 | I21: 81.11087791 | J21: 111.4842852 | K21: 117.6992318 | L21: 105.076586 | M21: 105.9392158 | N21: 136.0190594 | O21: 177.2619786
B22: 914 | C22: Retten i Nykøbing F. | D22: 103.4003237 | E22: 109.4292015 | F22: 99.91730046 | G22: 101.455187 | H22: 97.90124027 | I22: 95.08080303 | J22: 102.3390043 | K22: 110.966198 | L22: 114.4858391 | M22: 131.7218722 | N22: 105.9216067 | O22: 128.5544945
B23: 915 | C23: Retten i Næstved | D23: 98.11874151 | E23: 124.5648112 | F23: 93.58965774 | G23: 118.5962811 | H23: 84.33127419 | I23: 107.6491202 | J23: 106.3199719 | K23: 134.6079239 | L23: 116.6183708 | M23: 138.1566923 | N23: 129.2086686 | O23: 158.2960778
B24: 916 | C24: Retten i Holbæk | D24: 90.66960469 | E24: 89.28080444 | F24: 92.2437611 | G24: 90.88036719 | H24: 77.54989955 | I24: 75.31456885 | J24: 109.2148489 | K24: 109.0071712 | L24: 74.97482352 | M24: 95.98406155 | N24: 108.389377 | O24: 115.2165482
B25: 917 | C25: Retten i Roskilde | D25: 120.3344471 | E25: 111.480319 | F25: 115.5718747 | G25: 105.7398809 | H25: 88.70449972 | I25: 90.40953925 | J25: 146.4349167 | K25: 124.4772958 | L25: 93.34806285 | M25: 108.1089448 | N25: 194.3934836 | O25: 137.1515058
B26: 918 | C26: Retten i Hillerød | D26: 101.7466393 | E26: 96.83268731 | F26: 98.62166927 | G26: 94.5382895 | H26: 107.4397361 | I26: 92.84193104 | J26: 89.93077277 | K26: 96.29256324 | L26: 94.60829301 | M26: 113.8763834 | N26: 135.6886738 | O26: 136.3821912
B27: 919 | C27: Retten i Helsingør | D27: 90.70887356 | E27: 90.21172702 | F27: 82.2240181 | G27: 84.32484758 | H27: 79.13943479 | I27: 78.08882127 | J27: 85.02388666 | K27: 90.3328542 | L27: 94.33542534 | M27: 79.42056874 | N27: 160.2713871 | O27: 149.878583
B28: 920 | C28: Retten i Lyngby | D28: 104.6807489 | E28: 98.66900638 | F28: 107.0089393 | G28: 99.12684107 | H28: 143.7585027 | I28: 148.0404528 | J28: 84.36576074 | K28: 76.89363775 | L28: 92.97169255 | M28: 100.920797 | N28: 59.25793936 | O28: 63.0615448
B29: 921 | C29: Retten i Glostrup | D29: 98.43980794 | E29: 93.75095912 | F29: 94.91966102 | G29: 92.92174013 | H29: 86.05198859 | I29: 83.01359426 | J29: 106.9268392 | K29: 106.44294 | L29: 123.5180799 | M29: 99.05160121 | N29: 79.49987807 | O29: 85.49563853
B30: 922 | C30: Retten på Frederiksberg | D30: 98.25900066 | E30: 98.4958273 | F30: 101.6574011 | G30: 93.30901167 | H30: 104.7987585 | I30: 93.10684387 | J30: 97.82770479 | K30: 92.821488 | L30: 114.6216244 | M30: 159.7546686 | N30: 46.75659378 | O30: 49.00463999
B31: 923 | C31: Københavns Byret | D31: 100.2374104 | E31: 99.44971777 | F31: 101.9400058 | G31: 100.5127888 | H31: 98.99191682 | I31: 99.4309446 | J31: 105.6132879 | K31: 101.4556426 | L31: 98.65079893 | M31: 115.3511426 | N31: 30.12855269 | O31: 35.11170383
B32: 924 | C32: Retten på Bornholm | D32: 62.96127296 | E32: 62.18197045 | F32: 89.91715632 | G32: 90.82584586 | H32: 81.85156329 | I32: 81.44832248 | J32: 103.2744743 | K32: 103.4888786 | L32: 47.2891766 | M32: 72.30033305 | N32: 57.83217746 | O32: 75.65929543
B35: 1) Indeks 100 svarer til gennemsnittet ved byretterne i 2012.
B36: 2) "Retssager" svarer til den samlede produktivitet for straffesager og civile sager, "Fogedsager" til den samlede produktivitet for øvrige fogedsager og tvangsauktioner, "Skiftesager" til den samlede produktivitet for Insolvensskifter og Dødsboskifter.
B37: 3) Ved beregningen af den samlede produktivitet for juristerne anvendes det samlede årsværksforbrug for gruppen - dvs. også årsværksforbruget til generel ledelse og administration mv. Ved beregning af produktiviteten på de enkelte sagsområder er kun medtaget det direkte årsværksforbrug - dvs. der er ikke foretaget en nøgletalsfordeling af årsværkforbruget til generel ledelse og administration mv.

Sheet Produkt.KON
B2: PRODUKTIVITETSINDEKS KONTORPERSONALE
D4: Samlet | F4: Retssager | H4: Straffesager | J4: Civile sager | L4: Fogedsager | N4: Skiftesager
D5: =Overblik!$D$6 -> 2016 | E5: =Overblik!$E$6 -> 2017 | F5: =Overblik!$D$6 -> 2016 | G5: =Overblik!$E$6 -> 2017 | H5: =Overblik!$D$6 -> 2016 | I5: =Overblik!$E$6 -> 2017 | J5: =Overblik!$D$6 -> 2016 | K5: =Overblik!$E$6 -> 2017 | L5: =Overblik!$D$6 -> 2016 | M5: =Overblik!$E$6 -> 2017 | N5: =Overblik!$D$6 -> 2016 | O5: =Overblik!$E$6 -> 2017
C6: 5. BEDSTE RET | D6: 114.5475658 | E6: =LARGE(E9:E32,5) -> 114.7230739 | F6: 120.2945577 | G6: =LARGE(G9:G32,5) -> 112.4286419 | H6: 123.7906117 | I6: =LARGE(I9:I32,5) -> 111.0339166 | J6: 113.1918337 | K6: =LARGE(K9:K32,5) -> 109.8238317 | L6: 100.3784252 | M6: =LARGE(M9:M32,5) -> 115.1995122 | N6: 122.8837921 | O6: =LARGE(O9:O32,5) -> 120.0012652
C7: SAMLET BYRETTERNE | D7: 104.8405252 | E7: 105.0201529 | F7: 104.16103 | G7: 95.07893244 | H7: 105.4817885 | I7: 91.59652358 | J7: 102.1777211 | K7: 99.82011741 | L7: 93.38383158 | M7: 101.089978 | N7: 108.492846 | O7: 108.3010018
B8: EID | C8: Ret
B9: 901 | C9: Retten i Hjørring | D9: 100.5558502 | E9: 98.95585953 | F9: 91.81070471 | G9: 74.69111477 | H9: 87.09034297 | I9: 67.58793335 | J9: 97.12566059 | K9: 83.97355938 | L9: 83.62764468 | M9: 93.71631759 | N9: 110.4028936 | O9: 117.8298942
B10: 902 | C10: Retten i Aalborg | D10: 99.20429628 | E10: 101.4603922 | F10: 106.1208239 | G10: 100.6468456 | H10: 115.0478318 | I10: 111.0339166 | J10: 97.37757127 | K10: 90.20518553 | L10: 97.5594507 | M10: 115.118744 | N10: 112.3590035 | O10: 101.1270279
B11: 903 | C11: Retten i Randers | D11: 114.5475658 | E11: 109.3363577 | F11: 88.4224337 | G11: 79.51097445 | H11: 97.66631 | I11: 90.73879299 | J11: 80.91066185 | K11: 69.76184558 | L11: 130.2161594 | M11: 127.9629155 | N11: 112.0730934 | O11: 117.7447173
B12: 904 | C12: Retten i Århus | D12: 100.7600439 | E12: 96.52580253 | F12: 84.77729168 | G12: 74.38114233 | H12: 81.37496292 | I12: 69.17594373 | J12: 89.18082872 | K12: 83.83030222 | L12: 92.57430274 | M12: 103.309996 | N12: 113.3359179 | O12: 105.3851704
B13: 905 | C13: Retten i Viborg | D13: 113.3188851 | E13: 114.7230739 | F13: 107.4937497 | G13: 94.17416374 | H13: 115.5305358 | I13: 94.04417535 | J13: 100.8433228 | K13: 94.42974185 | L13: 88.00207768 | M13: 98.12371793 | N13: 164.2081637 | O13: 167.6803551
B14: 906 | C14: Retten i Holstebro | D14: 105.1768084 | E14: 106.8397756 | F14: 88.13949355 | G14: 77.66010267 | H14: 96.79537678 | I14: 85.81108086 | J14: 77.56180589 | K14: 68.55050282 | L14: 103.884662 | M14: 105.4163185 | N14: 109.1053825 | O14: 126.3421275
B15: 907 | C15: Retten i Herning | D15: 112.3184893 | E15: 111.1293923 | F15: 113.0079831 | G15: 102.6059603 | H15: 112.2599676 | I15: 101.6022352 | J15: 113.7849359 | K15: 103.6279635 | L15: 88.66221421 | M15: 87.48640689 | N15: 114.3535309 | O15: 112.4067395
B16: 908 | C16: Retten i Horsens | D16: 114.7481586 | E16: 118.9197831 | F16: 129.0841845 | G16: 132.5827938 | H16: 173.3894709 | I16: 129.4641148 | J16: 101.7844489 | K16: 136.1196619 | L16: 98.00572616 | M16: 102.1213535 | N16: 113.3320579 | O16: 112.7637336
B17: 909 | C17: Retten i Kolding | D17: 109.8548711 | E17: 110.9124862 | F17: 101.7984232 | G17: 99.0568799 | H17: 110.6827919 | I17: 95.40142768 | J17: 91.93458978 | K17: 103.8593137 | L17: 100.3784252 | M17: 103.0255663 | N17: 101.0023407 | O17: 105.8062577
B18: 910 | C18: Retten i Esbjerg | D18: 111.3423652 | E18: 101.1660744 | F18: 102.4536239 | G18: 84.0932744 | H18: 110.4065571 | I18: 84.23597478 | J18: 91.12878177 | K18: 82.78717449 | L18: 86.83708654 | M18: 95.68752801 | N18: 126.179535 | O18: 94.52855191
B19: 911 | C19: Retten i Sønderborg | D19: 115.1153884 | E19: 117.4106787 | F19: 120.2945577 | G19: 116.2629137 | H19: 130.7298801 | I19: 113.3340749 | J19: 103.5465142 | K19: 120.4968007 | L19: 95.58495961 | M19: 106.0489739 | N19: 105.6143284 | O19: 104.9152262
B20: 912 | C20: Retten i Odense | D20: 108.6484782 | E20: 112.203187 | F20: 101.6265816 | G20: 87.52353209 | H20: 108.9961575 | I20: 77.46786619 | J20: 90.45919728 | K20: 107.0168424 | L20: 96.20116055 | M20: 126.5590087 | N20: 88.14341203 | O20: 95.95375024
B21: 913 | C21: Retten i Svendborg | D21: 100.2980697 | E21: 114.8286278 | F21: 88.64595787 | G21: 86.55179501 | H21: 81.00882081 | I21: 77.68576754 | J21: 99.58162401 | K21: 102.3767634 | L21: 88.469735 | M21: 115.1995122 | N21: 130.6199685 | O21: 151.1914344
B22: 914 | C22: Retten i Nykøbing F. | D22: 103.2797536 | E22: 101.9089194 | F22: 104.8212373 | G22: 94.70527709 | H22: 100.0563608 | I22: 87.73336352 | J22: 113.1918337 | K22: 107.9968327 | L22: 86.91216005 | M22: 97.29009601 | N22: 104.6880057 | O22: 104.9411445
B23: 915 | C23: Retten i Næstved | D23: 107.8669948 | E23: 114.5574039 | F23: 123.4358345 | G23: 118.4932091 | H23: 127.3249559 | I23: 124.4470932 | J23: 118.024466 | K23: 109.8238317 | L23: 87.78874966 | M23: 104.8487269 | N23: 107.2303874 | O23: 107.0084545
B24: 916 | C24: Retten i Holbæk | D24: 95.0595337 | E24: 95.67780927 | F24: 79.63713902 | G24: 82.20737662 | H24: 70.6001461 | I24: 78.53662274 | J24: 91.5056079 | K24: 86.4066859 | L24: 93.52333818 | M24: 92.63493122 | N24: 109.2469477 | O24: 105.5194488
B25: 917 | C25: Retten i Roskilde | D25: 111.3127937 | E25: 111.4244298 | F25: 102.8739322 | G25: 94.62924841 | H25: 95.38676866 | I25: 94.10033472 | J25: 111.9870163 | K25: 95.29567626 | L25: 95.73675837 | M25: 116.6184429 | N25: 125.736642 | O25: 120.0012652
B26: 918 | C26: Retten i Hillerød | D26: 115.5215668 | E26: 122.511742 | F26: 122.7793673 | G26: 113.3077739 | H26: 123.1298361 | I26: 108.9724797 | J26: 121.8109549 | K26: 119.2550416 | L26: 106.8140962 | M26: 128.4763007 | N26: 106.0058534 | O26: 106.1591289
B27: 919 | C27: Retten i Helsingør | D27: 104.9829353 | E27: 103.4234795 | F27: 94.30987427 | G27: 97.0955364 | H27: 89.80695561 | I27: 88.30724962 | J27: 99.32236922 | K27: 107.5077592 | L27: 87.34406805 | M27: 85.13636073 | N27: 122.8837921 | O27: 111.8407017
B28: 920 | C28: Retten i Lyngby | D28: 116.877276 | E28: 108.8883863 | F28: 137.4181982 | G28: 112.4286419 | H28: 191.5355051 | I28: 167.5394626 | J28: 97.63293746 | K28: 80.26122894 | L28: 105.8344434 | M28: 109.9130341 | N28: 81.83508172 | O28: 83.29223052
B29: 921 | C29: Retten i Glostrup | D29: 104.4633785 | E29: 103.440719 | F29: 96.38821485 | G29: 92.80203235 | H29: 95.31002188 | I29: 88.46809719 | J29: 97.56115721 | K29: 98.77548524 | L29: 91.03978357 | M29: 88.37726795 | N29: 114.9448525 | O29: 133.3249389
B30: 922 | C30: Retten på Frederiksberg | D30: 102.9435532 | E30: 107.8763732 | F30: 111.5382376 | G30: 101.892518 | H30: 123.7906117 | I30: 105.2288869 | J30: 97.32637857 | K30: 95.38424168 | L30: 81.68596973 | M30: 100.6663954 | N30: 88.68953226 | O30: 92.42397574
B31: 923 | C31: Københavns Byret | D31: 92.84226832 | E31: 91.94850593 | F31: 110.9761012 | G31: 97.76907942 | H31: 99.12823878 | I31: 83.42514221 | J31: 133.7992565 | K31: 128.6949587 | L31: 94.94102228 | M31: 83.0322225 | N31: 95.89989867 | O31: 80.42251866
B32: 924 | C32: Retten på Bornholm | D32: 71.82940512 | E32: 66.56897221 | F32: 58.20079774 | G32: 56.32546152 | H32: 59.76546797 | I32: 57.8267277 | J32: 55.71594428 | K32: 54.46331935 | L32: 82.99571638 | M32: 86.42100832 | N32: 91.96607901 | O32: 105.5623925
B35: 1) Indeks 100 svarer til gennemsnittet ved byretterne i 2012.
B36: 2) "Retssager" svarer til den samlede produktivitet for straffesager og civile sager, "Fogedsager" til den samlede produktivitet for øvrige fogedsager og tvangsauktioner, "Skiftesager" til den samlede produktivitet for Insolvensskifter og Dødsboskifter.
B37: 3) Ved beregningen af den samlede produktivitet for kontorpersonale anvendes det samlede årsværksforbrug for gruppen - dvs. også årsværksforbruget til generel ledelse og administration mv. Ved beregning af produktiviteten på de enkelte sagsområder er kun medtaget det direkte årsværksforbrug - dvs. der er ikke foretaget en nøgletalsfordeling af årsværkforbruget til generel ledelse og administration mv.

Sheet Generel ledelse_Adm.
B3: ÅRSVÆRKSFORBRUG ANVENDT TIL GENEREL LEDELSE OG ADMINISTRATION MV.
E5: Årsværk til generel ledelse og administration | H5: %-del til generel ledelse og administration
E6: 2015 | F6: 2016 | G6: 2017 | H6: 2015 | I6: 2016 | J6: 2017
C8: SAMLET BYRETTERNE | D8: Jurister | E8: 35.64509689 | F8: 30.09684542 | G8: 30.86608241 | H8: 0.08257567217 | I8: 0.0711262071 | J8: 0.07484334104
D9: Kontor | E9: 123.1166614 | F9: 122.4381497 | G9: 107.3037173 | H9: 0.1535963216 | I9: 0.1571490172 | J9: 0.1362408847
D10: Elev | E10: 7.164550744 | F10: 6.700152686 | G10: 6.869543021 | H10: 0.09036842666 | I10: 0.08553245916 | J10: 0.09461694353
D11: Fleks | E11: 21.73261409 | F11: 16.38041499 | G11: 15.55364767 | H11: 0.4398293369 | I11: 0.3836650654 | J11: 0.3486287013
D12: Øvrige | E12: 70.9377161 | F12: 69.85096034 | G12: 68.11446017 | H12: 0.8108893127 | I12: 0.8247183078 | J12: 0.7814420657
C13: Samlet byretterne | D13: Samlet | E13: 258.5966392 | F13: 245.4665232 | G13: 228.7074505 | H13: 0.1784163102 | I13: 0.1743377226 | J13: 0.1628512618
D14: - ekskl. fleks og elever | E14: 229.6994744 | F14: 222.3859555 | G14: 206.2842598 | H14: 0.1739215761 | I14: 0.172798742 | J14: 0.160260966
B15: EID | C15: Ret
B16: 901 | C16: Retten i Hjørring | D16: Jurister | E16: 1.927718998 | F16: 0.916099879 | G16: 0.8470651409 | H16: 0.146231302 | I16: 0.06998316149 | J16: 0.07049946242
B17: 901 | C17: Retten i Hjørring | D17: Kontor | E17: 3.557959968 | F17: 3.21182055 | G17: 2.723311864 | H17: 0.1261977023 | I17: 0.1146549308 | J17: 0.0943831268
B18: 901 | C18: Retten i Hjørring | D18: Elev | E18: 0.08961122894 | F18: 0.236130532 | G18: 0.1286096358 | H18: 0.0322398216 | I18: 0.09017434203 | J18: 0.06562620144
B19: 901 | C19: Retten i Hjørring | D19: Fleks | E19: 0.01620549656 | F19: 0.01356630004 | G19: 0.01001772737 | H19: 0.005032794167 | I19: 0.003954463185 | J19: 0.003642200711
B20: 901 | C20: Retten i Hjørring | D20: Øvrige | E20: 2.699516249 | F20: 2.664718388 | G20: 2.653946356 | H20: 0.8908765317 | I20: 0.9268746894 | J20: 0.8788483858
B21: 901 | C21: Retten i Hjørring | D21: Samlet | E21: 8.29101194 | F21: 7.042335649 | G21: 6.362950724 | H21: 0.1644849826 | I21: 0.1407695713 | J21: 0.1309276329
D22: - ekskl. fleks og elever | E22: 8.185195215 | F22: 6.792638817 | G22: 6.22432336 | H22: 0.1843247158 | I22: 0.1544547856 | J22: 0.1280751588
B23: 902 | C23: Retten i Aalborg | D23: Jurister | E23: 1.049419821 | F23: 0.7171857399 | G23: 1.078182721 | H23: 0.05016562953 | I23: 0.03407375413 | J23: 0.05377807888
B24: 902 | C24: Retten i Aalborg | D24: Kontor | E24: 6.955717691 | F24: 9.090363109 | G24: 8.321737469 | H24: 0.1668908289 | I24: 0.2224849403 | J24: 0.2040891583
B25: 902 | C25: Retten i Aalborg | D25: Elev | E25: 0.3529961556 | F25: 0.1486420445 | G25: 0.1697706444 | H25: 0.107457627 | I25: 0.03637712963 | J25: 0.03888969826
B26: 902 | C26: Retten i Aalborg | D26: Fleks | E26: 0.4149964316 | F26: 0.3187081947 | G26: 0.734442288 | H26: 0.2986660177 | I26: 0.1783332091 | J26: 0.3467196133
B27: 902 | C27: Retten i Aalborg | D27: Øvrige | E27: 1.265801002 | F27: 0.5598735184 | G27: 1.157589289 | H27: 0.3964734631 | I27: 0.2126815394 | J27: 0.331392166
B28: 902 | C28: Retten i Aalborg | D28: Samlet | E28: 10.0389311 | F28: 10.83477261 | G28: 11.46172241 | H28: 0.1424679654 | I28: 0.1538765506 | J28: 0.1618874542
D29: - ekskl. fleks og elever | E29: 9.270938514 | F29: 10.36742237 | G29: 10.55750948 | H29: 0.1409171381 | I29: 0.1606385485 | J29: 0.1491161861
B30: 903 | C30: Retten i Randers | D30: Jurister | E30: 1.780031634 | F30: 0.9052661961 | G30: 1.388581791 | H30: 0.1235601942 | I30: 0.06420710142 | J30: 0.1096670134
B31: 903 | C31: Retten i Randers | D31: Kontor | E31: 2.963392888 | F31: 2.228643395 | G31: 2.366435034 | H31: 0.1159689969 | I31: 0.09406086762 | J31: 0.09875646624
B32: 903 | C32: Retten i Randers | D32: Elev | E32: 0.2166317332 | F32: 0.1032077728 | G32: 0.06129504806 | H32: 0.05351719865 | I32: 0.02734545756 | J32: 0.02104377598
B33: 903 | C33: Retten i Randers | D33: Fleks | E33: 2.794174135 | F33: 1.696882529 | G33: 1.500784017 | H33: 0.9419887516 | I33: 0.8179166162 | J33: 0.6747553117
B34: 903 | C34: Retten i Randers | D34: Øvrige | E34: 3.955989466 | F34: 3.850932225 | G34: 3.890001847 | H34: 0.9218090121 | I34: 0.9234871607 | J34: 0.8783481298
B35: 903 | C35: Retten i Randers | D35: Samlet | E35: 11.71021986 | F35: 8.784932118 | G35: 9.207097736 | H35: 0.2284243474 | I35: 0.1837404473 | J35: 0.1993317086
D36: - ekskl. fleks og elever | E36: 8.699413987 | F36: 6.984841816 | G36: 7.645018671 | H36: 0.1965922169 | I36: 0.1664532668 | J36: 0.165513029
B37: 904 | C37: Retten i Århus | D37: Jurister | E37: 2.026770779 | F37: 1.226600071 | G37: 1.326319556 | H37: 0.0797113697 | I37: 0.05022893235 | J37: 0.05663697382
B38: 904 | C38: Retten i Århus | D38: Kontor | E38: 4.046671597 | F38: 4.506457794 | G38: 4.174571599 | H38: 0.1002960945 | I38: 0.1093875573 | J38: 0.09298758446
B39: 904 | C39: Retten i Århus | D39: Elev | E39: 0.02006919433 | F39: 0.09764551541 | G39: 0.06386853133 | H39: 0.01006514488 | I39: 0.04942174931 | J39: 0.03137700997
B40: 904 | C40: Retten i Århus | D40: Fleks | E40: 1.939036151 | F40: 1.597962451 | G40: 0.993460951 | H40: 0.3249512584 | I40: 0.4055083567 | J40: 0.4129750131
B41: 904 | C41: Retten i Århus | D41: Øvrige | E41: 3.349384299 | F41: 4.429379856 | G41: 3.593063197 | H41: 0.600238401 | I41: 0.8214892841 | J41: 0.7930008799
B42: 904 | C42: Retten i Århus | D42: Samlet | E42: 11.38193202 | F42: 11.85804569 | G42: 10.15128383 | H42: 0.1435032556 | I42: 0.1541494376 | J42: 0.1313505977
D43: - ekskl. fleks og elever | E43: 9.422826676 | F43: 10.16243772 | G43: 9.093954351 | H43: 0.1320579781 | I43: 0.1431142805 | J43: 0.1176694849
B44: 905 | C44: Retten i Viborg | D44: Jurister | E44: 1.405995945 | F44: 1.38583974 | G44: 1.303051779 | H44: 0.08961164428 | I44: 0.09899024986 | J44: 0.09307904966
B45: 905 | C45: Retten i Viborg | D45: Kontor | E45: 3.540452682 | F45: 3.696431963 | G45: 3.04737348 | H45: 0.1374644271 | I45: 0.1521115965 | J45: 0.1266646749
B46: 905 | C46: Retten i Viborg | D46: Elev | E46: 0.2880265444 | F46: 0.3290571106 | G46: 0.1899732155 | H46: 0.06940014033 | I46: 0.08106552125 | J46: 0.04710398941
B47: 905 | C47: Retten i Viborg | D47: Fleks | E47: 0.156245565 | F47: 0.1142296454 | G47: 0.09496004875 | H47: 0.06324835143 | I47: 0.05711310929 | J47: 0.04747860002
B48: 905 | C48: Retten i Viborg | D48: Øvrige | E48: 2.637861028 | F48: 2.39230565 | G48: 2.559943619 | H48: 0.7160201049 | I48: 0.674112987 | J48: 0.7062322558
B49: 905 | C49: Retten i Viborg | D49: Samlet | E49: 8.028581764 | F49: 7.91786411 | G49: 7.195302142 | H49: 0.1551418865 | I49: 0.1652702733 | J49: 0.1507946121
D50: - ekskl. fleks og elever | E50: 7.584309655 | F50: 7.474577354 | G50: 6.910368877 | H50: 0.1680571436 | I50: 0.1786066876 | J50: 0.1448231602
B51: 906 | C51: Retten i Holstebro | D51: Jurister | E51: 0.9785960657 | F51: 1.119924859 | G51: 0.931273504 | H51: 0.09787242785 | I51: 0.110960223 | J51: 0.1193556309
B52: 906 | C52: Retten i Holstebro | D52: Kontor | E52: 2.705851618 | F52: 1.994423064 | G52: 1.598179102 | H52: 0.1338563028 | I52: 0.1108472829 | J52: 0.08558064091
B53: 906 | C53: Retten i Holstebro | D53: Elev | E53: 0.2987936929 | F53: 0.1155743702 | G53: 0.04688204797 | H53: 0.1416278507 | I53: 0.06668880705 | J53: 0.02744272166
B54: 906 | C54: Retten i Holstebro | D54: Fleks | E54: 2.00006 | F54: 2.06642 | G54: 2.134659037 | H54: 1 | I54: 1 | J54: 0.9512910377
B55: 906 | C55: Retten i Holstebro | D55: Øvrige | E55: 2.297311023 | F55: 2.32869344 | G55: 2.221508116 | H55: 0.8883715355 | I55: 0.9083365928 | J55: 0.930275885
B56: 906 | C56: Retten i Holstebro | D56: Samlet | E56: 8.2806124 | F56: 7.625035733 | G56: 6.932501807 | H56: 0.2243518769 | I56: 0.2213445941 | J56: 0.2112448284
D57: - ekskl. fleks og elever | E57: 5.981758707 | F57: 5.443041363 | G57: 4.750960722 | H57: 0.1823747512 | I57: 0.1775913395 | J57: 0.1447696532
B58: 907 | C58: Retten i Herning | D58: Jurister | E58: 1.145046948 | F58: 0.5070691256 | G58: 0.5870465448 | H58: 0.09992590497 | I58: 0.04672242422 | J58: 0.05215942859
B59: 907 | C59: Retten i Herning | D59: Kontor | E59: 2.913140052 | F59: 2.41809235 | G59: 1.710624653 | H59: 0.1412297329 | I59: 0.1225567437 | J59: 0.08432446521
B60: 907 | C60: Retten i Herning | D60: Elev | E60: 0.3777368315 | F60: 0.08135198007 | G60: 0.1751750325 | H60: 0.1169333546 | I60: 0.0284379868 | J60: 0.05794262217
B61: 907 | C61: Retten i Herning | D61: Fleks | E61: 0 | F61: 0 | G61: 0.1081465398 | H61: 0 | I61: 0 | J61: 0.3092109786
B62: 907 | C62: Retten i Herning | D62: Øvrige | E62: 2.00088 | F62: 2.001580375 | G62: 2.152288722 | H62: 1 | I62: 0.9976376523 | J62: 0.9362702648
B63: 907 | C63: Retten i Herning | D63: Samlet | E63: 6.436803831 | F63: 5.008093831 | G63: 4.733281492 | H63: 0.1724891131 | I63: 0.1412712832 | J63: 0.1271947787
D64: - ekskl. fleks og elever | E64: 6.059067 | F64: 4.926741851 | G64: 4.449959919 | H64: 0.1777540573 | I64: 0.1511756958 | J64: 0.1195812394
B65: 908 | C65: Retten i Horsens | D65: Jurister | E65: 1.263129335 | F65: 0.8881616017 | G65: 0.6641910236 | H65: 0.08955137685 | I65: 0.06775804417 | J65: 0.05187440193
B66: 908 | C66: Retten i Horsens | D66: Kontor | E66: 3.524991396 | F66: 3.391757973 | G66: 2.909736097 | H66: 0.162048975 | I66: 0.1685389962 | J66: 0.157127773
B67: 908 | C67: Retten i Horsens | D67: Elev | E67: 0.5026444744 | F67: 0.276862864 | G67: 0.4342581811 | H67: 0.164223186 | I67: 0.08820238105 | J67: 0.112692178
B68: 908 | C68: Retten i Horsens | D68: Fleks | E68: 0.7857314286 | F68: 0.5591736611 | G68: 1.00801021 | H68: 0.2857142857 | I68: 0.2652991451 | J68: 0.2335362568
B69: 908 | C69: Retten i Horsens | D69: Øvrige | E69: 2.350023616 | F69: 2.547194311 | G69: 2.472148312 | H69: 0.7405031011 | I69: 0.6083883623 | J69: 0.5570134676
B70: 908 | C70: Retten i Horsens | D70: Samlet | E70: 8.42652025 | F70: 7.663150411 | G70: 7.488343824 | H70: 0.1879155474 | I70: 0.1796089045 | J70: 0.1704603932
D71: - ekskl. fleks og elever | E71: 7.138144347 | F71: 6.827113886 | G71: 6.046075433 | H71: 0.1828827547 | I71: 0.1824499757 | J71: 0.1376294171
B72: 909 | C72: Retten i Kolding | D72: Jurister | E72: 1.228612324 | F72: 1.232693387 | G72: 1.190276446 | H72: 0.06335414301 | I72: 0.06484586923 | J72: 0.06370302902
B73: 909 | C73: Retten i Kolding | D73: Kontor | E73: 4.82872704 | F73: 3.92989339 | G73: 3.720763431 | H73: 0.1357221207 | I73: 0.1075102278 | J73: 0.1019116687
B74: 909 | C74: Retten i Kolding | D74: Elev | E74: 0.3968045223 | F74: 0.01257587921 | G74: 0.05155026221 | H74: 0.09741957017 | I74: 0.003605821442 | J74: 0.01544137615
B75: 909 | C75: Retten i Kolding | D75: Fleks | E75: 1.01435647 | F75: 1.026636905 | G75: 1.00003 | H75: 0.338106426 | I75: 0.3421997545 | J75: 0.3333333333
B76: 909 | C76: Retten i Kolding | D76: Øvrige | E76: 3.011997136 | F76: 3.077060747 | G76: 3.085375969 | H76: 0.8062975692 | I76: 0.9834855507 | J76: 0.9092740455
B77: 909 | C77: Retten i Kolding | D77: Samlet | E77: 10.48049749 | F77: 9.278860309 | G77: 9.047996108 | H77: 0.1593273284 | I77: 0.1423580005 | J77: 0.1393581009
D78: - ekskl. fleks og elever | E78: 9.0693365 | F78: 8.239647525 | G78: 7.996415846 | H78: 0.1544863337 | I78: 0.1403879392 | J78: 0.1231615611
B79: 910 | C79: Retten i Esbjerg | D79: Jurister | E79: 1.102596759 | F79: 1.08004299 | G79: 1.027797878 | H79: 0.07825407307 | I79: 0.07721393124 | J79: 0.07349450565
B80: 910 | C80: Retten i Esbjerg | D80: Kontor | E80: 2.725533434 | F80: 2.482812146 | G80: 2.005595139 | H80: 0.1053689544 | I80: 0.1023497347 | J80: 0.07713358722
B81: 910 | C81: Retten i Esbjerg | D81: Elev | E81: 0.2191336411 | F81: 0.1270756176 | G81: 0.1844939304 | H81: 0.05613054331 | I81: 0.03345468603 | J81: 0.05892906252
B82: 910 | C82: Retten i Esbjerg | D82: Fleks | E82: 0.1200053823 | F82: 0.01222191528 | G82: 0 | H82: 0.0540801081 | I82: 0.01222154864 | J82: 0
B83: 910 | C83: Retten i Esbjerg | D83: Øvrige | E83: 3.0907 | F83: 2.79649 | G83: 2.955197754 | H83: 1 | I83: 1 | J83: 0.9995291043
B84: 910 | C84: Retten i Esbjerg | D84: Samlet | E84: 7.257969217 | F84: 6.498642668 | G84: 6.173084702 | H84: 0.1476089249 | I84: 0.141765627 | J84: 0.1311366779
D85: - ekskl. fleks og elever | E85: 6.918830193 | F85: 6.359345135 | G85: 5.988590772 | H85: 0.1607264903 | I85: 0.1549461954 | J85: 0.1272174184
B86: 911 | C86: Retten i Sønderborg | D86: Jurister | E86: 1.043237784 | F86: 1.169493282 | G86: 1.053634876 | H86: 0.06369719672 | I86: 0.07402057665 | J86: 0.06361933973
B87: 911 | C87: Retten i Sønderborg | D87: Kontor | E87: 2.714924234 | F87: 3.54860732 | G87: 3.479651774 | H87: 0.08844726683 | I87: 0.1191741623 | J87: 0.1189693276
B88: 911 | C88: Retten i Sønderborg | D88: Elev | E88: 0.2697529082 | F88: 0.3429214634 | G88: 0.1844223082 | H88: 0.09364274446 | I88: 0.1645954552 | J88: 0.08655357938
B89: 911 | C89: Retten i Sønderborg | D89: Fleks | E89: 0.8147727195 | F89: 1.00003 | G89: 1.00003 | H89: 0.6614273927 | I89: 1 | J89: 1
B90: 911 | C90: Retten i Sønderborg | D90: Øvrige | E90: 2.893179599 | F90: 2.912060253 | G90: 3.276495886 | H90: 0.8065196639 | I90: 0.777370304 | J90: 0.8124779023
B91: 911 | C91: Retten i Sønderborg | D91: Samlet | E91: 7.735867245 | F91: 8.973112319 | G91: 8.994234844 | H91: 0.14123448 | I91: 0.1712239433 | J91: 0.1697879508
D92: - ekskl. fleks og elever | E92: 6.651341617 | F92: 7.630160855 | G92: 7.809782536 | H92: 0.1312918888 | I92: 0.1547001467 | J92: 0.1474285468
B93: 912 | C93: Retten i Odense | D93: Jurister | E93: 2.176553678 | F93: 2.42970382 | G93: 2.125780645 | H93: 0.0958129762 | I93: 0.1084099242 | J93: 0.1046404739
B94: 912 | C94: Retten i Odense | D94: Kontor | E94: 4.139676773 | F94: 3.114865263 | G94: 2.943860838 | H94: 0.1112493654 | I94: 0.07776272487 | J94: 0.07222787496
B95: 912 | C95: Retten i Odense | D95: Elev | E95: 0.2078070924 | F95: 0.02899134568 | G95: 0.05906564626 | H95: 0.07669120567 | I95: 0.008496130376 | J95: 0.02413610968
B96: 912 | C96: Retten i Odense | D96: Fleks | E96: 2.125729867 | F96: 0.4132317134 | G96: 0.4123504325 | H96: 0.9329145952 | I96: 0.3831256962 | J96: 0.3853058172
B97: 912 | C97: Retten i Odense | D97: Øvrige | E97: 4.396106807 | F97: 4.177663291 | G97: 3.473409267 | H97: 0.9947675968 | I97: 0.9894845859 | J97: 0.8120128363
B98: 912 | C98: Retten i Odense | D98: Samlet | E98: 13.04587422 | F98: 10.16445543 | G98: 9.01446683 | H98: 0.1881572329 | I98: 0.1427970106 | J98: 0.1308949304
D99: - ekskl. fleks og elever | E99: 10.71233726 | F99: 9.722232373 | G99: 8.543050751 | H99: 0.1664783989 | I99: 0.1457818715 | J99: 0.1240497141
B100: 913 | C100: Retten i Svendborg | D100: Jurister | E100: 1.003447994 | F100: 1.075461367 | G100: 0.9424041336 | H100: 0.1005501228 | I100: 0.1096142283 | J100: 0.09388533901
B101: 913 | C101: Retten i Svendborg | D101: Kontor | E101: 2.315375499 | F101: 3.153269147 | G101: 2.573637068 | H101: 0.1194266952 | I101: 0.1569357463 | J101: 0.1352473693
B102: 913 | C102: Retten i Svendborg | D102: Elev | E102: 0.3647912909 | F102: 0.4863701067 | G102: 0.5989689905 | H102: 0.1376015311 | I102: 0.2431753263 | J102: 0.3001327821
B103: 913 | C103: Retten i Svendborg | D103: Fleks | E103: 0.5085780684 | F103: 0.6535200731 | G103: 0.5498822452 | H103: 0.5085628115 | I103: 0.6535004681 | J103: 0.5498657492
B104: 913 | C104: Retten i Svendborg | D104: Øvrige | E104: 2.615194224 | F104: 2.429756022 | G104: 1.999293618 | H104: 0.7965479063 | I104: 0.8761750298 | J104: 0.6775015819
B105: 913 | C105: Retten i Svendborg | D105: Samlet | E105: 6.807387077 | F105: 7.798376715 | G105: 6.664186055 | H105: 0.1875248153 | I105: 0.2185807879 | J105: 0.1903312498
D106: - ekskl. fleks og elever | E106: 5.934017717 | F106: 6.658486536 | G106: 5.515334819 | H106: 0.1817454407 | I106: 0.2037654541 | J106: 0.1575196972
B107: 914 | C107: Retten i Nykøbing F. | D107: Jurister | E107: 1.311103055 | F107: 0.9324034298 | G107: 0.8339395876 | H107: 0.09319012523 | I107: 0.06873936492 | J107: 0.06598077459
B108: 914 | C108: Retten i Nykøbing F. | D108: Kontor | E108: 4.051827423 | F108: 3.909504956 | G108: 4.298112876 | H108: 0.1369386627 | I108: 0.1370817235 | J108: 0.1440607947
B109: 914 | C109: Retten i Nykøbing F. | D109: Elev | E109: 0.4258019571 | F109: 0.09422752303 | G109: 0.1627612216 | H109: 0.2364069184 | I109: 0.08033721803 | J109: 0.1378713134
B110: 914 | C110: Retten i Nykøbing F. | D110: Fleks | E110: 0 | F110: 0 | G110: 0.27914 | H110: 0 | I110: 0 | J110: 1
B111: 914 | C111: Retten i Nykøbing F. | D111: Øvrige | E111: 2.93638 | F111: 3.17061 | G111: 2.920239194 | H111: 1 | I111: 1 | J111: 0.9909697455
B112: 914 | C112: Retten i Nykøbing F. | D112: Samlet | E112: 8.725112435 | F112: 8.106745909 | G112: 8.49419288 | H112: 0.1802885372 | I112: 0.174611391 | J112: 0.1811860244
D113: - ekskl. fleks og elever | E113: 8.299310478 | F113: 8.012518386 | G113: 8.052291658 | H113: 0.1781192283 | I113: 0.1770547784 | J113: 0.1717600169
B114: 915 | C114: Retten i Næstved | D114: Jurister | E114: 1.482948436 | F114: 1.601409025 | G114: 1.224263788 | H114: 0.09061502651 | I114: 0.09306248615 | J114: 0.08175280502
B115: 915 | C115: Retten i Næstved | D115: Kontor | E115: 5.612669648 | F115: 5.497724433 | G115: 5.336168368 | H115: 0.1684341231 | I115: 0.1707016361 | J115: 0.1563149837
B116: 915 | C116: Retten i Næstved | D116: Elev | E116: 0.3174811928 | F116: 0.3273331001 | G116: 0.4301472193 | H116: 0.09182710398 | I116: 0.07768139849 | J116: 0.131820436
B117: 915 | C117: Retten i Næstved | D117: Fleks | E117: 3.107654402 | F117: 1.96631769 | G117: 1.755070123 | H117: 0.8047749077 | I117: 0.6087180877 | J117: 0.4926125451
B118: 915 | C118: Retten i Næstved | D118: Øvrige | E118: 2.631638244 | F118: 2.263468214 | G118: 3.004934111 | H118: 0.9197994632 | I118: 0.9405800281 | J118: 0.9409650069
B119: 915 | C119: Retten i Næstved | D119: Samlet | E119: 13.15239192 | F119: 11.65625246 | G119: 11.75058361 | H119: 0.219689813 | I119: 0.1966801074 | J119: 0.1987183827
D120: - ekskl. fleks og elever | E120: 9.727256329 | F120: 9.362601673 | G120: 9.565366267 | H120: 0.1851079177 | I120: 0.1806720304 | J120: 0.1617633794
B121: 916 | C121: Retten i Holbæk | D121: Jurister | E121: 1.801819262 | F121: 1.051460973 | G121: 1.593452362 | H121: 0.144616412 | I121: 0.08397781055 | J121: 0.1291540552
B122: 916 | C122: Retten i Holbæk | D122: Kontor | E122: 3.439557075 | F122: 3.399462021 | G122: 3.419761221 | H122: 0.133564295 | I122: 0.1341753785 | J122: 0.136347918
B123: 916 | C123: Retten i Holbæk | D123: Elev | E123: 0.1900746386 | F123: 0.4111447985 | G123: 0.1896124706 | H123: 0.151992834 | I123: 0.131887508 | J123: 0.0721601998
B124: 916 | C124: Retten i Holbæk | D124: Fleks | E124: 0.9772101338 | F124: 0.6313291742 | G124: 0 | H124: 0.3257269395 | I124: 0.2381799015 | J124: 0
B125: 916 | C125: Retten i Holbæk | D125: Øvrige | E125: 2.326596541 | F125: 2.431918882 | G125: 1.468800137 | H125: 0.8776794391 | I125: 0.9470531652 | J125: 0.9311703258
B126: 916 | C126: Retten i Holbæk | D126: Samlet | E126: 8.73525765 | F126: 7.925315848 | G126: 6.671626191 | H126: 0.1936312096 | I126: 0.1715712256 | J126: 0.1519957668
D127: - ekskl. fleks og elever | E127: 7.567972878 | F127: 6.882841876 | G127: 6.48201372 | H127: 0.1852070905 | I127: 0.1702639505 | J127: 0.1476759365
B128: 917 | C128: Retten i Roskilde | D128: Jurister | E128: 1.445986128 | F128: 1.304585502 | G128: 1.150399745 | H128: 0.07494621949 | I128: 0.07016069492 | J128: 0.06057346536
B129: 917 | C129: Retten i Roskilde | D129: Kontor | E129: 4.702296064 | F129: 4.992296433 | G129: 5.052839787 | H129: 0.111251605 | I129: 0.1369416006 | J129: 0.1381879921
B130: 917 | C130: Retten i Roskilde | D130: Elev | E130: 0.3263616835 | F130: 0.2692628402 | G130: 0.09337966926 | H130: 0.1066036302 | I130: 0.06768731339 | J130: 0.02745782491
B131: 917 | C131: Retten i Roskilde | D131: Fleks | E131: 0.6445941077 | F131: 0.63256 | G131: 0 | H131: 0.8607212013 | I131: 1 | J131: 0
B132: 917 | C132: Retten i Roskilde | D132: Øvrige | E132: 2.19316 | F132: 2.3053 | G132: 2.163716655 | H132: 1 | I132: 1 | J132: 0.8748404562
B133: 917 | C133: Retten i Roskilde | D133: Samlet | E133: 9.312397982 | F133: 9.504004775 | G133: 8.460335857 | H133: 0.1378299924 | I133: 0.1533749785 | J133: 0.1349891535
D134: - ekskl. fleks og elever | E134: 8.341442191 | F134: 8.602181935 | G134: 8.366956187 | H134: 0.130837881 | I134: 0.1499808288 | J134: 0.1334992313
B135: 918 | C135: Retten i Hillerød | D135: Jurister | E135: 1.243913384 | F135: 1.084947268 | G135: 1.563523089 | H135: 0.08732096792 | I135: 0.07947801782 | J135: 0.111007121
B136: 918 | C136: Retten i Hillerød | D136: Kontor | E136: 3.681746673 | F136: 3.842103404 | G136: 2.829902157 | H136: 0.1529554663 | I136: 0.1669320652 | J136: 0.129851815
B137: 918 | C137: Retten i Hillerød | D137: Elev | E137: 0.05670782552 | F137: 0.04048004867 | G137: 0.01913789493 | H137: 0.0142391101 | I137: 0.01025735819 | J137: 0.006958905554
B138: 918 | C138: Retten i Hillerød | D138: Fleks | E138: 1.516586518 | F138: 1.028288541 | G138: 1.27348855 | H138: 0.5994152499 | I138: 0.4335641966 | J138: 0.4631473755
B139: 918 | C139: Retten i Hillerød | D139: Øvrige | E139: 2.605375024 | F139: 2.369828663 | G139: 2.640039345 | H139: 0.6044546942 | I139: 0.5100475138 | J139: 0.5205422521
B140: 918 | C140: Retten i Hillerød | D140: Samlet | E140: 9.104329424 | F140: 8.365647924 | G140: 8.326091036 | H140: 0.185277248 | I140: 0.1756333422 | J140: 0.1792496578
D141: - ekskl. fleks og elever | E141: 7.531035081 | F141: 7.296879335 | G141: 7.033464591 | H141: 0.1766757866 | I141: 0.1766235642 | J141: 0.1514211309
B142: 919 | C142: Retten i Helsingør | D142: Jurister | E142: 0.9689530348 | F142: 0.9459729892 | G142: 0.9159008137 | H142: 0.06888162768 | I142: 0.06977313415 | J142: 0.07056888174
B143: 919 | C143: Retten i Helsingør | D143: Kontor | E143: 3.437969586 | F143: 3.044827242 | G143: 2.957827742 | H143: 0.1410081716 | I143: 0.1291838529 | J143: 0.1286145709
B144: 919 | C144: Retten i Helsingør | D144: Elev | E144: 0.3669610329 | F144: 0.2679323428 | G144: 0.08709938576 | H144: 0.0986852314 | I144: 0.08428593447 | J144: 0.03153478292
B145: 919 | C145: Retten i Helsingør | D145: Fleks | E145: 1.876253107 | F145: 1.640880733 | G145: 1.537935171 | H145: 0.5305680518 | I145: 0.3795505972 | J145: 0.4958937656
B146: 919 | C146: Retten i Helsingør | D146: Øvrige | E146: 2.206276124 | F146: 2.072315453 | G146: 1.808054642 | H146: 0.8945402265 | I146: 0.963733178 | J146: 0.9714926262
B147: 919 | C147: Retten i Helsingør | D147: Samlet | E147: 8.856412884 | F147: 7.97192876 | G147: 7.306817754 | H147: 0.1838594629 | I147: 0.1704134393 | J147: 0.1672006624
D148: - ekskl. fleks og elever | E148: 6.613198744 | F148: 6.063115684 | G148: 5.681783198 | H148: 0.1616339655 | I148: 0.1543647155 | J148: 0.1300152742
B149: 920 | C149: Retten i Lyngby | D149: Jurister | E149: 0.7857969043 | F149: 0.9969027618 | G149: 1.068192647 | H149: 0.04916399016 | I149: 0.05607571026 | J149: 0.05985932495
B150: 920 | C150: Retten i Lyngby | D150: Kontor | E150: 5.47707255 | F150: 4.703035228 | G150: 4.473383298 | H150: 0.1856478692 | I150: 0.1628084129 | J150: 0.1490893199
B151: 920 | C151: Retten i Lyngby | D151: Elev | E151: 0.5986310517 | F151: 0.5239602577 | G151: 0.7498136004 | H151: 0.2028082202 | I151: 0.1689970867 | J151: 0.3146880877
B152: 920 | C152: Retten i Lyngby | D152: Fleks | E152: 0 | F152: 0 | G152: 0.04389274465 | H152: 0 | I152: 0 | J152: 0.0477178038
B153: 920 | C153: Retten i Lyngby | D153: Øvrige | E153: 3.056006971 | F153: 3.100286659 | G153: 2.97377084 | H153: 0.8673410979 | I153: 0.9705106791 | J153: 0.9802229041
B154: 920 | C154: Retten i Lyngby | D154: Samlet | E154: 9.917507477 | F154: 9.324184907 | G154: 9.30905313 | H154: 0.1908652173 | I154: 0.1760621233 | J154: 0.1717978066
D155: - ekskl. fleks og elever | E155: 9.318876425 | F155: 8.800224649 | G155: 8.515346785 | H155: 0.1901459163 | I155: 0.1765014505 | J155: 0.1571500216
B156: 921 | C156: Retten i Glostrup | D156: Jurister | E156: 1.976877337 | F156: 1.829884394 | G156: 2.10505699 | H156: 0.06395790154 | I156: 0.05967058432 | J156: 0.07058773987
B157: 921 | C157: Retten i Glostrup | D157: Kontor | E157: 9.191330202 | F157: 7.060785296 | G157: 7.207998896 | H157: 0.1543165823 | I157: 0.1239264102 | J157: 0.1281859567
B158: 921 | C158: Retten i Glostrup | D158: Elev | E158: 0.1930422244 | F158: 0.2764162661 | G158: 0.7063918506 | H158: 0.03950877074 | I158: 0.0771493987 | J158: 0.1566022095
B159: 921 | C159: Retten i Glostrup | D159: Fleks | E159: 0.8843131411 | F159: 1.00003 | G159: 1.00003 | H159: 0.3842801389 | I159: 0.5 | J159: 0.5
B160: 921 | C160: Retten i Glostrup | D160: Øvrige | E160: 4.227104527 | F160: 3.950147963 | G160: 4.150775125 | H160: 0.7581556714 | I160: 0.8858244166 | J160: 0.9228497448
B161: 921 | C161: Retten i Glostrup | D161: Samlet | E161: 16.47266743 | F161: 14.11726392 | G161: 15.17025286 | H161: 0.1595673049 | I161: 0.1445192868 | J161: 0.1562956998
D162: - ekskl. fleks og elever | E162: 15.39531207 | F162: 12.84081765 | G162: 13.46383101 | H162: 0.1602909111 | I162: 0.1394204999 | J162: 0.1387148196
B163: 922 | C163: Retten på Frederiksberg | D163: Jurister | E163: 2.003515108 | F163: 1.84485761 | G163: 0.9223506766 | H163: 0.08060602351 | I163: 0.07961948914 | J163: 0.04023580369
B164: 922 | C164: Retten på Frederiksberg | D164: Kontor | E164: 5.812512206 | F164: 6.12114608 | G164: 5.126606382 | H164: 0.1352885021 | I164: 0.1422433356 | J164: 0.1253132187
B165: 922 | C165: Retten på Frederiksberg | D165: Elev | E165: 0.3907372396 | F165: 0.7052810482 | G165: 0.339337124 | H165: 0.09768040268 | I165: 0.1860899863 | J165: 0.0853951134
B166: 922 | C166: Retten på Frederiksberg | D166: Fleks | E166: 0.02199959582 | F166: 0.008425466268 | G166: 0.1173175813 | H166: 0.007592560473 | I166: 0.002808404504 | J166: 0.03898876418
B167: 922 | C167: Retten på Frederiksberg | D167: Øvrige | E167: 4.0764034 | F167: 4.201266193 | G167: 4.9042122 | H167: 0.8896248494 | I167: 0.8373025843 | J167: 0.8219965405
B168: 922 | C168: Retten på Frederiksberg | D168: Samlet | E168: 12.30516755 | F168: 12.8809764 | G168: 11.40982396 | H168: 0.1551736831 | I168: 0.165116252 | J168: 0.1485984445
D169: - ekskl. fleks og elever | E169: 11.89243071 | F169: 12.16726988 | G169: 10.95316926 | H169: 0.164256372 | I169: 0.1708371069 | J169: 0.1426510978
B170: 923 | C170: Københavns Byret | D170: Jurister | E170: 3.137716958 | F170: 3.131295518 | G170: 3.981888792 | H170: 0.05389042113 | I170: 0.05458763064 | J170: 0.06750656296
B171: 923 | C171: Københavns Byret | D171: Kontor | E171: 29.50634781 | F171: 31.82381174 | G171: 23.01056656 | H171: 0.2668122016 | I171: 0.2952026571 | J171: 0.2065786318
B172: 923 | C172: Københavns Byret | D172: Elev | E172: 0.4164350414 | F172: 0.925887551 | G172: 1.12192377 | H172: 0.05640007657 | I172: 0.1264517842 | J172: 0.1696165785
B173: 923 | C173: Københavns Byret | D173: Fleks | E173: 0.01411136758 | F173: 0 | G173: 0 | H173: 0.3293970024 | I173: 0 | J173: 0
B174: 923 | C174: Københavns Byret | D174: Øvrige | E174: 6.370656869 | F174: 6.182050352 | G174: 5.079668232 | H174: 0.7147208185 | I174: 0.6800965408 | J174: 0.5524044464
B175: 923 | C175: Københavns Byret | D175: Samlet | E175: 39.44526805 | F175: 42.06304516 | G175: 33.19404735 | H175: 0.213042176 | I175: 0.2316527362 | J175: 0.1782861169
D176: - ekskl. fleks og elever | E176: 39.01472164 | F176: 41.13715761 | G176: 32.07212358 | H176: 0.2195217943 | I176: 0.2360731743 | J176: 0.1722602343
B177: 924 | C177: Retten på Bornholm | D177: Jurister | E177: 1.35530922 | F177: 0.7195838965 | G177: 1.041507875 | H177: 0.3928136487 | I177: 0.2153295239 | J177: 0.3216674929
B178: 924 | C178: Retten på Bornholm | D178: Kontor | E178: 1.270917261 | F178: 1.276015415 | G178: 2.015072438 | H178: 0.1896642323 | I178: 0.1912587726 | J178: 0.2842477984
B179: 924 | C179: Retten på Bornholm | D179: Elev | E179: 0.2775175468 | F179: 0.4718203074 | G179: 0.6216053409 | H179: 0.1451003857 | I179: 0.2478789908 | J179: 0.282118293
B180: 924 | C180: Retten på Bornholm | D180: Fleks | E180: 0 | F180: 0 | G180: 0 | H180: 0 | I180: 0 | J180: 0
B181: 924 | C181: Retten på Bornholm | D181: Øvrige | E181: 1.74417395 | F181: 1.636059882 | G181: 1.50998774 | H181: 0.9616237635 | I181: 0.9932429662 | J181: 0.9970403775
B182: 924 | C182: Retten på Bornholm | D182: Samlet | E182: 4.647917977 | F182: 4.103479501 | G182: 5.188173394 | H182: 0.3349244913 | I182: 0.30252568 | J182: 0.3694017284
D183: - ekskl. fleks og elever | E183: 4.37040043 | F183: 3.631659194 | G183: 4.566568054 | H183: 0.3652678355 | I183: 0.3114459578 | J183: 0.3251429749
B185: 1) I opgørelsen er årsværksforbrug under kategorierne "ledelse og administration", "hjælpefunktioner" og "transporttid" henført under generel ledelse og administration mv.

Sheet Aktivitet
B2: AKTIVITET VED RETTEN MÅLT SOM VÆGTEDE AFSLUTTEDE SAGER
D4: Samlet | F4: Straffesager | H4: Civile sager | J4: Øvrige Fogedsager | L4: Tvangsauktionssager | N4: Insolvensskiftesager | P4: Dødsboskiftesager | R4: Notarialforretninger
D5: =Overblik!$D$6 -> 2016 | E5: =Overblik!$E$6 -> 2017 | F5: =Overblik!$D$6 -> 2016 | G5: =Overblik!$E$6 -> 2017 | H5: =Overblik!$D$6 -> 2016 | I5: =Overblik!$E$6 -> 2017 | J5: =Overblik!$D$6 -> 2016 | K5: =Overblik!$E$6 -> 2017 | L5: =Overblik!$D$6 -> 2016 | M5: =Overblik!$E$6 -> 2017 | N5: =Overblik!$D$6 -> 2016 | O5: =Overblik!$E$6 -> 2017 | P5: =Overblik!$D$6 -> 2016 | Q5: =Overblik!$E$6 -> 2017 | R5: =Overblik!$D$6 -> 2016 | S5: =Overblik!$E$6 -> 2017
C7: SAMLET BYRETTERNE | D7: =SUM(D9:D32) -> 719772.3446 | E7: =SUM(E9:E32) -> 716276.7676 | F7: 173159.985 | G7: 174501.9075 | H7: 53678.74857 | I7: 51585.28687 | J7: 316507.8426 | K7: 332425.1998 | L7: 7252.644262 | M7: 8764.50688 | N7: 15845.70485 | O7: =SUM(O9:O32) -> 14953.71172 | P7: 53731.63098 | Q7: =SUM(Q9:Q32) -> 53201.63033 | R7: =SUM(R9:R32) -> 71824 | S7: =SUM(S9:S32) -> 80554.99961
B8: EID | C8: Ret
B9: 901 | C9: Retten i Hjørring | D9: 23849.6503 | E9: 23615.728 | F9: 4169.447266 | G9: 4161.699219 | H9: 1852.970581 | I9: 1695.258179 | J9: 12277.28052 | K9: 13827.80908 | L9: 497.6189728 | M9: 486.8047638 | N9: 757.6670227 | O9: 724.143692 | P9: 2194.213593 | Q9: 2192.915863 | R9: 1310 | S9: 1716.999939
B10: 902 | C10: Retten i Aalborg | D10: 36227.16996 | E10: 34934.54309 | F10: 7484.606445 | G10: 7330.288086 | H10: 2961.726074 | I10: 2467.396729 | J10: 15556.61963 | K10: 17943.50977 | L10: 368.4898529 | M10: 443.7893066 | N10: 991.256073 | O10: 1078.292847 | P10: 3041.189026 | Q10: 2919.64386 | R10: 3356 | S10: 3575.000015
B11: 903 | C11: Retten i Randers | D11: 22802.65069 | E11: 21713.92795 | F11: 4233.500732 | G11: 4278.299927 | H11: 1664.395813 | I11: 1511.667084 | J11: 10917.89795 | K11: 10669.49609 | L11: 329.8144989 | M11: 305.6825409 | N11: 868.677002 | O11: 724.5636749 | P11: 2217.64505 | Q11: 2228.511108 | R11: 1625 | S11: 2041.000008
B12: 904 | C12: Retten i Århus | D12: 37378.39655 | E12: 37632.03244 | F12: 8559.574951 | G12: 9651.52417 | H12: 2848.392273 | I12: 2366.866821 | J12: 14367.16357 | K12: 17328.76318 | L12: 183.4085159 | M12: 207.1888428 | N12: 1360.134277 | O12: 1233.332428 | P12: 2657.811523 | Q12: 2568.61322 | R12: 5438 | S12: 5943.000122
B13: 905 | C13: Retten i Viborg | D13: 24378.14618 | E13: 23381.60826 | F13: 4414.483643 | G13: 4454.597412 | H13: 1987.472412 | I13: 1753.092773 | J13: 11404.53979 | K13: 11629.24658 | L13: 332.8340302 | M13: 286.1830597 | N13: 856.0720825 | O13: 801.4689941 | P13: 2069.361115 | Q13: 2105.447906 | R13: 1862 | S13: 2532.999893
B14: 906 | C14: Retten i Holstebro | D14: 15763.0992 | E14: 16385.49788 | F14: 3475.548096 | G14: 3364.567871 | H14: 984.9730835 | I14: 1025.081726 | J14: 7500.04126 | K14: 8467.656738 | L14: 266.2440338 | M14: 295.1556244 | N14: 480.0721741 | O14: 514.7563934 | P14: 1610.612335 | Q14: 1758.696899 | R14: 1586 | S14: 1712.000023
B15: 907 | C15: Retten i Herning | D15: 18935.37905 | E15: 19241.98648 | F15: 4055.769775 | G15: 4437.78064 | H15: 1364.775635 | I15: 1330.362549 | J15: 8609.809326 | K15: 8934.416016 | L15: 177.1637039 | M15: 214.3439484 | N15: 604.0896454 | O15: 552.9547424 | P15: 1713.509399 | Q15: 1620.269257 | R15: 1694 | S15: 2024.999962
B16: 908 | C16: Retten i Horsens | D16: 20287.69824 | E16: 19388.38326 | F16: 4223.640259 | G16: 3533.744629 | H16: 1618.176758 | I16: 1696.78772 | J16: 8507.175293 | K16: 8273.311523 | L16: 231.5265579 | M16: 315.2118835 | N16: 646.7272186 | O16: 642.3245087 | P16: 1649.397125 | Q16: 1505.567719 | R16: 1718 | S16: 2208.999954
B17: 909 | C17: Retten i Kolding | D17: 34888.44795 | E17: 35213.28107 | F17: 8152.971191 | G17: 8225.305908 | H17: 2521.298279 | I17: 2652.802063 | J17: 16280.19922 | K17: 16288.91504 | L17: 362.0380249 | M17: 416.5181122 | N17: 920.895752 | O17: 836.8509827 | P17: 2532.840515 | Q17: 2464.22168 | R17: 3588 | S17: 4060
B18: 910 | C18: Retten i Esbjerg | D18: 22695.35908 | E18: 22098.84325 | F18: 5514.773682 | G18: 5657.842285 | H18: 1355.437714 | I18: 1244.859314 | J18: 11683.93506 | K18: 11488.60547 | L18: 273.0761719 | M18: 330.1954498 | N18: 618.2599182 | O18: 591.7672577 | P18: 1961.998749 | Q18: 1785.22464 | R18: 1792 | S18: 1913
B19: 911 | C19: Retten i Sønderborg | D19: 28945.12059 | E19: 29121.37608 | F19: 7616.452393 | G19: 7882.26416 | H19: 1597.039978 | I19: 1665.705139 | J19: 14693.34863 | K19: 14103.22559 | L19: 412.1755829 | M19: 477.1868896 | N19: 751.6735382 | O19: 660.7237091 | P19: 2320.663025 | Q19: 2288.850525 | R19: 2126 | S19: 2356.999985
B20: 912 | C20: Retten i Odense | D20: 37444.64632 | E20: 38729.77985 | F20: 9610.365479 | G20: 9173.661133 | H20: 2316.096741 | I20: 2569.873962 | J20: 17400.13477 | K20: 20371.56152 | L20: 389.3666077 | M20: 414.9350586 | N20: 1014.782288 | O20: 927.2755432 | P20: 2986.911987 | Q20: 3076.216003 | R20: 3121 | S20: 3447.999939
B21: 913 | C21: Retten i Svendborg | D21: 16943.26185 | E21: 18340.45818 | F21: 3465.902588 | G21: 3980.899902 | H21: 1178.182098 | I21: 1158.554535 | J21: 7971.408447 | K21: 8480.197754 | L21: 293.8019257 | M21: 316.6490021 | N21: 532.3309021 | O21: 574.9624634 | P21: 1693.400848 | Q21: 2038.416138 | R21: 1114 | S21: 1281.999969
B22: 914 | C22: Retten i Nykøbing F. | D22: 25020.52369 | E22: 25116.74747 | F22: 6326.228027 | G22: 5885.332764 | H22: 1399.105438 | I22: 1432.59903 | J22: 12514.91235 | K22: 14347.50781 | L22: 641.6552124 | M22: 780.2901001 | N22: 587.4555206 | O22: 539.5553589 | P22: 2206.368256 | Q22: 2169.487885 | R22: 928 | S22: 1136.999977
B23: 915 | C23: Retten i Næstved | D23: 29845.86863 | E23: 33138.15842 | F23: 6750.771973 | G23: 7679.4729 | H23: 2009.005249 | I23: 2096.513916 | J23: 15171.40234 | K23: 18116.34229 | L23: 406.374649 | M23: 639.309021 | N23: 878.0904846 | O23: 920.6660767 | P23: 2345.486023 | Q23: 2459.489563 | R23: 1885 | S23: 2096.999985
B24: 916 | C24: Retten i Holbæk | D24: 20347.13001 | E24: 19915.47722 | F24: 3636.360718 | G24: 3451.251343 | H24: 1486.134552 | I24: 1440.346893 | J24: 11006.69409 | K24: 11940.73706 | L24: 470.091629 | M24: 450.1526031 | N24: 707.905304 | O24: 612.5605164 | P24: 1739.030212 | Q24: 1738.810242 | R24: 1258 | S24: 1654.000053
B25: 917 | C25: Retten i Roskilde | D25: 37394.33167 | E25: 36178.67813 | F25: 7071.054932 | G25: 7587.369385 | H25: 3240.323547 | I25: 2837.005981 | J25: 15793.91602 | K25: 16104.32031 | L25: 387.4026337 | M25: 457.4829102 | N25: 1348.040802 | O25: 1208.985321 | P25: 2740.115784 | Q25: 2671.967834 | R25: 3025 | S25: 3437.000046
B26: 918 | C26: Retten i Hillerød | D26: 23771.17775 | E26: 23486.99706 | F26: 5803.474365 | G26: 5578.423462 | H26: 1692.437256 | I26: 1658.713562 | J26: 9151.660889 | K26: 9482.888184 | L26: 271.5517578 | M26: 466.9835815 | N26: 804.859375 | O26: 749.4545441 | P26: 1726.358215 | Q26: 1721.39328 | R26: 1932 | S26: 2414.000031
B27: 919 | C27: Retten i Helsingør | D27: 21518.6286 | E27: 20496.59142 | F27: 4153.791992 | G27: 3917.590698 | H27: 1763.606384 | I27: 1634.508179 | J27: 9582.68335 | K27: 9307.266602 | L27: 260.6145935 | M27: 367.2591095 | N27: 708.9175873 | O27: 680.0417633 | P27: 1761.595398 | Q27: 1731.751434 | R27: 1721 | S27: 1794.999939
B28: 920 | C28: Retten i Lyngby | D28: 31135.34797 | E28: 29635.20943 | F28: 8539.825439 | G28: 7376.595947 | H28: 2624.686401 | I28: 2683.794128 | J28: 9034.325928 | K28: 8598.964111 | L28: 123.7978096 | M28: 277.3869553 | N28: 104.4866333 | O28: 92.69241905 | P28: 2491.725952 | Q28: 2464.64212 | R28: 8311 | S28: 9599.999878
B29: 921 | C29: Retten i Glostrup | D29: 52371.88398 | E29: 49521.99481 | F29: 13377.40576 | G29: 12324.59668 | H29: 4087.158081 | I29: 3818.697266 | J29: 27198.11328 | K29: 27324.58496 | L29: 231.3214188 | M29: 219.9447174 | N29: 61.95823479 | O29: 59.62018776 | P29: 3873.7323 | Q29: 3807.779419 | R29: 3991 | S29: 4573.000092
B30: 922 | C30: Retten på Frederiksberg | D30: 39277.5586 | E30: 38884.15705 | F30: 10871.29468 | G30: 11887.15088 | H30: 3038.708984 | I30: 2532.234741 | J30: 17962.53857 | K30: 19236.4292 | L30: 114.1799393 | M30: 180.2424698 | N30: 40.91581345 | O30: 32.73265171 | P30: 2718.878967 | Q30: 2512.882324 | R30: 3894 | S30: 4135.999878
B31: 923 | C31: Københavns Byret | D31: 94654.61429 | E31: 96339.96974 | F31: 30814.46191 | G31: 31963.63184 | H31: 7874.741211 | I31: 8087.431885 | J31: 30184.80762 | K31: 28486.51172 | L31: 177.0757904 | M31: 359.6644287 | N31: 54.9440937 | O31: 67.80335045 | P31: 2951.102722 | Q31: 2788.440247 | R31: 14263 | S31: 14523.99994
B32: 924 | C32: Retten på Bornholm | D32: 3896.25339 | E32: 3765.34103 | F32: 838.278656 | G32: 718.0162659 | H32: 211.9040298 | I32: 225.1326904 | J32: 1737.23468 | K32: 1672.933228 | L32: 51.0203495 | M32: 55.94650078 | N32: 145.4931068 | O32: 126.1822929 | P32: 527.6828613 | Q32: 582.3911667 | R32: 286 | S32: 372.9999886
B34: 1) Vægtningen på tværs af sagstyper betyder, at antallet af vægtede sager inden for de enkelte sagområder ikke summer op til det samlede antal vægtede sager.

Sheet Målopf.Straf
B2: MÅLOPFYLDELSE STRAFFESAGER (PROCENT)
D4: Alle alm. straffesager | F4: Nævninge- og domsmandssager (hfh.) | H4: Tilståelsessager og sager uden domsmænd (hfh) | J4: Voldssager | L4: Voldtægtssager
D5: =Overblik!$D$6 -> 2016 | E5: =Overblik!$E$6 -> 2017 | F5: =Overblik!$D$6 -> 2016 | G5: =Overblik!$E$6 -> 2017 | H5: =Overblik!$D$6 -> 2016 | I5: =Overblik!$E$6 -> 2017 | J5: =Overblik!$D$6 -> 2016 | K5: =Overblik!$E$6 -> 2017 | L5: =Overblik!$D$6 -> 2016 | M5: =Overblik!$E$6 -> 2017
D6: <2 MDR. | F6: <4 MDR. | H6: <4 MDR. | J6: <37 DG. | L6: <37 DG.
C8: MÅL (procent) | D8: 80 pct. | F8: 74 pct. | G8: 77 pct. | H8: 76 pct. | I8: 78 pct.
C9: SAMLET BYRETTERNE | D9: 79.01120822 | E9: 79.57291769 | F9: 64.04759443 | G9: 63.7697757 | H9: 66.45304825 | I9: 68.67560323 | J9: 43.42948718 | K9: 40.17521902 | L9: 28.68217054 | M9: 29.03225806
C10: 5. BEDSTE RET | D10: 83.96150703 | E10: 83.92266909 | F10: 77.06832273 | G10: 75.88535556 | H10: 85.87924145 | I10: 86.02460582 | J10: 57.14285714 | K10: 55 | L10: 50 | M10: 45.45454545
B11: EID | C11: Ret
B12: 901 | C12: Retten i Hjørring | D12: 84.9558278 | E12: 81.60154725 | F12: 77.06832273 | G12: 72.26898294 | H12: 83.77873342 | I12: 82.60149631 | J12: 68.29268293 | K12: 34.61538462 | L12: 35 | M12: 20
B13: 902 | C13: Retten i Aalborg | D13: 80.40935593 | E13: 79.113223 | F13: 69.35850843 | G13: 62.65235392 | H13: 74.93971606 | I13: 65.63530469 | J13: 50 | K13: 29.16666667 | L13: 50 | M13: 0
B14: 903 | C14: Retten i Randers | D14: 79.04818693 | E14: 81.01053278 | F14: 70.53979573 | G14: 73.52348829 | H14: 79.78781175 | I14: 78.71210787 | J14: 37.5 | K14: 42.85714286 | L14: 33.33333333 | M14: 33.33333333
B15: 904 | C15: Retten i Århus | D15: 75.89711323 | E15: 75.05794465 | F15: 56.17032025 | G15: 59.97730346 | H15: 56.85574739 | I15: 42.89690429 | J15: 40.54054054 | K15: 32.43243243 | L15: 0 | M15: 23.07692308
B16: 905 | C16: Retten i Viborg | D16: 80.57982721 | E16: 77.97110939 | F16: 63.7915905 | G16: 63.84138517 | H16: 72.98020219 | I16: 64.0010852 | J16: 37.5 | K16: 52.63157895 | L16: 0 | M16: 42.85714286
B17: 906 | C17: Retten i Holstebro | D17: 89.37549135 | E17: 78.00787915 | F17: 85.65224205 | G17: 83.50265038 | H17: 90.87071844 | I17: 89.2452089 | J17: 56 | K17: 53.33333333 | L17: 50 | M17: 18.18181818
B18: 907 | C18: Retten i Herning | D18: 77.78199242 | E18: 76.63818436 | F18: 76.50553702 | G18: 76.42612365 | H18: 76.03460563 | I18: 81.03494315 | J18: 42.85714286 | K18: 36.36363636 | L18: 0 | M18: 0
B19: 908 | C19: Retten i Horsens | D19: 72.40768546 | E19: 72.26412391 | F19: 57.40589625 | G19: 69.19229755 | H19: 72.54003653 | I19: 77.90255061 | J19: 20 | K19: 27.02702703 | L19: 60 | M19: 75
B20: 909 | C20: Retten i Kolding | D20: 77.84847063 | E20: 79.45072964 | F20: 54.33374332 | G20: 59.18588893 | H20: 49.26592907 | I20: 54.58580829 | J20: 53.84615385 | K20: 64.1025641 | L20: - | M20: 100
B21: 910 | C21: Retten i Esbjerg | D21: 73.22339073 | E21: 78.73853522 | F21: 60.18510621 | G21: 60.12695908 | H21: 69.13554305 | I21: 79.03637084 | J21: 60.71428571 | K21: 59.45945946 | L21: 75 | M21: 0
B22: 911 | C22: Retten i Sønderborg | D22: 82.65916873 | E22: 57.35398651 | F22: 80.63937292 | G22: 68.11890594 | H22: 86.57125534 | I22: 86.19371091 | J22: 26.66666667 | K22: 25.53191489 | L22: 0 | M22: 44.44444444
B23: 912 | C23: Retten i Odense | D23: 83.81527118 | E23: 85.44937011 | F23: 74.51040472 | G23: 75.43861678 | H23: 85.87924145 | I23: 86.02460582 | J23: 31.11111111 | K23: 34.61538462 | L23: 23.52941176 | M23: 0
B24: 913 | C24: Retten i Svendborg | D24: 72.54248408 | E24: 73.0985654 | F24: 59.42987965 | G24: 49.5495846 | H24: 48.0034467 | I24: 55.6968157 | J24: 35.29411765 | K24: 41.17647059 | L24: 9.090909091 | M24: 50
B25: 914 | C25: Retten i Nykøbing F. | D25: 83.96150703 | E25: 86.62919046 | F25: 74.42945287 | G25: 82.01814816 | H25: 83.17332895 | I25: 82.89383258 | J25: 46.875 | K25: 27.02702703 | L25: 50 | M25: 45.45454545
B26: 915 | C26: Retten i Næstved | D26: 77.29796193 | E26: 83.92266909 | F26: 65.87990831 | G26: 54.11244625 | H26: 44.45933495 | I26: 64.53664624 | J26: 57.14285714 | K26: 52.17391304 | L26: 45.45454545 | M26: 40
B27: 916 | C27: Retten i Holbæk | D27: 86.30300652 | E27: 82.31750347 | F27: 86.48612143 | G27: 75.88535556 | H27: 89.25510918 | I27: 92.88869823 | J27: 27.77777778 | K27: 50 | L27: 0 | M27: 0
B28: 917 | C28: Retten i Roskilde | D28: 75.07333203 | E28: 75.83615534 | F28: 51.84858243 | G28: 57.13160624 | H28: 61.79171721 | I28: 60.08826849 | J28: 35.29411765 | K28: 28.57142857 | L28: 0 | M28: 0
B29: 918 | C29: Retten i Hillerød | D29: 80.10322926 | E29: 78.25497465 | F29: 62.85137804 | G29: 55.10759073 | H29: 61.65455766 | I29: 47.33110212 | J29: 52.63157895 | K29: 33.33333333 | L29: 0 | M29: 0
B30: 919 | C30: Retten i Helsingør | D30: 63.95004354 | E30: 73.14248317 | F30: 45.44375022 | G30: 68.86496331 | H30: 47.64729508 | I30: 63.86837894 | J30: 30 | K30: 55 | L30: 16.66666667 | M30: 40
B31: 920 | C31: Retten i Lyngby | D31: 82.82307148 | E31: 87.37779631 | F31: 59.91327552 | G31: 74.43950604 | H31: 70.97482649 | I31: 77.38997551 | J31: 75 | K31: 76.92307692 | L31: 50 | M31: 100
B32: 921 | C32: Retten i Glostrup | D32: 74.01707927 | E32: 73.97021104 | F32: 52.73283354 | G32: 57.96651075 | H32: 40.08433784 | I32: 43.02074028 | J32: 38.88888889 | K32: 27.5 | L32: 12.5 | M32: 16.66666667
B33: 922 | C33: Retten på Frederiksberg | D33: 78.5661281 | E33: 80.60360637 | F33: 60.40000947 | G33: 47.31281239 | H33: 48.72494028 | I33: 43.19083645 | J33: 46.875 | K33: 22.5 | L33: 33.33333333 | M33: 45.45454545
B34: 923 | C34: Københavns Byret | D34: 79.52997072 | E34: 83.15412089 | F34: 56.24450048 | G34: 60.00357254 | H34: 61.86056201 | I34: 69.16681122 | J34: 32.43243243 | K34: 37.03703704 | L34: 20 | M34: 25
B35: 924 | C35: Retten på Bornholm | D35: 91.17327649 | E35: 90.34311294 | F35: 96.0386551 | G35: 96.99207189 | H35: 92.02768551 | I35: 95.10959032 | J35: 66.66666667 | K35: 100 | L35: - | M35: -
B37: 1) Målene for de enkelte sagstyper er opstillet i samarbejde med byretterne. De aktuelle mål trådte i kraft 1. januar 2015. Sammensatte mål i 2016 og 2017 er vægtet på baggrund af den fordeling af sagerne, retterne havde for alle byretter i 2014. Målene for voldssager og voldtægtssager er fastsat eksternt.

Sheet Målopf.Civil
B2: MÅLOPFYLDELSE CIVILE SAGER (PROCENT)
D4: Alle alm. sager, boligsager, småsager og forbud/påbudssager | F4: Hfh. almindelige sager og boligsager | H4: Hfh. småsager | J4: Alle forældreansvars- og ægtefællesager
D5: =Overblik!$D$6 -> 2016 | E5: =Overblik!$E$6 -> 2017 | F5: =Overblik!$D$6 -> 2016 | G5: =Overblik!$E$6 -> 2017 | H5: =Overblik!$D$6 -> 2016 | I5: =Overblik!$E$6 -> 2017 | J5: =Overblik!$D$6 -> 2016 | K5: =Overblik!$E$6 -> 2017
D6: <6 MDR. | F6: <15 MDR. | H6: <9 MDR. | J6: <6 MDR.
C8: MÅL (procent) | D8: 73 pct. | E8: 76 pct. | F8: 64 pct. | G8: 67 pct. | H8: 67 pct. | I8: 69 pct. | J8: 80 pct.
C9: SAMLET BYRETTERNE | D9: 68.80649693 | E9: 69.1239646 | F9: 61.79347998 | G9: 67.18380174 | H9: 65.61711942 | I9: 63.27683616 | J9: 76.97237796 | K9: 75.56355886
C10: 5. BEDSTE RET | D10: 74.70432702 | E10: 76.43372703 | F10: 69.95490545 | G10: 80.85038899 | H10: 82.92682927 | I10: 88.88888889 | J10: 87.80279418 | K10: 84.52493851
B11: EID | C11: Ret
B12: 901 | C12: Retten i Hjørring | D12: 73.72327695 | E12: 79.10061838 | F12: 54.98865962 | G12: 79.40344079 | H12: 78.17890909 | I12: 73.80952381 | J12: 80.26930044 | K12: 71.95031363
B13: 902 | C13: Retten i Aalborg | D13: 73.84742049 | E13: 71.86186112 | F13: 55.72267244 | G13: 69.88766156 | H13: 69.09090909 | I13: 55.35714286 | J13: 75.14641326 | K13: 79.33416303
B14: 903 | C14: Retten i Randers | D14: 67.85292972 | E14: 65.09317549 | F14: 62.26935772 | G14: 61.52493517 | H14: 65.28111111 | I14: 58.33333333 | J14: 80.00109584 | K14: 68.8028408
B15: 904 | C15: Retten i Århus | D15: 63.77733321 | E15: 57.44573064 | F15: 57.73576726 | G15: 68.92168094 | H15: 62.36645161 | I15: 34.88372093 | J15: 78.58549939 | K15: 69.38348098
B16: 905 | C16: Retten i Viborg | D16: 68.3959251 | E16: 68.66104631 | F16: 61.69917325 | G16: 72.13947572 | H16: 73.47204082 | I16: 68.35443038 | J16: 75.00319248 | K16: 76.68470002
B17: 906 | C17: Retten i Holstebro | D17: 77.93560894 | E17: 82.24433054 | F17: 79.36326252 | G17: 74.45303972 | H17: 93.02162791 | I17: 96.875 | J17: 84.23981601 | K17: 91.28430648
B18: 907 | C18: Retten i Herning | D18: 75.71570946 | E18: 76.71250779 | F18: 60.1300969 | G18: 73.03439485 | H18: 90.91272727 | I18: 92.59259259 | J18: 75.86728467 | K18: 81.83345516
B19: 908 | C19: Retten i Horsens | D19: 66.22440247 | E19: 66.90220812 | F19: 67.84441505 | G19: 46.51882932 | H19: 63.15684211 | I19: 60.71428571 | J19: 79.13654372 | K19: 65.58361047
B20: 909 | C20: Retten i Kolding | D20: 70.57797038 | E20: 73.92535275 | F20: 61.91768777 | G20: 72.86442192 | H20: 77.14028571 | I20: 72.4137931 | J20: 87.98320259 | K20: 84.52493851
B21: 910 | C21: Retten i Esbjerg | D21: 67.84256789 | E21: 70.50841289 | F21: 55.31276129 | G21: 61.81961636 | H21: 73.17317073 | I21: 52 | J21: 76.97406187 | K21: 61.22945199
B22: 911 | C22: Retten i Sønderborg | D22: 73.10525468 | E22: 63.92730226 | F22: 72.93563834 | G22: 55.66887182 | H22: 69.38367347 | I22: 65.75342466 | J22: 82.34496967 | K22: 75.18030821
B23: 912 | C23: Retten i Odense | D23: 74.15324344 | E23: 75.56983458 | F23: 64.567476 | G23: 81.22348414 | H23: 76.18857143 | I23: 85.24590164 | J23: 71.9896664 | K23: 83.36131263
B24: 913 | C24: Retten i Svendborg | D24: 71.14465317 | E24: 67.54519701 | F24: 59.70124709 | G24: 83.85424954 | H24: 61.53846154 | I24: 53.57142857 | J24: 88.54573393 | K24: 84.88516852
B25: 914 | C25: Retten i Nykøbing F. | D25: 76.45943308 | E25: 76.14286765 | F25: 74.57827181 | G25: 80.85038899 | H25: 93.7478125 | I25: 92.59259259 | J25: 87.80279418 | K25: 86.75485388
B26: 915 | C26: Retten i Næstved | D26: 74.70432702 | E26: 72.84071142 | F26: 62.43753403 | G26: 73.88226616 | H26: 77.77777778 | I26: 80 | J26: 81.74231702 | K26: 82.97270501
B27: 916 | C27: Retten i Holbæk | D27: 72.97406031 | E27: 76.43372703 | F27: 63.69086114 | G27: 81.82677947 | H27: 82.92682927 | I27: 88.88888889 | J27: 89.8834533 | K27: 83.01592918
B28: 917 | C28: Retten i Roskilde | D28: 64.96936607 | E28: 67.63870872 | F28: 62.11221181 | G28: 67.50043833 | H28: 51.78955357 | I28: 71.76470588 | J28: 63.24664982 | K28: 55.32523545
B29: 918 | C29: Retten i Hillerød | D29: 73.62578972 | E29: 71.37132786 | F29: 64.67922356 | G29: 63.0212128 | H29: 72.002 | I29: 67.35102041 | J29: 87.32373231 | K29: 82.04304691
B30: 919 | C30: Retten i Helsingør | D30: 66.96400384 | E30: 67.80996892 | F30: 60.52608585 | G30: 60.30184209 | H30: 46.55 | I30: 74.36153846 | J30: 73.79129802 | K30: 71.9032774
B31: 920 | C31: Retten i Lyngby | D31: 67.05907126 | E31: 70.18242873 | F31: 69.95490545 | G31: 70.41472189 | H31: 61.40350877 | I31: 61.11388889 | J31: 78.1020097 | K31: 67.89617064
B32: 921 | C32: Retten i Glostrup | D32: 69.8187143 | E32: 70.61429577 | F32: 57.52252059 | G32: 51.77269611 | H32: 54.62888889 | I32: 67.70833333 | J32: 76.64196725 | K32: 82.15777623
B33: 922 | C33: Retten på Frederiksberg | D33: 63.23834815 | E33: 68.52553436 | F33: 54.58245914 | G33: 44.75201415 | H33: 61.04220779 | I33: 49.29126761 | J33: 56.57666599 | K33: 71.02439143
B34: 923 | C34: Københavns Byret | D34: 64.37019996 | E34: 65.05307523 | F34: 58.76683453 | G34: 63.69532349 | H34: 51.6807563 | I34: 49.40898345 | J34: 66.90651436 | K34: 65.62431012
B35: 924 | C35: Retten på Bornholm | D35: 87.59152863 | E35: 88.79906384 | F35: 75.94411632 | G35: 84.76882326 | H35: 100 | I35: 100 | J35: 96.16154468 | K35: 97.41878959
B37: 1) Målene for de enkelte sagstyper er opstillet i samarbejde med byretterne. De aktuelle mål trådte i kraft 1. januar 2015. Sammensatte mål i 2016 og 2017 er vægtet på baggrund af den fordeling af sagerne, retterne havde for alle byretter i 2014. Generelt er målene opstillet i forhold til hovedforhandlede sager.

Sheet Målopf.Foged
B2: MÅLOPFYLDELSE FOGEDSAGER (PROCENT)
D4: Alm. fogedsager og betalingspåkrav | F4: Særlige fogedsager | H4: Tvangsauktion solgt efter 1. auktion
D5: =Overblik!$D$6 -> 2016 | E5: =Overblik!$E$6 -> 2017 | F5: =Overblik!$D$6 -> 2016 | G5: =Overblik!$E$6 -> 2017 | H5: =Overblik!$D$6 -> 2016 | I5: =Overblik!$E$6 -> 2017
D6: <3 MDR. | F6: <2 MDR. | H6: <5 MDR.
C8: MÅL (procent) | D8: 80 pct. | F8: 80 pct. | H8: 80 pct.
C9: SAMLET BYRETTERNE | D9: 77.65133605 | E9: 73.51402627 | F9: 83.98214838 | G9: 76.35000828 | H9: 82.13511236 | I9: 80.93685965
C10: 5. BEDSTE RET | D10: 88.68319046 | E10: 87.72681488 | F10: 90.10989011 | G10: 87.55760369 | H10: 91.66333333 | I10: 90.28180556
B11: EID | C11: Ret
B12: 901 | C12: Retten i Hjørring | D12: 84.73127714 | E12: 87.70042301 | F12: 84.3697479 | G12: 89.03436989 | H12: 82.77838889 | I12: 85.38776923
B13: 902 | C13: Retten i Aalborg | D13: 67.58783178 | E13: 77.9088074 | F13: 83.94255875 | G13: 80.21201413 | H13: 81.52228261 | I13: 80.28140845
B14: 903 | C14: Retten i Randers | D14: 91.87127343 | E14: 78.70447435 | F14: 83.46972177 | G14: 72.37762238 | H14: 87.90241935 | I14: 62.63703297
B15: 904 | C15: Retten i Århus | D15: 77.02675839 | E15: 54.64927312 | F15: 90.32258065 | G15: 77.82921811 | H15: 87.9976 | I15: 58.82352941
B16: 905 | C16: Retten i Viborg | D16: 85.81644747 | E16: 79.37652649 | F16: 88.68458274 | G16: 84.07350689 | H16: 90.11153846 | I16: 80.00328571
B17: 906 | C17: Retten i Holstebro | D17: 94.79138171 | E17: 94.20305566 | F17: 95.94594595 | G17: 95.5 | H17: 95.05777778 | I17: 91.26368932
B18: 907 | C18: Retten i Herning | D18: 87.48085354 | E18: 91.31585092 | F18: 86.36363636 | G18: 88.58267717 | H18: 85.0045 | I18: 86.36454545
B19: 908 | C19: Retten i Horsens | D19: 84.83514881 | E19: 82.26957734 | F19: 77.6744186 | G19: 72.37851662 | H19: 88.89166667 | I19: 90.24463415
B20: 909 | C20: Retten i Kolding | D20: 90.08158837 | E20: 87.48230195 | F20: 90.46104928 | G20: 86.16932104 | H20: 91.66333333 | I20: 90.28180556
B21: 910 | C21: Retten i Esbjerg | D21: 83.49473874 | E21: 73.70661323 | F21: 85.91117917 | G21: 87.55760369 | H21: 74.9975 | I21: 81.35457627
B22: 911 | C22: Retten i Sønderborg | D22: 63.78510898 | E22: 54.94526269 | F22: 81.92592593 | G22: 82.62910798 | H22: 75.51357143 | I22: 77.39191304
B23: 912 | C23: Retten i Odense | D23: 69.83674399 | E23: 75.71615863 | F23: 70.96518987 | G23: 79.01614143 | H23: 62.39615385 | I23: 69.02433628
B24: 913 | C24: Retten i Svendborg | D24: 64.10404925 | E24: 31.98681668 | F24: 84.43396226 | G24: 58.20895522 | H24: 67.53311688 | I24: 61.44638554
B25: 914 | C25: Retten i Nykøbing F. | D25: 79.08256445 | E25: 76.18924616 | F25: 86.71755725 | G25: 80.02980626 | H25: 87.77466667 | I25: 91.98144385
B26: 915 | C26: Retten i Næstved | D26: 53.97843958 | E26: 50.97006764 | F26: 79.1160221 | G26: 73.24380165 | H26: 74.36196581 | I26: 78.07254386
B27: 916 | C27: Retten i Holbæk | D27: 88.30128808 | E27: 88.95490479 | F27: 86.44067797 | G27: 84.6921797 | H27: 91.71668639 | I27: 87.42059603
B28: 917 | C28: Retten i Roskilde | D28: 86.02454807 | E28: 86.05407852 | F28: 81.63841808 | G28: 78.47993168 | H28: 70.88506329 | I28: 81.66516667
B29: 918 | C29: Retten i Hillerød | D29: 83.3143911 | E29: 75.3377314 | F29: 78.94736842 | G29: 69.07407407 | H29: 92.16 | I29: 93.93969697
B30: 919 | C30: Retten i Helsingør | D30: 78.43989463 | E30: 73.60651432 | F30: 84.51178451 | G30: 79.69283276 | H30: 77.49875 | I30: 79.24339623
B31: 920 | C31: Retten i Lyngby | D31: 88.68319046 | E31: 87.72681488 | F31: 90.29535865 | G31: 90.72463768 | H31: 88.89222222 | I31: 90.90909091
B32: 921 | C32: Retten i Glostrup | D32: 77.76833865 | E32: 63.84272759 | F32: 82.97074269 | G32: 67.43068392 | H32: 66.66866667 | I32: 72.22333333
B33: 922 | C33: Retten på Frederiksberg | D33: 75.28583936 | E33: 63.45476875 | F33: 83.91286133 | G33: 65.63763322 | H33: 62.49875 | I33: 66.66666667
B34: 923 | C34: Københavns Byret | D34: 67.21435728 | E34: 73.38035188 | F34: 82.74622574 | G34: 73.56855463 | H34: 59.999 | I34: 33.33111111
B35: 924 | C35: Retten på Bornholm | D35: 96.43841079 | E35: 97.5626275 | F35: 90.10989011 | G35: 80.72289157 | H35: 100 | I35: 88.88888889
B37: 1) Målene for de enkelte sagstyper er opstillet i samarbejde med byretterne. Sammensatte mål i 2016 og 2017 er vægtet på baggrund af den fordeling af sagerne, retterne havde for alle byretter i 2014.

Sheet Målopf.Skifte
B2: MÅLOPFYLDELSE SKIFTESAGER (PROCENT)
D4: Udlevering af bo | F4: Tvangsopløsningssager (eksklusive likvidation) | H4: Gældssanering (dog kun indledte sager)
D5: =Overblik!$D$6 -> 2016 | E5: =Overblik!$E$6 -> 2017 | F5: =Overblik!$D$6 -> 2016 | G5: =Overblik!$E$6 -> 2017 | H5: =Overblik!$D$6 -> 2016 | I5: =Overblik!$E$6 -> 2017
D6: <2 MDR. | F6: <3 MDR. | H6: <9 MDR.
C8: MÅL (procent) | D8: 80 pct. | F8: 72 pct. | G8: 74 pct. | H8: 75 pct. | I8: 77 pct.
C9: SAMLET BYRETTERNE | D9: 81.25438759 | E9: 78.93493688 | F9: 82.33873463 | G9: 89.31963759 | H9: 84.96224774 | I9: 85.52669321
C10: 5. BEDSTE RET | D10: 86.70159141 | E10: 83.45345679 | F10: 86.35636364 | G10: 91.14189873 | H10: 90.40248 | I10: 91.30130435
B11: EID | C11: Ret
B12: 901 | C12: Retten i Hjørring | D12: 85.11842154 | E12: 79.79957895 | F12: 84.03819444 | G12: 87.4113986 | H12: 79.44488889 | I12: 93.05381944
B13: 902 | C13: Retten i Aalborg | D13: 79.22559838 | E13: 78.25135768 | F13: 85.19154079 | G13: 89.12975831 | H13: 82.90726496 | I13: 69.27240223
B14: 903 | C14: Retten i Randers | D14: 88.50206492 | E14: 82.73773508 | F14: 83.26298643 | G14: 90.95879397 | H14: 90.77929078 | I14: 87.28737288
B15: 904 | C15: Retten i Århus | D15: 65.64697891 | E15: 66.89055492 | F15: 88.00376499 | G15: 92.24779661 | H15: 88.76651685 | I15: 90.38548077
B16: 905 | C16: Retten i Viborg | D16: 82.34769756 | E16: 81.04672261 | F16: 82.41025126 | G16: 92.19219512 | H16: 71.30165217 | I16: 76.41509434
B17: 906 | C17: Retten i Holstebro | D17: 79.88700375 | E17: 81.03251825 | F17: 92.03132743 | G17: 99.18434426 | H17: 96.51162791 | I17: 95.835
B18: 907 | C18: Retten i Herning | D18: 72.11364186 | E18: 77.13235901 | F18: 78.35888889 | G18: 89.52114286 | H18: 89.65195402 | I18: 92.68073171
B19: 908 | C19: Retten i Horsens | D19: 79.11813194 | E19: 78.88140123 | F19: 72.63073684 | G19: 91.3338 | H19: 82.17712871 | I19: 88.13508475
B20: 909 | C20: Retten i Kolding | D20: 84.32428224 | E20: 81.78353014 | F20: 85.33803519 | G20: 86.89405488 | H20: 93.93704545 | I20: 86.27127451
B21: 910 | C21: Retten i Esbjerg | D21: 80.89305455 | E21: 63.04396267 | F21: 85.65133971 | G21: 89.17345361 | H21: 82.57018349 | I21: 76.19171429
B22: 911 | C22: Retten i Sønderborg | D22: 80.5805036 | E22: 73.32437118 | F22: 84.03896714 | G22: 87.97495192 | H22: 90.40248 | I22: 89.99988889
B23: 912 | C23: Retten i Odense | D23: 83.14069038 | E23: 79.30178456 | F23: 89.42595166 | G23: 91.14189873 | H23: 89.04239726 | I23: 91.30130435
B24: 913 | C24: Retten i Svendborg | D24: 68.95333333 | E24: 74.52069502 | F24: 86.35636364 | G24: 87.12712871 | H24: 78.65157303 | I24: 73.07776923
B25: 914 | C25: Retten i Nykøbing F. | D25: 93.11384218 | E25: 93.53129621 | F25: 73.96616438 | G25: 88.36883721 | H25: 91.51235849 | I25: 88.78168224
B26: 915 | C26: Retten i Næstved | D26: 78.7802847 | E26: 71.28257426 | F26: 83.50608247 | G26: 89.23098655 | H26: 87.96657407 | I26: 88.23779412
B27: 916 | C27: Retten i Holbæk | D27: 87.33810811 | E27: 85.31431373 | F27: 79.57788732 | G27: 84.9884 | H27: 67.01329897 | I27: 88.78962617
B28: 917 | C28: Retten i Roskilde | D28: 82.66526256 | E28: 81.86810811 | F28: 79.95369792 | G28: 85.90667606 | H28: 89.93165468 | I28: 85.18398148
B29: 918 | C29: Retten i Hillerød | D29: 79.64725059 | E29: 81.07030779 | F29: 74.88211055 | G29: 90.05270718 | H29: 79.9988 | I29: 90.11076923
B30: 919 | C30: Retten i Helsingør | D30: 79.95005076 | E30: 73.16642462 | F30: 72.63213158 | G30: 86.60330218 | H30: 87.501625 | I30: 86.11125
B31: 920 | C31: Retten i Lyngby | D31: 77.87158234 | E31: 83.45345679 | F31: - | G31: - | H31: - | I31: -
B32: 921 | C32: Retten i Glostrup | D32: 85.23406209 | E32: 86.25576119 | F32: - | G32: - | H32: - | I32: -
B33: 922 | C33: Retten på Frederiksberg | D33: 76.76664955 | E33: 75.6536971 | F33: - | G33: - | H33: - | I33: -
B34: 923 | C34: Københavns Byret | D34: 86.70159141 | E34: 79.80714742 | F34: - | G34: - | H34: - | I34: -
B35: 924 | C35: Retten på Bornholm | D35: 97.60780443 | E35: 95.89884868 | F35: 93.76125 | G35: 86.66733333 | H35: 87.10064516 | I35: 92.0032
B37: 1) Målene for de enkelte sagstyper er opstillet i samarbejde med byretterne. De aktuelle mål trådte i kraft 1. januar 2015.

Sheet Sagstid.Straf
B2: GENNEMSNITLIG SAGSBEHANDLINGSTID STRAFFESAGER (DAGE)
D4: Nævningesager | F4: Domsmandssager | H4: Sager uden domsmænd | J4: Tilståelsessager
D5: =Overblik!$D$6 -> 2016 | E5: =Overblik!$E$6 -> 2017 | F5: =Overblik!$D$6 -> 2016 | G5: =Overblik!$E$6 -> 2017 | H5: =Overblik!$D$6 -> 2016 | I5: =Overblik!$E$6 -> 2017 | J5: =Overblik!$D$6 -> 2016 | K5: =Overblik!$E$6 -> 2017
C6: 5. BEDSTE RET | D6: 84 | E6: 85 | F6: 100 | G6: 95 | H6: 21 | I6: 18 | J6: 54 | K6: 66
C7: SAMLET BYRETTERNE | D7: 149.9487179 | E7: 147.5540541 | F7: 128.9523233 | G7: 126.0366475 | H7: 29.22739421 | I7: 27.62626829 | J7: 82.26683417 | K7: 80.95917804
B8: EID | C8: Ret
B9: 901 | C9: Retten i Hjørring | D9: - | E9: 137 | F9: 107 | G9: 101 | H9: 21 | I9: 22 | J9: 59 | K9: 74
B10: 902 | C10: Retten i Aalborg | D10: 98 | E10: 0 | F10: 124 | G10: 118 | H10: 22 | I10: 33 | J10: 76 | K10: 88
B11: 903 | C11: Retten i Randers | D11: 159 | E11: 90 | F11: 133 | G11: 127 | H11: 25 | I11: 29 | J11: 72 | K11: 90
B12: 904 | C12: Retten i Århus | D12: 101 | E12: 155 | F12: 172 | G12: 143 | H12: 40 | I12: 50 | J12: 91 | K12: 114
B13: 905 | C13: Retten i Viborg | D13: 203 | E13: - | F13: 113 | G13: 130 | H13: 28 | I13: 33 | J13: 69 | K13: 83
B14: 906 | C14: Retten i Holstebro | D14: - | E14: 82 | F14: 69 | G14: 79 | H14: 21 | I14: 30 | J14: 52 | K14: 64
B15: 907 | C15: Retten i Herning | D15: 97 | E15: 85 | F15: 106 | G15: 93 | H15: 29 | I15: 30 | J15: 81 | K15: 68
B16: 908 | C16: Retten i Horsens | D16: 162 | E16: - | F16: 143 | G16: 112 | H16: 45 | I16: 47 | J16: 94 | K16: 80
B17: 909 | C17: Retten i Kolding | D17: 129 | E17: 102 | F17: 121 | G17: 129 | H17: 26 | I17: 29 | J17: 81 | K17: 99
B18: 910 | C18: Retten i Esbjerg | D18: 75 | E18: 138 | F18: 141 | G18: 147 | H18: 41 | I18: 31 | J18: 56 | K18: 69
B19: 911 | C19: Retten i Sønderborg | D19: 78 | E19: 86 | F19: 88 | G19: 116 | H19: 32 | I19: 60 | J19: 51 | K19: 66
B20: 912 | C20: Retten i Odense | D20: 144 | E20: 146 | F20: 100 | G20: 101 | H20: 14 | I20: 13 | J20: 73 | K20: 68
B21: 913 | C21: Retten i Svendborg | D21: 90 | E21: 153 | F21: 135 | G21: 170 | H21: 36 | I21: 49 | J21: 112 | K21: 129
B22: 914 | C22: Retten i Nykøbing F. | D22: 100 | E22: 77 | F22: 108 | G22: 92 | H22: 21 | I22: 20 | J22: 53 | K22: 51
B23: 915 | C23: Retten i Næstved | D23: 89 | E23: 123 | F23: 122 | G23: 132 | H23: 28 | I23: 12 | J23: 123 | K23: 84
B24: 916 | C24: Retten i Holbæk | D24: 64 | E24: 118 | F24: 84 | G24: 95 | H24: 16 | I24: 21 | J24: 54 | K24: 61
B25: 917 | C25: Retten i Roskilde | D25: 131 | E25: 152 | F25: 145 | G25: 159 | H25: 40 | I25: 33 | J25: 120 | K25: 75
B26: 918 | C26: Retten i Hillerød | D26: 84 | E26: 165 | F26: 111 | G26: 141 | H26: 31 | I26: 39 | J26: 104 | K26: 99
B27: 919 | C27: Retten i Helsingør | D27: 98 | E27: 134 | F27: 232 | G27: 135 | H27: 62 | I27: 38 | J27: 118 | K27: 77
B28: 920 | C28: Retten i Lyngby | D28: 142 | E28: 125 | F28: 146 | G28: 117 | H28: 20 | I28: 12 | J28: 71 | K28: 71
B29: 921 | C29: Retten i Glostrup | D29: 138 | E29: 165 | F29: 147 | G29: 135 | H29: 42 | I29: 38 | J29: 103 | K29: 94
B30: 922 | C30: Retten på Frederiksberg | D30: 157 | E30: 198 | F30: 145 | G30: 149 | H30: 30 | I30: 25 | J30: 88 | K30: 89
B31: 923 | C31: Københavns Byret | D31: 235 | E31: 179 | F31: 143 | G31: 128 | H31: 26 | I31: 18 | J31: 78 | K31: 73
B32: 924 | C32: Retten på Bornholm | D32: 50 | E32: 85 | F32: 49 | G32: 52 | H32: 16 | I32: 16 | J32: 33 | K32: 39

Sheet Sagstid.Civil
B2: GENNEMSNITLIG SAGSBEHANDLINGSTID CIVILE SAGER (DAGE)
D4: Hovedforhandlede almindelige sager | F4: Hovedforhandlede boligretssager | H4: Hovedforhandlede småsager | J4: Alle civile sager m. forhandlingsmaksime | L4: Alle ægteskabssager | N4: Alle forældre- ansvarssager
D5: =Overblik!$D$6 -> 2016 | E5: =Overblik!$E$6 -> 2017 | F5: =Overblik!$D$6 -> 2016 | G5: =Overblik!$E$6 -> 2017 | H5: =Overblik!$D$6 -> 2016 | I5: =Overblik!$E$6 -> 2017 | J5: =Overblik!$D$6 -> 2016 | K5: =Overblik!$E$6 -> 2017 | L5: =Overblik!$D$6 -> 2016 | M5: =Overblik!$E$6 -> 2017 | N5: =Overblik!$D$6 -> 2016 | O5: =Overblik!$E$6 -> 2017
C6: 5. BEDSTE RET | D6: 452.3401361 | E6: 345.7209302 | F6: 334.8 | G6: 289.8333333 | H6: 205.6545455 | I6: 199.0163934 | J6: 152 | K6: 148.4945175 | L6: 99 | M6: 97 | N6: 118 | O6: 122.125
C7: SAMLET BYRETTERNE | D7: 494.6724138 | E7: 436.6407947 | F7: 427.6330935 | G7: 433.5585366 | H7: 261.7919948 | I7: 289.4293785 | J7: 180.0077606 | K7: 179.9532776 | L7: 117.4249758 | M7: 122.3668508 | N7: 143.8299299 | O7: 145.5854249
B8: EID | C8: Ret
B9: 901 | C9: Retten i Hjørring | D9: 491.1612903 | E9: 340.4950495 | F9: 872 | G9: 156 | H9: 205.6545455 | I9: 213.0952381 | J9: 163 | K9: 144.9853862 | L9: 166 | M9: 100.5714286 | N9: 145 | O9: 151.295302
B10: 902 | C10: Retten i Aalborg | D10: 552.4871795 | E10: 416.1111111 | F10: 634.2941176 | G10: 392 | H10: 232.7272727 | I10: 267.9821429 | J10: 174 | K10: 163.6837871 | L10: 119 | M10: 120.3409091 | N10: 143 | O10: 137.8429319
B11: 903 | C11: Retten i Randers | D11: 477.2135922 | E11: 468.5813953 | F11: 450.7272727 | G11: 587.4722222 | H11: 270.7222222 | I11: 305.797619 | J11: 176 | K11: 197.3784047 | L11: 105 | M11: 134.1034483 | N11: 136 | O11: 162.6821705
B12: 904 | C12: Retten i Århus | D12: 490.6065574 | E12: 446.1372549 | F12: 396.4318182 | G12: 450.8846154 | H12: 269.1290323 | I12: 333.627907 | J12: 226 | K12: 226.8631201 | L12: 107 | M12: 136 | N12: 142 | O12: 150.0119048
B13: 905 | C13: Retten i Viborg | D13: 520.3565217 | E13: 410.9880952 | F13: 355.4545455 | G13: 275 | H13: 257.9591837 | I13: 275.3544304 | J13: 204 | K13: 208.7333333 | L13: 162 | M13: 135.4736842 | N13: 133 | O13: 143.6
B14: 906 | C14: Retten i Holstebro | D14: 419.8412698 | E14: 364.4 | F14: 235 | G14: 313 | H14: 146.5813953 | I14: 136 | J14: 144 | K14: 151.1460481 | L14: 135 | M14: 100.1818182 | N14: 121 | O14: 106.7204301
B15: 907 | C15: Retten i Herning | D15: 499.7058824 | E15: 366.4532374 | F15: 446.5 | G15: 483 | H15: 182.7272727 | I15: 187 | J15: 179 | K15: 156.9372973 | L15: 100 | M15: 77.76923077 | N15: 131 | O15: 123
B16: 908 | C16: Retten i Horsens | D16: 452.3401361 | E16: 605.1505376 | F16: 236.3333333 | G16: 289.8333333 | H16: 283.8684211 | I16: 309.0357143 | J16: 190.8408488 | K16: 233.8155894 | L16: 81.2173913 | M16: 124.7391304 | N16: 140.2155172 | O16: 137.018018
B17: 909 | C17: Retten i Kolding | D17: 453.248227 | E17: 386.1547619 | F17: 448.8666667 | G17: 419.8235294 | H17: 225.5142857 | I17: 251.5862069 | J17: 161 | K17: 142.2922144 | L17: 101 | M17: 97.58974359 | N17: 118 | O17: 126.1627907
B18: 910 | C18: Retten i Esbjerg | D18: 548.9242424 | E18: 426.961039 | F18: 461.6 | G18: 430 | H18: 237.2926829 | I18: 279.12 | J18: 205 | K18: 197.2687898 | L18: 119 | M18: 155.7826087 | N18: 143 | O18: 180.6782609
B19: 911 | C19: Retten i Sønderborg | D19: 469.2857143 | E19: 515.7769231 | F19: 349 | G19: 569 | H19: 271.5714286 | I19: 270.4794521 | J19: 165 | K19: 207.4948007 | L19: 111 | M19: 139.5555556 | N19: 137 | O19: 140.4628099
B20: 912 | C20: Retten i Odense | D20: 489.2846715 | E20: 305.741784 | F20: 289 | G20: 359.1363636 | H20: 225.6190476 | I20: 199.0163934 | J20: 156 | K20: 157.0766332 | L20: 110 | M20: 103.5892857 | N20: 150 | O20: 127.1707317
B21: 913 | C21: Retten i Svendborg | D21: 479.5522388 | E21: 352.6470588 | F21: 441.5 | G21: 249.2 | H21: 334.8846154 | I21: 309.8571429 | J21: 174 | K21: 179.6305556 | L21: 96 | M21: 80.6 | N21: 102 | O21: 115.7826087
B22: 914 | C22: Retten i Nykøbing F. | D22: 391.3584906 | E22: 345.7209302 | F22: 334.8 | G22: 241 | H22: 181.34375 | I22: 195.1666667 | J22: 134 | K22: 148.4945175 | L22: 99 | M22: 121.7083333 | N22: 101 | O22: 96.13868613
B23: 915 | C23: Retten i Næstved | D23: 492.1463415 | E23: 364.6089109 | F23: 420.2195122 | G23: 380.55 | H23: 212.8888889 | I23: 255.4 | J23: 151 | K23: 164.1619985 | L23: 105 | M23: 116.2926829 | N23: 127 | O23: 128.8816568
B24: 916 | C24: Retten i Holbæk | D24: 464.6944444 | E24: 280.609375 | F24: 410.5714286 | G24: 438 | H24: 226.195122 | I24: 226.8888889 | J24: 158 | K24: 138.5400943 | L24: 99 | M24: 133.1 | N24: 117 | O24: 122.125
B25: 917 | C25: Retten i Roskilde | D25: 532.6766467 | E25: 402.0520833 | F25: 404.9090909 | G25: 421.5 | H25: 302.4553571 | I25: 283.5764706 | J25: 199 | K25: 197.4680611 | L25: 137 | M25: 154.84 | N25: 194 | O25: 217.7932961
B26: 918 | C26: Retten i Hillerød | D26: 452.7142857 | E26: 476.5819672 | F26: 439.6666667 | G26: 379.6875 | H26: 230.8 | I26: 250.244898 | J26: 152 | K26: 165.1089566 | L26: 111 | M26: 92.52 | N26: 119 | O26: 133.9919355
B27: 919 | C27: Retten i Helsingør | D27: 540.5882353 | E27: 436.07 | F27: 451.8 | G27: 467.0869565 | H27: 310 | I27: 243.8205128 | J27: 190 | K27: 188.2169492 | L27: 82 | M27: 96.44117647 | N27: 155 | O27: 158.1339286
B28: 920 | C28: Retten i Lyngby | D28: 431.483871 | E28: 445.9375 | F28: 335.84375 | G28: 379.6923077 | H28: 263.1052632 | I28: 272.6111111 | J28: 177 | K28: 179.5351759 | L28: 130 | M28: 136.8043478 | N28: 146 | O28: 154.0857143
B29: 921 | C29: Retten i Glostrup | D29: 549.8122449 | E29: 563.9087452 | F29: 459.5 | G29: 465.0869565 | H29: 293.2592593 | I29: 252.5833333 | J29: 186 | K29: 204.7345877 | L29: 118 | M29: 122.3368421 | N29: 142 | O29: 149.9105058
B30: 922 | C30: Retten på Frederiksberg | D30: 522.59375 | E30: 660.3421053 | F30: 467 | G30: 467 | H30: 283.7272727 | I30: 323.2676056 | J30: 209 | K30: 202.6724551 | L30: 135 | M30: 110.9861111 | N30: 230 | O30: 165.18125
B31: 923 | C31: Københavns Byret | D31: 501.9934354 | E31: 488.9716312 | F31: 455.969697 | G31: 462.474359 | H31: 307.9747899 | I31: 369.21513 | J31: 184 | K31: 174.1997683 | L31: 126 | M31: 153.2666667 | N31: 159 | O31: 169.5630631
B32: 924 | C32: Retten på Bornholm | D32: 298 | E32: 274.125 | F32: - | G32: - | H32: 120 | I32: 108 | J32: 84 | K32: 109.3787879 | L32: 85 | M32: 97 | N32: 83 | O32: 89.90909091
B34: 1) Alle civile sager med forhandlingsmaksime inkluderer sagstyperne almindelige sager, boligretssager, forbud/påbudssager og småsager.

Sheet Sagstid.Foged
B2: GENNEMSNITLIG SAGSBEHANDLINGSTID FOGEDSAGER (DAGE)
D4: Alm. fogedsager | F4: Særlige fogedsager | H4: Betalingspåkrav | J4: Tvangsauktioner
D5: =Overblik!$D$6 -> 2016 | E5: =Overblik!$E$6 -> 2017 | F5: =Overblik!$D$6 -> 2016 | G5: =Overblik!$E$6 -> 2017 | H5: =Overblik!$D$6 -> 2016 | I5: =Overblik!$E$6 -> 2017 | J5: =Overblik!$D$6 -> 2016 | K5: =Overblik!$E$6 -> 2017
C6: 5. BEDSTE RET | D6: 49.91486968 | E6: 53.88521798 | F6: 33.49507736 | G6: 38.37349398 | H6: 53.4125163 | I6: 50.5717313 | J6: 65 | K6: 64
C7: SAMLET BYRETTERNE | D7: 69.13326953 | E7: 77.77558883 | F7: 39.8904158 | G7: 51.24867484 | H7: 71.73797586 | I7: 72.42313321 | J7: 82.22764901 | K7: 75.90439247
B8: EID | C8: Ret
B9: 901 | C9: Retten i Hjørring | D9: 64.53514563 | E9: 55.54402808 | F9: 40.57815126 | G9: 32.7806874 | H9: 61.43011423 | I9: 50.5717313 | J9: 84 | K9: 83
B10: 902 | C10: Retten i Aalborg | D10: 65.18546196 | E10: 56.32976967 | F10: 40.60443864 | G10: 45.06831567 | H10: 87.04350105 | I10: 90.2151708 | J10: 76 | K10: 64
B11: 903 | C11: Retten i Randers | D11: 47.4419418 | E11: 69.43215259 | F11: 39.43698854 | G11: 51.1013986 | H11: 53.4125163 | I11: 77.35163327 | J11: 80 | K11: 103
B12: 904 | C12: Retten i Århus | D12: 76.49530957 | E12: 119.6671426 | F12: 30.08716541 | G12: 95.39609053 | H12: 78.01228821 | I12: 89.28967343 | J12: 83 | K12: 100
B13: 905 | C13: Retten i Viborg | D13: 54.37966833 | E13: 64.63577023 | F13: 35.07637907 | G13: 40.20673813 | H13: 64.38116129 | I13: 75.61182583 | J13: 92 | K13: 84
B14: 906 | C14: Retten i Holstebro | D14: 38.45575221 | E14: 39.40611054 | F14: 22.77027027 | G14: 27.14 | H14: 45.45131013 | I14: 48.82015609 | J14: 63 | K14: 73
B15: 907 | C15: Retten i Herning | D15: 57.83672357 | E15: 53.88521798 | F15: 37.63842975 | G15: 43.06889764 | H15: 60.11940779 | I15: 46.68951094 | J15: 109 | K15: 73
B16: 908 | C16: Retten i Horsens | D16: 60.74822372 | E16: 62.37785688 | F16: 45.06976744 | G16: 43.39897698 | H16: 62.78813038 | I16: 69.33198507 | J16: 71 | K16: 66
B17: 909 | C17: Retten i Kolding | D17: 44.44932058 | E17: 50.80989608 | F17: 32.94674086 | G17: 41.17686505 | H17: 45.58040113 | I17: 52.10739468 | J17: 62 | K17: 77
B18: 910 | C18: Retten i Esbjerg | D18: 52.5408805 | E18: 48.83268127 | F18: 40.63093415 | G18: 36.33179724 | H18: 80.91594066 | I18: 96.65968718 | J18: 87 | K18: 75
B19: 911 | C19: Retten i Sønderborg | D19: 69.92268261 | E19: 69.47039732 | F19: 41.01185185 | G19: 40.1314554 | H19: 109.4982344 | I19: 132.5847169 | J19: 89 | K19: 83
B20: 912 | C20: Retten i Odense | D20: 84.49412313 | E20: 85.39605376 | F20: 48.60522152 | G20: 48.58800922 | H20: 76.47970779 | I20: 71.55670262 | J20: 92 | K20: 81
B21: 913 | C21: Retten i Svendborg | D21: 86.08307045 | E21: 104.4154221 | F21: 39.60849057 | G21: 64.91684435 | H21: 74.77860211 | I21: 134.9970599 | J21: 91 | K21: 102
B22: 914 | C22: Retten i Nykøbing F. | D22: 66.31437655 | E22: 74.16159696 | F22: 38.92977099 | G22: 42.63040238 | H22: 79.93403635 | I22: 82.14341969 | J22: 81 | K22: 74
B23: 915 | C23: Retten i Næstved | D23: 90.70906404 | E23: 106.1116657 | F23: 45.54364641 | G23: 53.1642562 | H23: 105.4825548 | I23: 117.5697403 | J23: 93 | K23: 76
B24: 916 | C24: Retten i Holbæk | D24: 59.35607235 | E24: 55.72065165 | F24: 39.10677966 | G24: 41.8452579 | H24: 55.92292601 | I24: 56.14709549 | J24: 92 | K24: 94
B25: 917 | C25: Retten i Roskilde | D25: 60.50785591 | E25: 59.55418394 | F25: 41.08945386 | G25: 44.49786507 | H25: 62.72096531 | I25: 59.80248804 | J25: 83 | K25: 61
B26: 918 | C26: Retten i Hillerød | D26: 62.57556071 | E26: 79.48039826 | F26: 41.19838057 | G26: 47.85555556 | H26: 60.86273875 | I26: 55.70120482 | J26: 66 | K26: 50
B27: 919 | C27: Retten i Helsingør | D27: 74.9231835 | E27: 94.51259237 | F27: 40.80808081 | G27: 45.88054608 | H27: 67.1609831 | I27: 72.96179625 | J27: 72 | K27: 72
B28: 920 | C28: Retten i Lyngby | D28: 49.91486968 | E28: 57.29748707 | F28: 33.49507736 | G28: 34.82173913 | H28: 48.81271283 | I28: 50.92875 | J28: 61 | K28: 45
B29: 921 | C29: Retten i Glostrup | D29: 87.73820572 | E29: 116.5858821 | F29: 38.89797449 | G29: 52.05286506 | H29: 54.8247782 | I29: 40.97812783 | J29: 65 | K29: 66
B30: 922 | C30: Retten på Frederiksberg | D30: 81.82170137 | E30: 102.9720144 | F30: 43.32677 | G30: 56.21021683 | H30: 78.02559415 | I30: 70.76216035 | J30: 99 | K30: 85
B31: 923 | C31: Københavns Byret | D31: 88.75109825 | E31: 88.04387145 | F31: 44.35585909 | G31: 51.23119777 | H31: 87.0426779 | I31: 55.37685787 | J31: 99 | K31: 77
B32: 924 | C32: Retten på Bornholm | D32: 33.87987271 | E32: 31.61662631 | F32: 27.6043956 | G32: 38.37349398 | H32: 34.82226212 | I32: 29.87269373 | J32: 60 | K32: 64

Sheet Sagstid.Skifte
B2: GENNEMSNITLIG SAGSBEHANDLINGSTID SKIFTESAGER (DAGE)
D4: Boudlæg | F4: Uskiftet bo | H4: Privat skifte | J4: Forenklet privat skifte
D5: =Overblik!$D$6 -> 2016 | E5: =Overblik!$E$6 -> 2017 | F5: =Overblik!$D$6 -> 2016 | G5: =Overblik!$E$6 -> 2017 | H5: =Overblik!$D$6 -> 2016 | I5: =Overblik!$E$6 -> 2017 | J5: =Overblik!$D$6 -> 2016 | K5: =Overblik!$E$6 -> 2017
C6: 5. BEDSTE RET | D6: 38.28 | E6: 40.17 | F6: 75.55 | G6: 86.15 | H6: 328.04 | I6: 322.56 | J6: 62.45 | K6: 66.25
C7: SAMLET BYRETTERNE | D7: 44.74482595 | E7: 47.08044387 | F7: 88.76535115 | G7: 96.82607865 | H7: 340.3304911 | I7: 342.9536343 | J7: 71.63079486 | K7: 74.14713395
B8: EID | C8: Ret
B9: 901 | C9: Retten i Hjørring | D9: 51.71 | E9: 53.06 | F9: 80.93 | G9: 92.75 | H9: 346.95 | I9: 332.52 | J9: 67.08 | K9: 73.85
B10: 902 | C10: Retten i Aalborg | D10: 44.55 | E10: 41.52 | F10: 76.27 | G10: 81.54 | H10: 330.97 | I10: 332.99 | J10: 77.63 | K10: 72.27
B11: 903 | C11: Retten i Randers | D11: 45.94 | E11: 48.66 | F11: 77.33 | G11: 87.6 | H11: 335.62 | I11: 353.63 | J11: 61.95 | K11: 66.25
B12: 904 | C12: Retten i Århus | D12: 68.28 | E12: 65.33 | F12: 101.5 | G12: 108 | H12: 370.01 | I12: 387.31 | J12: 79.32 | K12: 81.43
B13: 905 | C13: Retten i Viborg | D13: 41.15 | E13: 44.11 | F13: 84.12 | G13: 91.1 | H13: 313.56 | I13: 313.42 | J13: 63.77 | K13: 68.22
B14: 906 | C14: Retten i Holstebro | D14: 50.92 | E14: 54.34 | F14: 74.84 | G14: 82.79 | H14: 337.3 | I14: 359.63 | J14: 76.78 | K14: 70.24
B15: 907 | C15: Retten i Herning | D15: 59.6 | E15: 61.14 | F15: 89.42 | G15: 96.77 | H15: 330.79 | I15: 318.43 | J15: 78.15 | K15: 74.91
B16: 908 | C16: Retten i Horsens | D16: 52.64 | E16: 49.13 | F16: 101.28 | G16: 101.72 | H16: 356.15 | I16: 356.92 | J16: 80.26 | K16: 73.71
B17: 909 | C17: Retten i Kolding | D17: 34.41 | E17: 35.62 | F17: 76.21 | G17: 88.12 | H17: 328.04 | I17: 339.49 | J17: 62.96 | K17: 64.38
B18: 910 | C18: Retten i Esbjerg | D18: 42.24 | E18: 54.39 | F18: 75.55 | G18: 101.71 | H18: 349.1 | I18: 392.16 | J18: 56.19 | K18: 78.3
B19: 911 | C19: Retten i Sønderborg | D19: 46.23 | E19: 54.66 | F19: 99.75 | G19: 112.97 | H19: 343.14 | I19: 362.7 | J19: 72.66 | K19: 84.47
B20: 912 | C20: Retten i Odense | D20: 38.28 | E20: 45.82 | F20: 73.44 | G20: 93.39 | H20: 335.35 | I20: 343.45 | J20: 62.7 | K20: 78.07
B21: 913 | C21: Retten i Svendborg | D21: 51.7 | E21: 51.29 | F21: 87.78 | G21: 86.15 | H21: 369.32 | I21: 366.58 | J21: 98.92 | K21: 83.37
B22: 914 | C22: Retten i Nykøbing F. | D22: 36.59 | E22: 35.21 | F22: 45.27 | G22: 50.36 | H22: 331.05 | I22: 336.2 | J22: 45.58 | K22: 43.02
B23: 915 | C23: Retten i Næstved | D23: 48.33 | E23: 53.85 | F23: 97.09 | G23: 107.6 | H23: 346.31 | I23: 360.14 | J23: 77.34 | K23: 76.79
B24: 916 | C24: Retten i Holbæk | D24: 39.48 | E24: 49.88 | F24: 106.8 | G24: 128.56 | H24: 351.17 | I24: 345.23 | J24: 66.71 | K24: 70.64
B25: 917 | C25: Retten i Roskilde | D25: 41.51 | E25: 41.38 | F25: 96.63 | G25: 97.47 | H25: 334.11 | I25: 331.77 | J25: 68.41 | K25: 66.13
B26: 918 | C26: Retten i Hillerød | D26: 43.87 | E26: 43.81 | F26: 91.41 | G26: 95.08 | H26: 357.62 | I26: 338.22 | J26: 82.15 | K26: 86.21
B27: 919 | C27: Retten i Helsingør | D27: 44.48 | E27: 53.88 | F27: 119.12 | G27: 126.56 | H27: 330.48 | I27: 344.67 | J27: 100.37 | K27: 120.45
B28: 920 | C28: Retten i Lyngby | D28: 47.64 | E28: 37.25 | F28: 120.21 | G28: 114.83 | H28: 373.93 | I28: 350.27 | J28: 77.77 | K28: 66.66
B29: 921 | C29: Retten i Glostrup | D29: 41.87 | E29: 40.17 | F29: 99.36 | G29: 102.44 | H29: 321.76 | I29: 313.8 | J29: 69.84 | K29: 69.43
B30: 922 | C30: Retten på Frederiksberg | D30: 49.19 | E30: 50.24 | F30: 106.75 | G30: 107.23 | H30: 343.03 | I30: 335.78 | J30: 87.51 | K30: 90
B31: 923 | C31: Københavns Byret | D31: 33.82 | E31: 42.31 | F31: 88.83 | G31: 93.26 | H31: 316.96 | I31: 322.56 | J31: 62.45 | K31: 80.08
B32: 924 | C32: Retten på Bornholm | D32: 22.55 | E32: 27.79 | F32: 40.1 | G32: 37.41 | H32: 303.39 | I32: 303.12 | J32: 32.91 | K32: 37.49

Sheet HR-nøgletal_lønsum
B2: UDVALGTE HR-NØGLETAL
D4: Gnst. antal sygedage pr. ansat | F4: Personaleomsætning (%) | H4: Lønsumsforbrug (mio.) 2017-pl
D5: =Overblik!$D$6 -> 2016 | E5: =Overblik!$E$6 -> 2017 | F5: =Overblik!$D$6 -> 2016 | G5: =Overblik!$E$6 -> 2017 | H5: =Overblik!$D$6 -> 2016 | I5: =Overblik!$E$6 -> 2017
C6: 5. BEDSTE RET | D6: 7.42811166 | E6: 5.333551361
C7: SAMLET | D7: 9.528843231 | E7: 9.40737053 | F7: 9.179952331 | G7: 9.280484834 | H7: 31.24079849 | I7: 31.375
B8: EID | C8: Ret
B9: 901 | C9: Retten i Hjørring | D9: 7.42811166 | E9: 5.046419979 | F9: 9.614683161 | G9: 2.010494068 | H9: 23.73664065 | I9: 23.62848272
B10: 902 | C10: Retten i Aalborg | D10: 5.752183986 | E10: 6.76901361 | F10: 12.82245102 | G10: 11.8338101 | H10: 36.32340593 | I10: 36.85092626
B11: 903 | C11: Retten i Randers | D11: 8.634346523 | E11: 3.939503049 | F11: 10.34776398 | G11: 3.782834789 | H11: 24.83670107 | I11: 23.9664546
B12: 904 | C12: Retten i Århus | D12: 7.978979748 | E12: 13.80442757 | F12: 12.21683291 | G12: 15.84281489 | H12: 40.85150004 | I12: 42.09587755
B13: 905 | C13: Retten i Viborg | D13: 10.69045596 | E13: 13.87929991 | F13: 14.54596076 | G13: 7.677776741 | H13: 24.07442473 | I13: 24.04642911
B14: 906 | C14: Retten i Holstebro | D14: 8.443035636 | E14: 17.46607961 | F14: 15.80137134 | G14: 2.784766948 | H14: 18.47919505 | I14: 17.3063266
B15: 907 | C15: Retten i Herning | D15: 8.784040007 | E15: 5.333551361 | F15: 12.52412276 | G15: 7.422151788 | H15: 18.19917992 | I15: 18.99683136
B16: 908 | C16: Retten i Horsens | D16: 13.02269107 | E16: 16.0847127 | F16: 6.447852629 | G16: 13.01072294 | H16: 22.92565475 | I16: 22.19232827
B17: 909 | C17: Retten i Kolding | D17: 8.541325877 | E17: 6.743828937 | F17: 8.021751175 | G17: 7.311036601 | H17: 33.52274704 | I17: 33.79555173
B18: 910 | C18: Retten i Esbjerg | D18: 7.828831644 | E18: 12.14565349 | F18: 6.157762877 | G18: 8.613865387 | H18: 22.92695405 | I18: 23.83790805
B19: 911 | C19: Retten i Sønderborg | D19: 10.25191296 | E19: 16.85459244 | F19: 5.413876114 | G19: 11.04904839 | H19: 30.17495846 | I19: 30.5533366
B20: 912 | C20: Retten i Odense | D20: 7.91835029 | E20: 7.514927499 | F20: 9.339614332 | G20: 10.50482438 | H20: 37.72660619 | I20: 36.03915131
B21: 913 | C21: Retten i Svendborg | D21: 7.740658599 | E21: 6.668163574 | F21: 12.63463817 | G21: 11.5170435 | H21: 17.96306117 | I21: 18.59404624
B22: 914 | C22: Retten i Nykøbing F. | D22: 5.917867437 | E22: 4.636120841 | F22: 2.038092413 | G22: 8.51199942 | H22: 24.71422188 | I22: 24.65441364
B23: 915 | C23: Retten i Næstved | D23: 13.46418958 | E23: 9.149256557 | F23: 6.674636951 | G23: 23.3910835 | H23: 28.72501881 | I23: 28.7374546
B24: 916 | C24: Retten i Holbæk | D24: 6.445137148 | E24: 8.902072309 | F24: 6.290714062 | G24: 10.1093667 | H24: 22.67363671 | I24: 21.96599279
B25: 917 | C25: Retten i Roskilde | D25: 11.56328699 | E25: 9.679845664 | F25: 8.867312056 | G25: 4.224425252 | H25: 34.74419661 | I25: 34.61195905
B26: 918 | C26: Retten i Hillerød | D26: 11.70379962 | E26: 6.369150131 | F26: 7.981119575 | G26: 7.978419258 | H26: 24.26868614 | I26: 24.11553388
B27: 919 | C27: Retten i Helsingør | D27: 9.210220221 | E27: 10.39178217 | F27: 10.01239211 | G27: 6.226884515 | H27: 23.48838307 | I27: 22.78695388
B28: 920 | C28: Retten i Lyngby | D28: 9.927967883 | E28: 9.655802825 | F28: 8.96421104 | G28: 10.89434771 | H28: 28.65437696 | I28: 29.41661831
B29: 921 | C29: Retten i Glostrup | D29: 10.72348178 | E29: 10.93379319 | F29: 10.13389133 | G29: 10.66483288 | H29: 52.04283591 | I29: 51.70124728
B30: 922 | C30: Retten på Frederiksberg | D30: 19.81958458 | E30: 14.87865078 | F30: 10.07988466 | G30: 8.791300009 | H30: 44.50388388 | I30: 44.67166856
B31: 923 | C31: Københavns Byret | D31: 12.13076452 | E31: 8.885792531 | F31: 8.467714351 | G31: 7.219406038 | H31: 106.718567 | I31: 109.6134618
B32: 924 | C32: Retten på Bornholm | D32: 5.995101458 | E32: 3.273421734 | F32: 0 | G32: 11.35838021 | H32: 7.50432764 | I32: 8.75901086
B34: 1) Gennemsnitlig antal sygedage pr. ansat er ekskl. ansatte under socialt kapitel. Deltidssygdom er inkluderet, men barns sygdom, omsorgsdage og særlige feriedage indgår ikke.
B35: 2) Det gennemsnitlige antal sygedage pr. ansat samlet er beregnet med sygefraværstallet for alle byretterne, de to landsretter, Højesteret og Sø- og Handelsretten.
B36: 3) Perioden for personaleomsætningen opgøres af ISOLA som rullende år og løber fra henholdsvis november 2015 til november 2016 og november 2016 til november 2017.
B37: 4) Lønsumsforbruget inkluderer egentlig løn, over- og merarbejde, stævningsmænd, refusioner og pensionsbidrag og er i faste priser (2017). Lønsummen for 2016 er opregnet til 2017-pl, således at det kan foretages en sammenligning mellem de to år. Samlet vises det gns. lønsumsforbrug pr. byret.

Sheet Årsværk_Pers.kat
B2: ÅRSVÆRKSFORBRUG 2016 OG 2017
D4: Jur | E4: Kon | F4: Elev | G4: Fleks | H4: Øvr. | I4: I ALT | J4: Jur | K4: Kon | L4: Elev | M4: Fleks | N4: Øvr. | O4: I ALT | P4: Jur | Q4: Kon | R4: Elev | S4: Fleks | T4: Øvr. | U4: I ALT | V4: Jur | W4: Kon | X4: Elev | Y4: Fleks | Z4: Øvr. | AA4: I ALT
D5: 2016 | J5: 2017 | P5: 2016 | V5: 2017
D6: - absolutte tal - | J6: - absolutte tal - | P6: - indeks - | V6: - indeks -
C8: SAMLET BYRETTERNE | D8: =SUM(D10:D33) -> 423.14706 | E8: 779.12132 | F8: 78.33462 | G8: 42.69457 | H8: 84.69675 | I8: =SUM(I10:I33) -> 1407.99432 | J8: 412.4092 | K8: 787.60291 | L8: 72.60373 | M8: 44.61379 | N8: 87.16508 | O8: =SUM(O10:O33) -> 1404.39471 | P8: 100 | Q8: 100 | R8: 100 | S8: 100 | T8: 100 | U8: 100 | V8: =J8*100/D8 -> 97.46238105 | W8: =K8*100/E8 -> 101.0886097 | X8: =L8*100/F8 -> 92.68409038 | Y8: 104.4952321 | Z8: 102.9143149 | AA8: =O8*100/I8 -> 99.74434485
B9: EID | C9: Ret
B10: 901 | C10: Retten i Hjørring | D10: 13.09029 | E10: 28.01293 | F10: 2.6186 | G10: 3.43063 | H10: 2.87495 | I10: 50.0274 | J10: 12.0152 | K10: 28.8538 | L10: 1.95973 | M10: 2.75046 | N10: 3.0198 | O10: 48.59899 | P10: 100 | Q10: 100 | R10: 100 | S10: 100 | T10: 100 | U10: 100 | V10: =J10*100/D10 -> 91.78711854 | W10: =K10*100/E10 -> 103.001721 | X10: 74.83884518 | Y10: 80.17361243 | Z10: 105.0383485 | AA10: 97.14474468
B11: 902 | C11: Retten i Aalborg | D11: 21.04804 | E11: 40.85833 | F11: 4.08614 | G11: 1.78715 | H11: 2.63245 | I11: 70.41211 | J11: 20.04874 | K11: 40.77501 | L11: 4.36544 | M11: 2.11826 | N11: 3.49311 | O11: 70.80056 | P11: 100 | Q11: 100 | R11: 100 | S11: 100 | T11: 100 | U11: 100 | V11: =J11*100/D11 -> 95.25228952 | W11: =K11*100/E11 -> 99.79607586 | X11: =L11*100/F11 -> 106.8353018 | Y11: =M11*100/G11 -> 118.5272641 | Z11: =N11*100/H11 -> 132.6942582 | AA11: =O11*100/I11 -> 100.5516807
B12: 903 | C12: Retten i Randers | D12: 14.09916 | E12: 23.69363 | F12: 3.77422 | G12: 2.07464 | H12: 4.16999 | I12: 47.81164 | J12: 12.6618 | K12: 23.96233 | L12: 2.91274 | M12: 2.22419 | N12: 4.42877 | O12: 46.18983 | P12: 100 | Q12: 100 | R12: 100 | S12: 100 | T12: 100 | U12: 100 | V12: 89.80535011 | W12: 101.1340601 | X12: =L12*100/F12 -> 77.17462151 | Y12: 107.2084795 | Z12: 106.2057703 | AA12: 96.60791807
B13: 904 | C13: Retten i Århus | D13: 24.42019 | E13: 41.19717 | F13: 1.97576 | G13: 3.94064 | H13: 5.39189 | I13: 76.92565 | J13: 23.41791 | K13: 44.89386 | L13: 2.03552 | M13: 2.40562 | N13: 4.53097 | O13: 77.28388 | P13: 100 | Q13: 100 | R13: 100 | S13: 100 | T13: 100 | U13: 100 | V13: 95.89569123 | W13: 108.9731649 | X13: 103.0246589 | Y13: 61.04642901 | Z13: 84.03305705 | AA13: 100.4656834
B14: 905 | C14: Retten i Viborg | D14: 13.99976 | E14: 24.30079 | F14: 4.05915 | G14: 2.00006 | H14: 3.54882 | I14: 47.90858 | J14: 13.99941 | K14: 24.05859 | L14: 4.03306 | M14: 2.00006 | N14: 3.62479 | O14: 47.71591 | P14: 100 | Q14: 100 | R14: 100 | S14: 100 | T14: 100 | U14: 100 | V14: 99.99749996 | W14: 99.00332458 | X14: 99.3572546 | Y14: 100 | Z14: 102.1407116 | AA14: 99.59783822
B15: 906 | C15: Retten i Holstebro | D15: 10.09303 | E15: 17.99253 | F15: 1.73304 | G15: 2.06642 | H15: 2.56369 | I15: 34.44871 | J15: 7.80251 | K15: 18.67454 | L15: 1.70836 | M15: 2.24396 | N15: 2.38801 | O15: 32.81738 | P15: 100 | Q15: 100 | R15: 100 | S15: 100 | T15: 100 | U15: 100 | V15: 77.305923 | W15: 103.7905175 | X15: 98.57591285 | Y15: 108.5916706 | Z15: 93.14737741 | AA15: 95.26446709
B16: 907 | C16: Retten i Herning | D16: 10.8528 | E16: 19.73039 | F16: 2.86068 | G16: 0 | H16: 2.00632 | I16: 35.45019 | J16: 11.25485 | K16: 20.28622 | L16: 3.02325 | M16: 0.34975 | N16: 2.29879 | O16: 37.21286 | P16: 100 | Q16: 100 | R16: 100 | S16: 100 | T16: 100 | U16: 100 | V16: 103.7045739 | W16: 102.8171263 | X16: 105.6829146 | Y16: - | Z16: 114.5774353 | AA16: 104.9722442
B17: 908 | C17: Retten i Horsens | D17: 13.10784 | E17: 20.12447 | F17: 3.13895 | G17: 2.10771 | H17: 4.18679 | I17: 42.66576 | J17: 12.80383 | K17: 18.51828 | L17: 3.85349 | M17: 4.31629 | N17: 4.43822 | O17: 43.93011 | P17: 100 | Q17: 100 | R17: 100 | S17: 100 | T17: 100 | U17: 100 | V17: 97.68070102 | W17: 92.01872149 | X17: 122.763663 | Y17: =M17*100/G17 -> 204.7857627 | Z17: 106.0053167 | AA17: 102.9633833
B18: 909 | C18: Retten i Kolding | D18: 19.00959 | E18: 36.55367 | F18: 3.48766 | G18: 3.00011 | H18: 3.12873 | I18: 65.17976 | J18: 18.68477 | K18: 36.50969 | L18: 3.33845 | M18: 3.00009 | N18: 3.39323 | O18: 64.92623 | P18: 100 | Q18: 100 | R18: 100 | S18: 100 | T18: 100 | U18: 100 | V18: 98.2912835 | W18: 99.87968376 | X18: 95.72177334 | Y18: 99.99933336 | Z18: 108.4539094 | AA18: 99.61102956
B19: 910 | C19: Retten i Esbjerg | D19: 13.98767 | E19: 24.25812 | F19: 3.79844 | G19: 1.00003 | H19: 2.79649 | I19: 45.84075 | J19: 13.98469 | K19: 26.00158 | L19: 3.13078 | M19: 1.00003 | N19: 2.95659 | O19: 47.07367 | P19: 100 | Q19: 100 | R19: 100 | S19: 100 | T19: 100 | U19: 100 | V19: 99.97869552 | W19: 107.1871192 | X19: 82.42278409 | Y19: 100 | Z19: 105.7250339 | AA19: 102.6895721
B20: 911 | C20: Retten i Sønderborg | D20: 15.79957 | E20: 29.77665 | F20: 2.08342 | G20: 1.00003 | H20: 3.74604 | I20: 52.40571 | J20: 16.56155 | K20: 29.24831 | L20: 2.13073 | M20: 1.00003 | N20: 4.03272 | O20: 52.97334 | P20: 100 | Q20: 100 | R20: 100 | S20: 100 | T20: 100 | U20: 100 | V20: 104.8227895 | W20: 98.22565668 | X20: 102.2707855 | Y20: 100 | Z20: 107.6528814 | AA20: 101.0831453
B21: 912 | C21: Retten i Odense | D21: 22.41219 | E21: 40.05602 | F21: 3.4123 | G21: 1.07858 | H21: 4.22206 | I21: 71.18115 | J21: 20.31509 | K21: 40.75796 | L21: 2.44719 | M21: 1.07019 | N21: 4.27753 | O21: 68.86796 | P21: 100 | Q21: 100 | R21: 100 | S21: 100 | T21: 100 | U21: 100 | V21: 90.64303845 | W21: 101.7523958 | X21: 71.71673065 | Y21: 99.22212539 | Z21: 101.3138136 | AA21: 96.75027729
B22: 913 | C22: Retten i Svendborg | D22: 9.81133 | E22: 20.09274 | F22: 2.00008 | G22: 1.00003 | H22: 2.77314 | I22: 35.67732 | J22: 10.03782 | K22: 19.02911 | L22: 1.99568 | M22: 1.00003 | N22: 2.95098 | O22: 35.01362 | P22: 100 | Q22: 100 | R22: 100 | S22: 100 | T22: 100 | U22: 100 | V22: 102.3084536 | W22: 94.70639644 | X22: 99.7800088 | Y22: 100 | Z22: 106.4129471 | AA22: 98.13971453
B23: 914 | C23: Retten i Nykøbing F. | D23: 13.56433 | E23: 28.51952 | F23: 1.1729 | G23: 0 | H23: 3.17061 | I23: 46.42736 | J23: 12.63913 | K23: 29.83541 | L23: 1.18053 | M23: 0.27914 | N23: 2.94685 | O23: 46.88106 | P23: 100 | Q23: 100 | R23: 100 | S23: 100 | T23: 100 | U23: 100 | V23: 93.17916919 | W23: 104.6139977 | X23: 100.6505243 | Y23: - | Z23: 92.94268295 | AA23: 100.9772255
B24: 915 | C24: Retten i Næstved | D24: 17.20789 | E24: 32.20663 | F24: 4.21379 | G24: 3.23026 | H24: 2.40646 | I24: 59.26503 | J24: 14.97519 | K24: 34.13728 | L24: 3.26313 | M24: 3.56278 | N24: 3.19346 | O24: 59.13184 | P24: 100 | Q24: 100 | R24: 100 | S24: 100 | T24: 100 | U24: 100 | V24: 87.02513789 | W24: 105.9945732 | X24: 77.43931235 | Y24: 110.2939082 | Z24: 132.7036394 | AA24: 99.77526376
B25: 916 | C25: Retten i Holbæk | D25: 12.5207 | E25: 25.33596 | F25: 3.11739 | G25: 2.65064 | H25: 2.56788 | I25: 46.19257 | J25: 12.33761 | K25: 25.08114 | L25: 2.62766 | M25: 2.26972 | N25: 1.57737 | O25: 43.8935 | P25: 100 | Q25: 100 | R25: 100 | S25: 100 | T25: 100 | U25: 100 | V25: 98.53770157 | W25: 98.99423586 | X25: 84.29038394 | Y25: 85.62913108 | Z25: 61.42693584 | AA25: 95.02285757
B26: 917 | C26: Retten i Roskilde | D26: 18.59425 | E26: 36.45566 | F26: 3.97804 | G26: 0.63256 | H26: 2.3053 | I26: 61.96581 | J26: 18.99181 | K26: 36.56497 | L26: 3.40084 | M26: 1.2433 | N26: 2.47327 | O26: 62.67419 | P26: 100 | Q26: 100 | R26: 100 | S26: 100 | T26: 100 | U26: 100 | V26: 102.1380803 | W26: 100.2998437 | X26: 85.49034198 | Y26: 196.5505249 | Z26: 107.2862534 | AA26: 101.1431788
B27: 918 | C27: Retten i Hillerød | D27: 13.65091 | E27: 23.01597 | F27: 3.94644 | G27: 2.37171 | H27: 4.64629 | I27: 47.63132 | J27: 14.08489 | K27: 21.79332 | L27: 2.75013 | M27: 2.74964 | N27: 5.07171 | O27: 46.44969 | P27: 100 | Q27: 100 | R27: 100 | S27: 100 | T27: 100 | U27: 100 | V27: 103.1791287 | W27: 94.68781894 | X27: 69.68635023 | Y27: 115.9349162 | Z27: 109.1561224 | AA27: 97.51921635
B28: 919 | C28: Retten i Helsingør | D28: 13.55784 | E28: 23.56972 | F28: 3.17885 | G28: 4.32322 | H28: 2.1503 | I28: 46.77993 | J28: 12.97882 | K28: 22.99761 | L28: 2.76201 | M28: 3.10134 | N28: 1.86111 | O28: 43.70089 | P28: 100 | Q28: 100 | R28: 100 | S28: 100 | T28: 100 | U28: 100 | V28: 95.72926071 | W28: 97.57269072 | X28: 86.88708181 | Y28: =M28*100/G28 -> 71.73680729 | Z28: 86.55117891 | AA28: 93.41803205
B29: 920 | C29: Retten i Lyngby | D29: 17.7778 | E29: 28.88693 | F29: 3.10041 | G29: 0 | H29: 3.19449 | I29: 52.95963 | J29: 17.84505 | K29: 30.00472 | L29: 2.38272 | M29: 0.91984 | N29: 3.03377 | O29: 54.1861 | P29: 100 | Q29: 100 | R29: 100 | S29: 100 | T29: 100 | U29: 100 | V29: 100.3782808 | W29: 103.8695355 | X29: 76.85177122 | Y29: - | Z29: 94.96883697 | AA29: 102.3158583
B30: 921 | C30: Retten i Glostrup | D30: 30.66644 | E30: 56.97563 | F30: 3.58287 | G30: 2.00006 | H30: 4.45929 | I30: 97.68429 | J30: 29.82185 | K30: 56.2308 | L30: 4.51074 | M30: 2.00006 | N30: 4.49778 | O30: 97.06123 | P30: 100 | Q30: 100 | R30: 100 | S30: 100 | T30: 100 | U30: 100 | V30: 97.24588182 | W30: 98.69272178 | X30: 125.8973951 | Y30: 100 | Z30: 100.8631419 | AA30: 99.3621697
B31: 922 | C31: Retten på Frederiksberg | D31: 23.17093 | E31: 43.03292 | F31: 3.79 | G31: 3.00009 | H31: 5.01762 | I31: 78.01156 | J31: 22.92363 | K31: 40.91034 | L31: 3.97373 | M31: 3.00901 | N31: 5.96622 | O31: 76.78293 | P31: 100 | Q31: 100 | R31: 100 | S31: 100 | T31: 100 | U31: 100 | V31: 98.9327144 | W31: 95.06754364 | X31: 104.8477573 | Y31: 100.2973244 | Z31: 118.9053774 | AA31: 98.42506675
B32: 923 | C32: Københavns Byret | D32: 57.36273 | E32: 107.80327 | F32: 7.32206 | G32: 0 | H32: 9.08996 | I32: 181.57802 | J32: 58.98521 | K32: 111.3889 | L32: 6.61447 | M32: 0 | N32: 9.19556 | O32: 186.18414 | P32: 100 | Q32: 100 | R32: 100 | S32: 100 | T32: 100 | U32: 100 | V32: 102.8284567 | W32: 103.3260865 | X32: 90.33618954 | Y32: - | Z32: 101.1617213 | AA32: 102.5367167
B33: 924 | C33: Retten på Bornholm | D33: 3.34178 | E33: 6.67167 | F33: 1.90343 | G33: 0 | H33: 1.64719 | I33: 13.56407 | J33: 3.23784 | K33: 7.08914 | L33: 2.20335 | M33: 0 | N33: 1.51447 | O33: 14.0448 | P33: 100 | Q33: 100 | R33: 100 | S33: 100 | T33: 100 | U33: 100 | V33: 96.88968155 | W33: 106.2573539 | X33: 115.756818 | Y33: - | Z33: 91.94264171 | AA33: 103.5441427
B34: 1) Det opgjorte årsværksforbrug er inkl. de korrektioner, der foretages som led i produktivitetsberegningen, hvorfor det ikke kan stemmes af i forhold til eksempelvis prognoseværktøjet SOL.

Sheet Årsværk_Sagsområder
B2: ÅRSVÆRKSFORBRUG DE ENKELTE SAGSOMRÅDER I 2017
E4: Straf | G4: Civil | I4: Foged | K4: Skifte | M4: Notarial
E5: Årsværk | F5: % | G5: Årsværk | H5: % | I5: Årsværk | J5: % | K5: Årsværk | L5: % | M5: Årsværk | N5: %
C7: SAMLET BYRETTERNE | D7: Jurister | E7: 170.4250966 | F7: 0.4132427127 | G7: 139.6920889 | H7: 0.3387220481 | I7: 37.35849351 | J7: 0.09058598476 | K7: 33.60318494 | L7: 0.08148020205 | M7: 0.4642537077 | N7: 0.001125711327
D8: Kontor | E8: 208.8625109 | F8: 0.2651875815 | G8: 142.2524589 | H8: 0.1806144405 | I8: 181.5528071 | J8: 0.2305131238 | K8: 134.0177449 | L8: 0.1701590272 | M8: 13.61367086 | N8: 0.0172849423
D9: Elev | E9: 15.89383911 | F9: 0.2189121565 | G9: 10.46909391 | H9: 0.1441949871 | I9: 21.9946001 | J9: 0.30294036 | K9: 17.03726044 | L9: 0.2346609525 | M9: 0.3393934214 | N9: 0.004674600347
D10: Fleks | E10: 5.00054922 | F10: 0.1120852817 | G10: 6.551687668 | H10: 0.1468534206 | I10: 9.881987226 | J10: 0.2215007339 | K10: 4.593556659 | L10: 0.1029627086 | M10: 1.789061561 | N10: 0.04010108896
D11: Øvrige | E11: 8.005590647 | F11: 0.09184401192 | G11: 2.827199359 | H11: 0.03243499988 | I11: 6.531549055 | J11: 0.0749330931 | K11: 0.758552043 | L11: 0.008702476301 | M11: 0.9277287228 | N11: 0.01064335308
B12: EID | C12: Ret
B13: 901 | C13: Retten i Hjørring | D13: Jurister | E13: 4.459984395 | F13: 0.3711951857 | G13: 4.558378389 | H13: 0.3793843123 | I13: 1.039146583 | J13: 0.08648599968 | K13: 1.106427454 | L13: 0.09208564601 | M13: 0.004198037867 | N13: 0.0003493939233
B14: 901 | C14: Retten i Hjørring | D14: Kontor | E14: 6.776897677 | F14: 0.2348701965 | G14: 5.282315717 | H14: 0.183071752 | I14: 8.408303992 | J14: 0.2914106285 | K14: 5.243650027 | L14: 0.1817316966 | M14: 0.4193207229 | N14: 0.01453259962
B15: 901 | C15: Retten i Hjørring | D15: Elev | E15: 0.4643160405 | F15: 0.2369285771 | G15: 0.5190097517 | H15: 0.2648373764 | I15: 0.513643429 | J15: 0.2620990794 | K15: 0.33346635 | L15: 0.1701593332 | M15: 0.0006847930924 | N15: 0.0003494323669
B16: 901 | C16: Retten i Hjørring | D16: Fleks | E16: 0.9442433662 | F16: 0.3433037987 | G16: 0.924108246 | H16: 0.3359831614 | I16: 0.2549794184 | J16: 0.09270428163 | K16: 0.3972608421 | L16: 0.1444343281 | M16: 0.2198503998 | N16: 0.07993222946
B17: 901 | C17: Retten i Hjørring | D17: Øvrige | E17: 0.1702213764 | F17: 0.05636842719 | G17: 0.1746874064 | H17: 0.057847343 | I17: 0.02052864746 | J17: 0.006798015583 | K17: 0.0004162141444 | L17: 0.0001378283808 | M17: 0 | N17: 0
B18: 902 | C18: Retten i Aalborg | D18: Jurister | E18: 7.270427012 | F18: 0.3626376028 | G18: 7.346012575 | H18: 0.3664076932 | I18: 2.133799727 | J18: 0.1064306149 | K18: 2.211464207 | L18: 0.1103043985 | M18: 0.008853758064 | N18: 0.0004416116955
B19: 902 | C19: Retten i Aalborg | D19: Kontor | E19: 7.370322134 | F19: 0.1807558633 | G19: 7.424050031 | H19: 0.1820735306 | I19: 8.620529847 | J19: 0.2114169891 | K19: 8.345607037 | L19: 0.2046745553 | M19: 0.6927634816 | N19: 0.01698990341
B20: 902 | C20: Retten i Aalborg | D20: Elev | E20: 0.8571709639 | F20: 0.196353853 | G20: 0.6305388988 | H20: 0.1444387963 | I20: 1.613578431 | J20: 0.369625612 | K20: 1.090184435 | L20: 0.2497307111 | M20: 0.004196626156 | N20: 0.0009613294779
B21: 902 | C21: Retten i Aalborg | D21: Fleks | E21: 0.08173263111 | F21: 0.03858479654 | G21: 0 | H21: 0 | I21: 0.6940474555 | J21: 0.3276497954 | K21: 0.6080376253 | L21: 0.2870457948 | M21: 0 | N21: 0
B22: 902 | C22: Retten i Aalborg | D22: Øvrige | E22: 0.6257230144 | F22: 0.1791306356 | G22: 0.1183457548 | H22: 0.03387976755 | I22: 1.590773392 | J22: 0.4554031772 | K22: 0.0006785495579 | L22: 0.0001942537046 | M22: 0 | N22: 0
B23: 903 | C23: Retten i Randers | D23: Jurister | E23: 4.411719272 | F23: 0.3484274963 | G23: 4.489769862 | H23: 0.3545917533 | I23: 1.284836214 | J23: 0.1014734251 | K23: 1.08263726 | L23: 0.08550421422 | M23: 0.0042556011 | N23: 0.0003360976402
B24: 903 | C24: Retten i Randers | D24: Kontor | E24: 5.210808896 | F24: 0.2174583563 | G24: 5.991750037 | H24: 0.2500487239 | I24: 4.651955786 | J24: 0.194136204 | K24: 5.356749269 | L24: 0.2235487646 | M24: 0.3846309786 | N24: 0.01605148492
B25: 903 | C25: Retten i Randers | D25: Elev | E25: 0.3727486113 | F25: 0.1279718105 | G25: 0.5915971867 | H25: 0.2031067609 | I25: 0.8530996402 | J25: 0.2928856129 | K25: 1.025805438 | L25: 0.3521788549 | M25: 0.008194075706 | N25: 0.002813184735
B26: 903 | C26: Retten i Randers | D26: Fleks | E26: 0.02548281956 | F26: 0.01145712352 | G26: 0.5006114504 | H26: 0.225075848 | I26: 0.02099434932 | J26: 0.009439098871 | K26: 0.1258633347 | L26: 0.0565883916 | M26: 0.05045402928 | N26: 0.02268422629
B27: 903 | C27: Retten i Randers | D27: Øvrige | E27: 0.03900854175 | F27: 0.008807985458 | G27: 0 | H27: 0 | I27: 0.4997596115 | J27: 0.1128438848 | K27: 0 | L27: 0 | M27: 0 | N27: 0
B28: 904 | C28: Retten i Århus | D28: Jurister | E28: 10.8266546 | F28: 0.4623236915 | G28: 6.392342849 | H28: 0.2729681192 | I28: 2.199470948 | J28: 0.09392259805 | K28: 2.627171834 | L28: 0.1121864348 | M28: 0.04595021419 | N28: 0.001962182543
B29: 904 | C29: Retten i Århus | D29: Kontor | E29: 15.37504439 | F29: 0.3424754384 | G29: 7.872410324 | H29: 0.1753560581 | I29: 8.817170735 | J29: 0.1964003705 | K29: 7.622121145 | L29: 0.1697809265 | M29: 1.032541811 | N29: 0.02299962202
B30: 904 | C30: Retten i Århus | D30: Elev | E30: 0.00879648034 | F30: 0.004321490499 | G30: 0.5948879267 | H30: 0.2922535405 | I30: 1.027448154 | J30: 0.5047595474 | K30: 0.3374981694 | L30: 0.1658043986 | M30: 0.003020738178 | N30: 0.001484013018
B31: 904 | C31: Retten i Århus | D31: Fleks | E31: 0.2365784045 | F31: 0.09834404624 | G31: 0.007056189366 | H31: 0.002933210302 | I31: 1.16645226 | J31: 0.4848863328 | K31: 0 | L31: 0 | M31: 0.002072195261 | N31: 0.000861397586
B32: 904 | C32: Retten i Århus | D32: Øvrige | E32: 0.681796821 | F32: 0.1504748036 | G32: 0.1385698139 | H32: 0.03058281425 | I32: 0.1152774358 | J32: 0.0254421097 | K32: 0.001251106852 | L32: 0.0002761234023 | M32: 0.00101162551 | N32: 0.0002232690815
B33: 905 | C33: Retten i Viborg | D33: Jurister | E33: 4.043091349 | F33: 0.2888044103 | G33: 5.340459786 | H33: 0.3814774898 | I33: 1.485719258 | J33: 0.1061272766 | K33: 1.809234511 | L33: 0.1292364829 | M33: 0.0178533173 | N33: 0.001275290694
B34: 905 | C34: Retten i Viborg | D34: Kontor | E34: 5.292508215 | F34: 0.2199841393 | G34: 4.896736348 | H34: 0.2035338042 | I34: 6.55585676 | J34: 0.2724954688 | K34: 3.677660447 | L34: 0.152862676 | M34: 0.5884547504 | N34: 0.02445923682
B35: 905 | C35: Retten i Viborg | D35: Elev | E35: 0.7892078305 | F35: 0.1956846242 | G35: 0.576008368 | H35: 0.1428216709 | I35: 1.782822104 | J35: 0.4420519665 | K35: 0.6540130865 | L35: 0.1621629945 | M35: 0.04103539567 | N35: 0.01017475457
B36: 905 | C36: Retten i Viborg | D36: Fleks | E36: 0.5253628479 | F36: 0.2626735437 | G36: 0.6900267384 | H36: 0.3450030191 | I36: 0.6838978613 | J36: 0.3419386725 | K36: 0 | L36: 0 | M36: 0.005812503602 | N36: 0.002906164616
B37: 905 | C37: Retten i Viborg | D37: Øvrige | E37: 0.1789806309 | F37: 0.04937682759 | G37: 0.06285925065 | H37: 0.01734148755 | I37: 0.8230064998 | J37: 0.227049429 | K37: 0 | L37: 0 | M37: 0 | N37: 0
B38: 906 | C38: Retten i Holstebro | D38: Jurister | E38: 3.007393734 | F38: 0.3854392668 | G38: 2.300329678 | H38: 0.29481919 | I38: 0.6518296041 | J38: 0.08354101489 | K38: 0.8958739879 | L38: 0.1148186914 | M38: 0.01580949258 | N38: 0.002026206
B39: 906 | C39: Retten i Holstebro | D39: Kontor | E39: 4.30525711 | F39: 0.2305415347 | G39: 3.969196067 | H39: 0.2125458548 | I39: 4.571510939 | J39: 0.244799119 | K39: 3.82674909 | L39: 0.2049179841 | M39: 0.4036476918 | N39: 0.02161486665
B40: 906 | C40: Retten i Holstebro | D40: Elev | E40: 0.2128337218 | F40: 0.1245836485 | G40: 0.0348450562 | H40: 0.02039678768 | I40: 0.4135925268 | J40: 0.2420991634 | K40: 0.9930887022 | L40: 0.5813111418 | M40: 0.007117945118 | N40: 0.004166536981
B41: 906 | C41: Retten i Holstebro | D41: Fleks | E41: 0 | F41: 0 | G41: 0.1093009631 | H41: 0.04870896233 | I41: 0 | J41: 0 | K41: 0 | L41: 0 | M41: 0 | N41: 0
B42: 906 | C42: Retten i Holstebro | D42: Øvrige | E42: 0.1612260859 | F42: 0.06751482862 | G42: 0.005275797978 | H42: 0.002209286384 | I42: 0 | J42: 0 | K42: 0 | L42: 0 | M42: 0 | N42: 0
B43: 907 | C43: Retten i Herning | D43: Jurister | E43: 4.39579411 | F43: 0.3905688756 | G43: 3.695814428 | H43: 0.3283752719 | I43: 1.048342532 | J43: 0.0931458466 | K43: 1.482104456 | L43: 0.1316858471 | M43: 0.04574792923 | N43: 0.004064730248
B44: 907 | C44: Retten i Herning | D44: Kontor | E44: 4.759377304 | F44: 0.2346113423 | G44: 3.550936741 | H44: 0.1750418137 | I44: 5.641234935 | J44: 0.2780821136 | K44: 4.152920702 | L44: 0.2047163396 | M44: 0.4711256656 | N44: 0.02322392568
B45: 907 | C45: Retten i Herning | D45: Elev | E45: 0.8978755167 | F45: 0.2969901651 | G45: 0.2044712791 | H45: 0.06763293777 | I45: 1.022622398 | J45: 0.3382526744 | K45: 0.689531591 | L45: 0.2280762726 | M45: 0.03357418276 | N45: 0.01110532796
B46: 907 | C46: Retten i Herning | D46: Fleks | E46: 0.01387950605 | F46: 0.03968407734 | G46: 0.0003481485875 | H46: 0.0009954212652 | I46: 0.2168733409 | J46: 0.6200810318 | K46: 0.01050246475 | L46: 0.03002849107 | M46: 0 | N46: 0
B47: 907 | C47: Retten i Herning | D47: Øvrige | E47: 0.1462879482 | F47: 0.06363693431 | G47: 0 | H47: 0 | I47: 0.0002133298077 | J47: 9.280091164e-05 | K47: 0 | L47: 0 | M47: 0 | N47: 0
B48: 908 | C48: Retten i Horsens | D48: Jurister | E48: 3.997762237 | F48: 0.3122317492 | G48: 4.735191173 | H48: 0.3698261515 | I48: 1.651390544 | J48: 0.1289762941 | K48: 1.747483166 | L48: 0.1364812846 | M48: 0.007811856655 | N48: 0.0006101187422
B49: 908 | C49: Retten i Horsens | D49: Kontor | E49: 3.04336839 | F49: 0.1643440098 | G49: 3.301183283 | H49: 0.1782661934 | I49: 4.628091144 | J49: 0.2499201408 | K49: 4.019017955 | L49: 0.2170297649 | M49: 0.6168831308 | N49: 0.03331211812
B50: 908 | C50: Retten i Horsens | D50: Elev | E50: 0.3354063953 | F50: 0.08703964336 | G50: 0.5918782263 | H50: 0.153595371 | I50: 0.8807568854 | J50: 0.2285608333 | K50: 1.523357874 | L50: 0.3953190158 | M50: 0.08783243793 | N50: 0.02279295857
B51: 908 | C51: Retten i Horsens | D51: Fleks | E51: 0.07061180404 | F51: 0.01635937438 | G51: 1.682119657 | H51: 0.3897142354 | I51: 0.5518405605 | J51: 0.1278506682 | K51: 0.9964587391 | L51: 0.2308600069 | M51: 0.007249029411 | N51: 0.00167945838
B52: 908 | C52: Retten i Horsens | D52: Øvrige | E52: 0.9242444882 | F52: 0.2082466593 | G52: 0.04748448043 | H52: 0.01069899204 | I52: 0.7415918162 | J52: 0.1670921712 | K52: 0.2333493559 | L52: 0.05257723951 | M52: 0.01940154706 | N52: 0.004371470332
B53: 909 | C53: Retten i Kolding | D53: Jurister | E53: 7.980273166 | F53: 0.4271004228 | G53: 7.120871828 | H53: 0.3811056721 | I53: 1.408030821 | J53: 0.0753571396 | K53: 0.9492877679 | L53: 0.05080542966 | M53: 0.03602997061 | N53: 0.001928306883
B54: 909 | C54: Retten i Kolding | D54: Kontor | E54: 9.587498628 | F54: 0.26260148 | G54: 6.963819492 | H54: 0.1907389379 | I54: 8.742683229 | J54: 0.2394619957 | K54: 6.619164675 | L54: 0.1812988463 | M54: 0.8757605446 | N54: 0.0239870715
B55: 909 | C55: Retten i Kolding | D55: Elev | E55: 0.46468049 | F55: 0.1391904896 | G55: 0.8547693581 | H55: 0.2560377894 | I55: 0.9044340246 | J55: 0.2709143538 | K55: 1.047019789 | L55: 0.313624523 | M55: 0.01599607635 | N55: 0.004791468002
B56: 909 | C56: Retten i Kolding | D56: Fleks | E56: 1.00003 | F56: 0.3333333333 | G56: 0 | H56: 0 | I56: 1.00003 | J56: 0.3333333333 | K56: 0 | L56: 0 | M56: 0 | N56: 0
B57: 909 | C57: Retten i Kolding | D57: Øvrige | E57: 0 | F57: 0 | G57: 0.119496279 | H57: 0.03521608586 | I57: 0.03435921798 | J57: 0.01012581463 | K57: 0.1539985337 | L57: 0.04538405405 | M57: 0 | N57: 0
B58: 910 | C58: Retten i Esbjerg | D58: Jurister | E58: 6.997756185 | F58: 0.5003869364 | G58: 3.35719677 | H58: 0.2400622946 | I58: 1.643692164 | J58: 0.1175351162 | K58: 0.9407398035 | L58: 0.06726926399 | M58: 0.01750719868 | N58: 0.001251883215
B59: 910 | C59: Retten i Esbjerg | D59: Kontor | E59: 7.419851342 | F59: 0.2853615566 | G59: 4.109680487 | H59: 0.1580550293 | I59: 6.699464084 | J59: 0.257656038 | K59: 5.379371376 | L59: 0.2068863267 | M59: 0.3876175731 | N59: 0.01490746228
B60: 910 | C60: Retten i Esbjerg | D60: Elev | E60: 0.5868076399 | F60: 0.187431771 | G60: 0.4658844937 | H60: 0.1488078031 | I60: 1.32238684 | J60: 0.4223825501 | K60: 0.5610524851 | L60: 0.179205337 | M60: 0.01015461069 | N60: 0.003243476288
B61: 910 | C61: Retten i Esbjerg | D61: Fleks | E61: 0 | F61: 0 | G61: 0 | H61: 0 | I61: 0 | J61: 0 | K61: 0.9996802902 | L61: 0.9996503007 | M61: 0.0003497097623 | N61: 0.0003496992714
B62: 910 | C62: Retten i Esbjerg | D62: Øvrige | E62: 0 | F62: 0 | G62: 0.001392245532 | H62: 0.0004708957047 | I62: 0 | J62: 0 | K62: 0 | L62: 0 | M62: 0 | N62: 0
B63: 911 | C63: Retten i Sønderborg | D63: Jurister | E63: 6.802915279 | F63: 0.4107656155 | G63: 6.434215503 | H63: 0.38850322 | I63: 1.27172266 | J63: 0.07678765939 | K63: 0.9877150373 | L63: 0.0596390457 | M63: 0.01134664485 | N63: 0.0006851197415
B64: 911 | C64: Retten i Sønderborg | D64: Kontor | E64: 7.675928124 | F64: 0.2624400563 | G64: 3.839868197 | H64: 0.1312851306 | I64: 7.552458703 | J64: 0.2582186356 | K64: 5.994646866 | L64: 0.204957034 | M64: 0.7057563366 | N64: 0.02412981593
B65: 911 | C65: Retten i Sønderborg | D65: Elev | E65: 0.6981978234 | F65: 0.3276801018 | G65: 0.649226745 | H65: 0.3046968621 | I65: 0.4788598716 | J65: 0.2247398176 | K65: 0.09987067816 | L65: 0.04687157836 | M65: 0.02015257364 | N65: 0.009458060682
B66: 911 | C66: Retten i Sønderborg | D66: Fleks | E66: 0 | F66: 0 | G66: 0 | H66: 0 | I66: 0 | J66: 0 | K66: 0 | L66: 0 | M66: 0 | N66: 0
B67: 911 | C67: Retten i Sønderborg | D67: Øvrige | E67: 0.08294452863 | F67: 0.02056788684 | G67: 0.4222285345 | H67: 0.104700682 | I67: 0.1890450081 | J67: 0.04687779168 | K67: 0.03501772336 | L67: 0.008683400622 | M67: 0.02698831934 | N67: 0.006692336521
B68: 912 | C68: Retten i Odense | D68: Jurister | E68: 8.31167824 | F68: 0.4091381451 | G68: 5.891440749 | H68: 0.2900031823 | I68: 2.164775124 | J68: 0.1065599574 | K68: 1.801268076 | L68: 0.08866650733 | M68: 0.02014716523 | N68: 0.0009917339886
B69: 912 | C69: Retten i Odense | D69: Kontor | E69: 13.04408618 | F69: 0.320037759 | G69: 6.530764156 | H69: 0.1602328516 | I69: 8.817032928 | J69: 0.2163266495 | K69: 8.8675527 | L69: 0.2175661564 | M69: 0.5546631967 | N69: 0.0136087085
B70: 912 | C70: Retten i Odense | D70: Elev | E70: 0.9146833524 | F70: 0.3737688338 | G70: 0.03983147913 | H70: 0.01627641463 | I70: 0.8114563264 | J70: 0.3315869738 | K70: 0.6214760585 | L70: 0.2539549682 | M70: 0.0006771373651 | N70: 0.0002766999559
B71: 912 | C71: Retten i Odense | D71: Fleks | E71: 0.001265460042 | F71: 0.001182462966 | G71: 0 | H71: 0 | I71: 0.6565741075 | J71: 0.6135117199 | K71: 0 | L71: 0 | M71: 0 | N71: 0
B72: 912 | C72: Retten i Odense | D72: Øvrige | E72: 0.01144785302 | F72: 0.002676276501 | G72: 0 | H72: 0 | I72: 0.292653035 | J72: 0.06841636062 | K72: 0 | L72: 0 | M72: 0.5000198445 | N72: 0.1168945266
B73: 913 | C73: Retten i Svendborg | D73: Jurister | E73: 4.474380013 | F73: 0.4457521666 | G73: 2.704577528 | H73: 0.2694387355 | I73: 1.05378321 | J73: 0.1049812818 | K73: 0.8550965738 | L73: 0.08518747834 | M73: 0.007578542098 | N73: 0.0007549988043
B74: 913 | C74: Retten i Svendborg | D74: Kontor | E74: 5.540427196 | F74: 0.2911553507 | G74: 3.014550101 | H74: 0.1584178188 | I74: 4.164195878 | J74: 0.218832929 | K74: 3.673248308 | L74: 0.1930331113 | M74: 0.06305144948 | N74: 0.003313420832
B75: 913 | C75: Retten i Svendborg | D75: Elev | E75: 0.553429116 | F75: 0.2773135553 | G75: 0.3846875579 | H75: 0.1927601409 | I75: 0.09278538857 | J75: 0.04649311942 | K75: 0.3644852815 | L75: 0.182637137 | M75: 0.001323665506 | N75: 0.0006632654065
B76: 913 | C76: Retten i Svendborg | D76: Fleks | E76: 0.01614470053 | F76: 0.0161442162 | G76: 0.002482528004 | H76: 0.00248245353 | I76: 0.00799108415 | J76: 0.007990844424 | K76: 0.03896708877 | L76: 0.03896591979 | M76: 0.3845623533 | N76: 0.3845508168
B77: 913 | C77: Retten i Svendborg | D77: Øvrige | E77: 0.2862900272 | F77: 0.09701523805 | G77: 0.04933730464 | H77: 0.01671895595 | I77: 0.5602055817 | J77: 0.1898371326 | K77: 0.04861456671 | L77: 0.01647404141 | M77: 0.007238901642 | N77: 0.002453050052
B78: 914 | C78: Retten i Nykøbing F. | D78: Jurister | E78: 5.583471023 | F78: 0.4417607085 | G78: 3.519278161 | H78: 0.2784430701 | I78: 1.49921157 | J78: 0.1186166746 | K78: 1.203229659 | L78: 0.09519877228 | M78: 0 | N78: 0
B79: 914 | C79: Retten i Nykøbing F. | D79: Kontor | E79: 7.388243173 | F79: 0.2476333716 | G79: 3.594740568 | H79: 0.1204857104 | I79: 8.825619417 | J79: 0.2958102274 | K79: 5.377798313 | L79: 0.1802488491 | M79: 0.3508956529 | N79: 0.01176104679
B80: 914 | C80: Retten i Nykøbing F. | D80: Elev | E80: 0.5676816756 | F80: 0.4808701817 | G80: 0.1006785349 | H80: 0.08528248741 | I80: 0.349408568 | J80: 0.2959760176 | K80: 0 | L80: 0 | M80: 0 | N80: 0
B81: 914 | C81: Retten i Nykøbing F. | D81: Fleks | E81: 0 | F81: 0 | G81: 0 | H81: 0 | I81: 0 | J81: 0 | K81: 0 | L81: 0 | M81: 0 | N81: 0
B82: 914 | C82: Retten i Nykøbing F. | D82: Øvrige | E82: 0 | F82: 0 | G82: 0 | H82: 0 | I82: 0.01337580174 | J82: 0.004539016827 | K82: 0 | L82: 0 | M82: 0.01323500382 | N82: 0.004491237703
B83: 915 | C83: Retten i Næstved | D83: Jurister | E83: 6.396046993 | F83: 0.4271095721 | G83: 4.253312581 | H83: 0.2840239477 | I83: 1.670266308 | J83: 0.111535567 | K83: 1.428703341 | L83: 0.09540468877 | M83: 0.002596988535 | N83: 0.0001734194047
B84: 915 | C84: Retten i Næstved | D84: Kontor | E84: 6.867122714 | F84: 0.2011619764 | G84: 5.15323879 | H84: 0.1509563383 | I84: 9.829723443 | J84: 0.2879468851 | K84: 6.571536086 | L84: 0.1925032131 | M84: 0.3794905996 | N84: 0.0111166033
B85: 915 | C85: Retten i Næstved | D85: Elev | E85: 0.5579289549 | F85: 0.1709796897 | G85: 0.3300802304 | H85: 0.1011544837 | I85: 1.341795435 | J85: 0.4111988902 | K85: 0.6031781608 | L85: 0.1848465004 | M85: 0 | N85: 0
B86: 915 | C86: Retten i Næstved | D86: Fleks | E86: 0.5789461867 | F86: 0.1624984385 | G86: 0.002455265273 | H86: 0.0006891431053 | I86: 0.756472881 | J86: 0.2123265767 | K86: 0.100532228 | L86: 0.028217355 | M86: 0.3693033157 | N86: 0.1036559416
B87: 915 | C87: Retten i Næstved | D87: Øvrige | E87: 0.1268020873 | F87: 0.03970680306 | G87: 0.03839893262 | H87: 0.01202424099 | I87: 0.01979083401 | J87: 0.006197301362 | K87: 0 | L87: 0 | M87: 0.003534035279 | N87: 0.001106647736
B88: 916 | C88: Retten i Holbæk | D88: Jurister | E88: 4.175987782 | F88: 0.338476235 | G88: 3.631108839 | H88: 0.2943121754 | I88: 1.606257821 | J88: 0.1301919757 | K88: 1.3151445 | L88: 0.1065963748 | M88: 0.0156586959 | N88: 0.001269183894
B89: 916 | C89: Retten i Holbæk | D89: Kontor | E89: 4.754522672 | F89: 0.1895656526 | G89: 4.438866868 | H89: 0.1769802676 | I89: 7.369647432 | J89: 0.2938322354 | K89: 4.681019804 | L89: 0.1866350494 | M89: 0.4173220032 | N89: 0.01663887699
B90: 916 | C90: Retten i Holbæk | D90: Elev | E90: 0.8208724751 | F90: 0.3123967618 | G90: 0.6077348576 | H90: 0.2312836735 | I90: 0.6132577103 | J90: 0.2333854876 | K90: 0.3921432714 | L90: 0.1492366864 | M90: 0.004039215028 | N90: 0.001537190895
B91: 916 | C91: Retten i Holbæk | D91: Fleks | E91: 1.022639686 | F91: 0.4505576398 | G91: 1.000036754 | H91: 0.4405991724 | I91: 0.2470435603 | J91: 0.1088431878 | K91: 0 | L91: 0 | M91: 0 | N91: 0
B92: 916 | C92: Retten i Holbæk | D92: Øvrige | E92: 0.06137037111 | F92: 0.03890676957 | G92: 0 | H92: 0 | I92: 0.035736807 | J92: 0.02265594439 | K92: 0 | L92: 0 | M92: 0.01146268513 | N92: 0.007266960278
B93: 917 | C93: Retten i Roskilde | D93: Jurister | E93: 7.638930567 | F93: 0.4022223562 | G93: 6.287559646 | H93: 0.3310668992 | I93: 1.875750707 | J93: 0.09876629491 | K93: 2.01028624 | L93: 0.1058501659 | M93: 0.02888309428 | N93: 0.001520818409
B94: 917 | C94: Retten i Roskilde | D94: Kontor | E94: 8.741697975 | F94: 0.2390730247 | G94: 7.859919836 | H94: 0.2149576449 | I94: 7.646533057 | J94: 0.2091218195 | K94: 6.804405757 | L94: 0.1860908338 | M94: 0.4595735876 | N94: 0.01256868493
B95: 917 | C95: Retten i Roskilde | D95: Elev | E95: 1.474780373 | F95: 0.4336517957 | G95: 0.2350287479 | H95: 0.06910902833 | I95: 0.4952835585 | J95: 0.1456356543 | K95: 1.090674836 | L95: 0.3207074829 | M95: 0.01169281543 | N95: 0.00343821392
B96: 917 | C96: Retten i Roskilde | D96: Fleks | E96: 0 | F96: 0 | G96: 0 | H96: 0 | I96: 0 | J96: 0 | K96: 0 | L96: 0 | M96: 0 | N96: 0
B97: 917 | C97: Retten i Roskilde | D97: Øvrige | E97: 0 | F97: 0 | G97: 0.001995864745 | H97: 0.0008069740645 | I97: 0.305291903 | J97: 0.1234365447 | K97: 0 | L97: 0 | M97: 0.002265577176 | N97: 0.0009160250099
B98: 918 | C98: Retten i Hillerød | D98: Jurister | E98: 5.431070989 | F98: 0.3855955559 | G98: 4.671361767 | H98: 0.3316576677 | I98: 1.138226098 | J98: 0.0808118557 | K98: 1.262063742 | L98: 0.08960408934 | M98: 0.01864431453 | N98: 0.00132371034
B99: 918 | C99: Retten i Hillerød | D99: Kontor | E99: 5.618129671 | F99: 0.2577913632 | G99: 3.810957224 | H99: 0.174868135 | I99: 4.331620595 | J99: 0.1987590966 | K99: 4.912534663 | L99: 0.2254146988 | M99: 0.2901756883 | N99: 0.01331489137
B100: 918 | C100: Retten i Hillerød | D100: Elev | E100: 0.909797254 | F100: 0.3308197263 | G100: 0.2827876523 | H100: 0.1028270127 | I100: 0.8014876116 | J100: 0.2914362636 | K100: 0.7369195871 | L100: 0.2679580918 | M100: 0 | N100: 0
B101: 918 | C101: Retten i Hillerød | D101: Fleks | E101: 0 | F101: 0 | G101: 0.04019688776 | H101: 0.01461896385 | I101: 1.159621964 | J101: 0.4217359233 | K101: 0 | L101: 0 | M101: 0.2763325986 | N101: 0.1004977374
B102: 918 | C102: Retten i Hillerød | D102: Øvrige | E102: 1.555155746 | F102: 0.3066334127 | G102: 0.1157995178 | H102: 0.0228324407 | I102: 0.3735262189 | J102: 0.07364897024 | K102: 0.1166289694 | L102: 0.02299598545 | M102: 0.2705602029 | N102: 0.05334693879
B103: 919 | C103: Retten i Helsingør | D103: Jurister | E103: 4.544843181 | F103: 0.3501738356 | G103: 4.853737662 | H103: 0.373973725 | I103: 1.549742507 | J103: 0.1194055012 | K103: 1.089700145 | L103: 0.0839598781 | M103: 0.02489569145 | N103: 0.001918178344
B104: 919 | C104: Retten i Helsingør | D104: Kontor | E104: 4.84994635 | F104: 0.2108891467 | G104: 4.260681719 | H104: 0.1852662828 | I104: 6.232000601 | J104: 0.2709847067 | K104: 4.508601621 | L104: 0.1960465292 | M104: 0.1885519671 | N104: 0.008198763571
B105: 919 | C105: Retten i Helsingør | D105: Elev | E105: 0.3958180575 | F105: 0.1433079741 | G105: 0.3309278357 | H105: 0.1198141338 | I105: 1.303069318 | J105: 0.4717829833 | K105: 0.6450954032 | L105: 0.2335601259 | M105: 0 | N105: 0
B106: 919 | C106: Retten i Helsingør | D106: Fleks | E106: 0.2244007055 | F106: 0.07235604787 | G106: 0.04585869018 | H106: 0.01478673418 | I106: 0.5038459603 | J106: 0.16246073 | K106: 0.3162240462 | L106: 0.1019636822 | M106: 0.4730754266 | N106: 0.1525390401
B107: 919 | C107: Retten i Helsingør | D107: Øvrige | E107: 0.000910770372 | F107: 0.0004893694473 | G107: 0.05214458807 | H107: 0.02801800435 | I107: 0 | J107: 0 | K107: 0 | L107: 0 | M107: 0 | N107: 0
B108: 920 | C108: Retten i Lyngby | D108: Jurister | E108: 4.518644059 | F108: 0.2532155449 | G108: 9.908252785 | H108: 0.5552381632 | I108: 1.126976269 | J108: 0.06315343858 | K108: 1.214242066 | L108: 0.06804363484 | M108: 0.00874217367 | N108: 0.0004898934814
B109: 920 | C109: Retten i Lyngby | D109: Kontor | E109: 4.804852189 | F109: 0.1601365448 | G109: 8.258716508 | H109: 0.2752472447 | I109: 4.311137637 | J109: 0.1436819819 | K109: 6.784235111 | L109: 0.2261055964 | M109: 1.372395257 | N109: 0.04573931226
B110: 920 | C110: Retten i Lyngby | D110: Elev | E110: 0.4287482787 | F110: 0.1799406891 | G110: 0.3194917873 | H110: 0.1340870045 | I110: 0.6185781565 | J110: 0.2596100912 | K110: 0.2498500779 | L110: 0.1048591853 | M110: 0.01623809912 | N110: 0.006814942218
B111: 920 | C111: Retten i Lyngby | D111: Fleks | E111: 0 | F111: 0 | G111: 0.0006833224263 | H111: 0.0007428709626 | I111: 0.8752639329 | J111: 0.9515393252 | K111: 0 | L111: 0 | M111: 0 | N111: 0
B112: 920 | C112: Retten i Lyngby | D112: Øvrige | E112: 0.04362422404 | F112: 0.0143795423 | G112: 0.01048690657 | H112: 0.00345672433 | I112: 0.005888029686 | J112: 0.001940829294 | K112: 0 | L112: 0 | M112: 0 | N112: 0
B113: 921 | C113: Retten i Glostrup | D113: Jurister | E113: 13.50260189 | F113: 0.4527754613 | G113: 9.763808404 | H113: 0.3274045173 | I113: 3.169350257 | J113: 0.1062761115 | K113: 1.212956903 | L113: 0.04067342913 | M113: 0.06807555545 | N113: 0.002282740858
B114: 921 | C114: Retten i Glostrup | D114: Kontor | E114: 15.12579721 | F114: 0.2689948785 | G114: 10.51262761 | H114: 0.1869549714 | I114: 16.15092853 | J114: 0.287225658 | K114: 6.433858263 | L114: 0.1144187574 | M114: 0.7995894884 | N114: 0.01421977792
B115: 921 | C115: Retten i Glostrup | D115: Elev | E115: 0.723657563 | F115: 0.1604298991 | G115: 0.8631014485 | H115: 0.1913436484 | I115: 0.8600544695 | J115: 0.1906681541 | K115: 1.35648701 | L115: 0.3007238302 | M115: 0.001047658381 | N115: 0.0002322586497
B116: 921 | C116: Retten i Glostrup | D116: Fleks | E116: 0 | F116: 0 | G116: 0 | H116: 0 | I116: 0 | J116: 0 | K116: 1.00003 | L116: 0.5 | M116: 0 | N116: 0
B117: 921 | C117: Retten i Glostrup | D117: Øvrige | E117: 0.1715145994 | F117: 0.03813316779 | G117: 0.1651660247 | H117: 0.03672167708 | I117: 0.01032425059 | J117: 0.002295410311 | K117: 0 | L117: 0 | M117: 0 | N117: 0
B118: 922 | C118: Retten på Frederiksberg | D118: Jurister | E118: 11.77778382 | F118: 0.5137835421 | G118: 7.339083634 | H118: 0.3201536421 | I118: 1.429464383 | J118: 0.06235767997 | K118: 1.447400758 | L118: 0.0631401204 | M118: 0.007546728475 | N118: 0.0003292117555
B119: 922 | C119: Retten på Frederiksberg | D119: Kontor | E119: 11.95649416 | F119: 0.2922609336 | G119: 7.396051548 | H119: 0.1807868511 | I119: 9.901152611 | J119: 0.2420207852 | K119: 6.022794207 | L119: 0.1472193633 | M119: 0.5072410894 | N119: 0.01239884805
B120: 922 | C120: Retten på Frederiksberg | D120: Elev | E120: 0.3896962484 | F120: 0.0980681245 | G120: 0.3273128392 | H120: 0.08236916933 | I120: 1.658999118 | J120: 0.417491656 | K120: 1.25838467 | L120: 0.3166759368 | M120: 0 | N120: 0
B121: 922 | C121: Retten på Frederiksberg | D121: Fleks | E121: 0.2592311017 | F121: 0.08615162519 | G121: 1.546402827 | H121: 0.5139241236 | I121: 1.08605849 | J121: 0.360935487 | K121: 0 | L121: 0 | M121: 0 | N121: 0
B122: 922 | C122: Retten på Frederiksberg | D122: Øvrige | E122: 0.1886825886 | F122: 0.03162514768 | G122: 0.1230089589 | H122: 0.02061757007 | I122: 0.5154052575 | J122: 0.08638723639 | K122: 0.168324356 | L122: 0.02821289794 | M122: 0.06658663948 | N122: 0.01116060747
B123: 923 | C123: Københavns Byret | D123: Jurister | E123: 29.07331752 | F123: 0.4928916507 | G123: 20.51172372 | H123: 0.3477435059 | I123: 2.955961369 | J123: 0.05011360253 | K123: 2.42727938 | L123: 0.04115064403 | M123: 0.03503921606 | N123: 0.0005940339292
B124: 923 | C124: Københavns Byret | D124: Kontor | E124: 42.00856271 | F124: 0.3771341912 | G124: 19.07192268 | H124: 0.1712192389 | I124: 18.0022492 | J124: 0.1616161862 | K124: 7.72324609 | L124: 0.0693358682 | M124: 1.572352748 | N124: 0.01411588361
B125: 923 | C125: Københavns Byret | D125: Elev | E125: 1.805720859 | F125: 0.2729955475 | G125: 0.8490765199 | H125: 0.1283665237 | I125: 1.737675473 | J125: 0.2627081948 | K125: 1.033751253 | L125: 0.1562863317 | M125: 0.06632212576 | N125: 0.01002682388
B126: 923 | C126: Københavns Byret | D126: Fleks | E126: 0 | F126: - | G126: 0 | H126: - | I126: 0 | J126: - | K126: 0 | L126: - | M126: 0 | N126: -
B127: 923 | C127: Københavns Byret | D127: Øvrige | E127: 2.54542202 | F127: 0.2768098974 | G127: 1.180521698 | H127: 0.128379533 | I127: 0.3845237091 | J127: 0.04181623621 | K127: 0 | L127: 0 | M127: 0.005424340982 | N127: 0.0005898869652
B128: 924 | C128: Retten på Bornholm | D128: Jurister | E128: 0.8025691346 | F128: 0.2478717709 | G128: 0.5862605667 | H128: 0.1810653296 | I128: 0.3007468265 | J128: 0.09288501794 | K128: 0.495674076 | L128: 0.1530878845 | M128: 0.01108152092 | N128: 0.003422504176
B129: 924 | C129: Retten på Bornholm | D129: Kontor | E129: 1.345766469 | F129: 0.1898349403 | G129: 1.147474574 | H129: 0.1618637203 | I129: 1.081705645 | J129: 0.1525863003 | K129: 1.419255434 | L129: 0.200201355 | M129: 0.07986544084 | N129: 0.01126588568
B130: 924 | C130: Retten på Bornholm | D130: Elev | E130: 0.6629833863 | F130: 0.3008978993 | G130: 0.08523712947 | H130: 0.03868524268 | I130: 0.4975046664 | J130: 0.2257946611 | K130: 0.3299262273 | L130: 0.1497384561 | M130: 0.006093249561 | N130: 0.002765447868
B131: 924 | C131: Retten på Bornholm | D131: Fleks | E131: 0 | F131: - | G131: 0 | H131: - | I131: 0 | J131: - | K131: 0 | L131: - | M131: 0 | N131: -
B132: 924 | C132: Retten på Bornholm | D132: Øvrige | E132: 0.003936924777 | F132: 0.002599539626 | G132: 0 | H132: 0 | I132: 0.0002726673762 | J132: 0.000180041451 | K132: 0.0002726673762 | L132: 0.000180041451 | M132: 0 | N132: 0
B134: 1) Procenten er beregnet i forhold til det samlede årsværksforbrug ved retten inkl. generel ledelse og administration, hvorfor der ikke kan summes op til 100 % for den enkelte ret.
B135: 2) Ansatte under socialt kapitel (fleksjobbere mv.) uden tidsfordeling indgår ikke i denne opgørelse.
B136: 3) Det opgjorte årsværksforbrug er inkl. de korrektioner, der foretages som led i produktivitetsberegningen.

Sheet Dataark til 901-924 (hidden)
B11: Samlet produktivitet, retten | D11: Samlet produktivitet, jurister | F11: Samlet produktivitet, kontor | H11: ÅRVK ledelse og adm. | J11: Sagstider domsmandssager | L11: Sagstider hfh. alm. Civil | N11: Sagstid alm. fogedsag | P11: Målopfyldelse vold | R11: Målopfyldelse voldtægt | T11: Sygefravær | V11: Personaleomsætning | X11: Årsværk retten | Z11: Årsværk jurist | AB11: Årsværk kontor | AD11: Samlet lønsum
A12: Ret | B12: 2013 | C12: 2014 | D12: 2013 | E12: 2014 | F12: 2013 | G12: 2014 | H12: 2013 | I12: 2014 | J12: 2013 | K12: 2014 | L12: 2013 | M12: 2014 | N12: 2013 | O12: 2014 | P12: 2013 | Q12: 2014 | R12: 2013 | S12: 2014 | T12: 2013 | U12: 2014 | V12: 2013 | W12: 2014 | X12: 2013 | Y12: 2014 | Z12: 2013 | AA12: 2014 | AB12: 2013 | AC12: 2014 | AD12: 2013 | AE12: 2014
A13: Retten i Hjørring | B13: 102.9146793 | C13: 103.5231212 | D13: 101.4346809 | E13: 100.759754 | F13: 103.2149744 | G13: 103.3974315 | H13: 0.1868261939 | I13: 0.1665256771 | J13: 96 | K13: 95 | L13: 631.7745665 | M13: 525.5742574 | N13: 49.86269469 | O13: 49.91041129 | P13: 64 | Q13: 56.25 | R13: 75 | S13: 33.33333333 | T13: 5.7 | U13: 8.9 | V13: 12.7 | W13: 5.7 | X13: 53.476 | Y13: 50.05401 | Z13: 14.51677 | AA13: 13.73052 | AB13: 29.3254 | AC13: 28.51714 | AD13: 25.23077424 | AE13: 23.90913679 | AF13: Retten i Hjørring
A14: Retten i Aalborg | B14: 98.62855147 | C14: 96.6556053 | D14: 98.45801217 | E14: 89.37239006 | F14: 98.27397591 | G14: 106.1063077 | H14: 0.1339181623 | I14: 0.1197207669 | J14: 106 | K14: 114 | L14: 593.4757282 | M14: 527.4122807 | N14: 41.55710276 | O14: 43.94413408 | P14: 33.89830508 | Q14: 54.28571429 | R14: 60 | S14: 100 | T14: 5.1 | U14: 7.5 | V14: 12 | W14: 14.9 | X14: 75.60557 | Y14: 74.76297 | Z14: 20.77576 | AA14: 23.25516 | AB14: 43.97071 | AC14: 40.42406 | AD14: 36.32284163 | AE14: 36.63402749 | AF14: Retten i Aalborg
A15: Retten i Randers | B15: 97.0241151 | C15: 103.339095 | D15: 91.55018696 | E15: 96.00976208 | F15: 105.3368061 | G15: 117.9593277 | H15: 0.1980503732 | I15: 0.2099300769 | J15: 151 | K15: 124 | L15: 622.7865854 | M15: 555.5109489 | N15: 47.72560892 | O15: 58.37249399 | P15: 40 | Q15: 47.72727273 | R15: 0 | S15: 66.66666667 | T15: 6.9 | U15: 8.2 | V15: 10.8 | W15: 16.8 | X15: 51.35568 | Y15: 51.06822 | Z15: 14.54448 | AA15: 14.54934 | AB15: 28.09834 | AC15: 26.15055 | AD15: 26.74664964 | AE15: 25.62575263 | AF15: Retten i Randers
A16: Retten i Århus | B16: 98.14882931 | C16: 96.18247078 | D16: 94.28098483 | E16: 89.7982108 | F16: 104.1593869 | G16: 109.6431052 | H16: 0.1656399121 | I16: 0.1516882453 | J16: 140 | K16: 139 | L16: 494.8684211 | M16: 483.0638298 | N16: 56.95581015 | O16: 59.21347896 | P16: 38.46153846 | Q16: 27.08333333 | R16: 100 | S16: 14.28571429 | T16: 10.8 | U16: 9.6 | V16: 11.6 | W16: 13.7 | X16: 83.99051 | Y16: 81.20104 | Z16: 25.22725 | AA16: 25.26038 | AB16: 45.35235 | AC16: 41.33383 | AD16: 41.02113215 | AE16: 40.6273674 | AF16: Retten i Århus
A17: Retten i Viborg | B17: 97.24417792 | C17: 96.93034019 | D17: 92.31263346 | E17: 86.7549527 | F17: 105.8387295 | G17: 111.2954665 | H17: 0.1831987808 | I17: 0.1776954429 | J17: 108 | K17: 128 | L17: 534.7073171 | M17: 519.2689655 | N17: 47.35630204 | O17: 51.79351254 | P17: 67.74193548 | Q17: 62.16216216 | R17: 0 | S17: 100 | T17: 4.7 | U17: 5.9 | V17: 16.2 | W17: 19.2 | X17: 53.08464 | Y17: 52.03653 | Z17: 15.00269 | AA17: 15.44982 | AB17: 28.03999 | AC17: 26.36467 | AD17: 25.88336059 | AE17: 24.61018693 | AF17: Retten i Viborg
A18: Retten i Holstebro | B18: 103.5572491 | C18: 100.812459 | D18: 103.5300145 | E18: 99.45621923 | F18: 106.9435187 | G18: 105.1031682 | H18: 0.2155162205 | I18: 0.2143408913 | J18: 86 | K18: 84 | L18: 475.9032258 | M18: 413.4242424 | N18: 32.54022491 | O18: 34.27151899 | P18: 72.72727273 | Q18: 71.42857143 | R18: 100 | S18: 50 | T18: 5 | U18: 7.3 | V18: 16.2 | W18: 14.1 | X18: 38.40156 | Y18: 37.12805 | Z18: 9.67165 | AA18: 9.58671 | AB18: 20.53304 | AC18: 20.18777 | AD18: 19.40336905 | AE18: 19.09541128 | AF18: Retten i Holstebro
A19: Retten i Herning | B19: 92.5848018 | C19: 99.65816242 | D19: 82.04356593 | E19: 89.417041 | F19: 104.7436876 | G19: 111.3990738 | H19: 0.1955231872 | I19: 0.1893007858 | J19: 94 | K19: 91 | L19: 433.9708738 | M19: 520.7297297 | N19: 46.84155791 | O19: 46.73239437 | P19: 52.63157895 | Q19: 76.92307692 | R19: 16.66666667 | S19: 66.66666667 | T19: 8.6 | U19: 5.7 | V19: 15.3 | W19: 15.6 | X19: 38.76992 | Y19: 37.47035 | Z19: 11.84085 | AA19: 11.39788 | AB19: 20.75833 | AC19: 20.21608 | AD19: 20.02559767 | AE19: 19.00288448 | AF19: Retten i Herning
A20: Retten i Horsens | B20: 96.30874721 | C20: 89.74637006 | D20: 90.97352822 | E20: 80.99846156 | F20: 103.1020684 | G20: 100.8419553 | H20: 0.1979407442 | I20: 0.1918271636 | J20: 96 | K20: 111 | L20: 418 | M20: 434.1073826 | N20: 49.71742972 | O20: 46.29432687 | P20: 47.05882353 | Q20: 40 | R20: 0 | S20: 50 | T20: 5.3 | U20: 7.7 | V20: 13.3 | W20: 15.7 | X20: 49.88988 | Y20: 48.3814 | Z20: 14.06581 | AA20: 14.3927 | AB20: 25.31688 | AC20: 24.3045 | AD20: 24.53226103 | AE20: 24.09609649 | AF20: Retten i Horsens
A21: Retten i Kolding | B21: 103.4065127 | C21: 102.7438446 | D21: 93.44213967 | E21: 95.50833868 | F21: 112.1976912 | G21: 109.1412959 | H21: 0.1814648532 | I21: 0.1734292531 | J21: 105 | K21: 99 | L21: 510.0465116 | M21: 480.371134 | N21: 46.31372549 | O21: 52.97362322 | P21: 61.2244898 | Q21: 60 | R21: 100 | S21: 75 | T21: 11.7 | U21: 15.9 | V21: 6.6 | W21: 15.3 | X21: 67.53552 | Y21: 66.6538 | Z21: 21.33572 | AA21: 19.78779 | AB21: 37.2161 | AC21: 36.96165 | AD21: 35.21200134 | AE21: 33.98298785 | AF21: Retten i Kolding
A22: Retten i Esbjerg | B22: 99.69839621 | C22: 96.95557776 | D22: 95.03327915 | E22: 90.16354519 | F22: 101.4630039 | G22: 101.1639788 | H22: 0.1544399994 | I22: 0.1449473346 | J22: 143 | K22: 133 | L22: 631.4972067 | M22: 627.1860465 | N22: 58.91485835 | O22: 42.71642026 | P22: 30.86419753 | Q22: 40 | R22: 0 | S22: 0 | T22: 10.3 | U22: 8.5 | V22: 15 | W22: 15.2 | X22: 54.27444 | Y22: 51.83652 | Z22: 14.92874 | AA22: 14.62602 | AB22: 29.74744 | AC22: 27.96305 | AD22: 26.28483427 | AE22: 25.05472688 | AF22: Retten i Esbjerg
A23: Retten i Sønderborg | B23: 103.0055282 | C23: 106.4151909 | D23: 98.84884045 | E23: 103.7144091 | F23: 105.9415153 | G23: 108.6960709 | H23: 0.1968216784 | I23: 0.2000639601 | J23: 77 | K23: 81 | L23: 588.0246914 | M23: 405.7076923 | N23: 52.85101266 | O23: 51.7282204 | P23: 75.67567568 | Q23: 63.82978723 | R23: 100 | S23: - | T23: 7 | U23: 6.2 | V23: 10.2 | W23: 10.3 | X23: 58.41784 | Y23: 55.80884 | Z23: 17.36145 | AA23: 15.55415 | AB23: 33.50583 | AC23: 32.17316 | AD23: 32.07104816 | AE23: 30.87363142 | AF23: Retten i Sønderborg
A24: Retten i Odense | B24: 108.3800934 | C24: 96.5395286 | D24: 106.2807687 | E24: 89.58908157 | F24: 110.9626462 | G24: 104.5850874 | H24: 0.1610274217 | I24: 0.1668205188 | J24: 97 | K24: 92 | L24: 460.0165746 | M24: 410.88 | N24: 50.36748596 | O24: 60.92986425 | P24: 51.11111111 | Q24: 45.71428571 | R24: 40 | S24: 30.76923077 | T24: 7.7 | U24: 9.5 | V24: 8.3 | W24: 7.9 | X24: 77.86296 | Y24: 77.07732 | Z24: 21.81471 | AA24: 23.71285 | AB24: 45.22965 | AC24: 43.9482 | AD24: 38.81514503 | AE24: 38.61886183 | AF24: Retten i Odense
A25: Retten i Svendborg | B25: 98.99112703 | C25: 99.80214422 | D25: 96.48288534 | E25: 95.62400779 | F25: 103.5551398 | G25: 107.9791467 | H25: 0.1662743921 | I25: 0.1705922523 | J25: 105 | K25: 122 | L25: 479.2658228 | M25: 477.09375 | N25: 47.2630719 | O25: 56.18881119 | P25: 56.60377358 | Q25: 51.28205128 | R25: 40 | S25: 0 | T25: 14.2 | U25: 7.4 | V25: 17.7 | W25: 14.5 | X25: 36.96098 | Y25: 36.62017 | Z25: 10.30021 | AA25: 10.27236 | AB25: 21.70681 | AC25: 20.21508 | AD25: 19.70705955 | AE25: 18.51114105 | AF25: Retten i Svendborg
A26: Retten i Nykøbing F. | B26: 101.1958707 | C26: 99.31443827 | D26: 103.2506045 | E26: 101.3997252 | F26: 99.98645671 | G26: 96.93095285 | H26: 0.2136326657 | I26: 0.1807260383 | J26: 94 | K26: 80 | L26: 390.2222222 | M26: 382.2692308 | N26: 51.22872467 | O26: 46.03074305 | P26: 43.83561644 | Q26: 67.30769231 | R26: 100 | S26: 50 | T26: 3.8 | U26: 7.2 | V26: 15.8 | W26: 11.5 | X26: 49.93317 | Y26: 50.32492 | Z26: 13.97805 | AA26: 13.82973 | AB26: 30.55141 | AC26: 30.67865 | AD26: 25.6823684 | AE26: 25.17850572 | AF26: Retten i Nykøbing F.
A27: Retten i Næstved | B27: 106.4522251 | C27: 102.3117616 | D27: 101.2406033 | E27: 95.96222851 | F27: 111.6879755 | G27: 108.2319237 | H27: 0.2110018934 | I27: 0.2055415245 | J27: 132 | K27: 137 | L27: 524.7538462 | M27: 502.7627119 | N27: 59.44236241 | O27: 69.69931074 | P27: 38.0952381 | Q27: 31.81818182 | R27: 50 | S27: 22.22222222 | T27: 9 | U27: 8 | V27: 19.7 | W27: 12.6 | X27: 63.45753 | Y27: 60.64993 | Z27: 18.70124 | AA27: 17.55258 | AB27: 35.80973 | AC27: 34.2524 | AD27: 31.63077126 | AE27: 29.79163161 | AF27: Retten i Næstved
A28: Retten i Holbæk | B28: 97.5198651 | C28: 101.478968 | D28: 98.0654575 | E28: 98.97449175 | F28: 95.65987869 | G28: 102.2496137 | H28: 0.1791150763 | I28: 0.1726009196 | J28: 121 | K28: 92 | L28: 423.1904762 | M28: 406.2105263 | N28: 61.38024691 | O28: 62.59675489 | P28: 66.66666667 | Q28: 60 | R28: 66.66666667 | S28: 33.33333333 | T28: 7.3 | U28: 8.7 | V28: 14.1 | W28: 18.7 | X28: 49.02491 | Y28: 45.54094 | Z28: 12.88079 | AA28: 12.52644 | AB28: 27.5082 | AC28: 25.08951 | AD28: 23.08612638 | AE28: 22.46541318 | AF28: Retten i Holbæk
A29: Retten i Roskilde | B29: 101.069153 | C29: 101.644567 | D29: 93.84592474 | E29: 99.36044334 | F29: 107.666467 | G29: 101.7161825 | H29: 0.1856861136 | I29: 0.1794598483 | J29: 152 | K29: 133 | L29: 631.7375566 | M29: 468.0430108 | N29: 62.14235163 | O29: 56.66790871 | P29: 38.46153846 | Q29: 26.66666667 | R29: - | S29: 0 | T29: 8 | U29: 4.5 | V29: 19.9 | W29: 11.9 | X29: 73.92877 | Y29: 71.54561 | Z29: 22.48327 | AA29: 20.71814 | AB29: 41.59892 | AC29: 43.09007 | AD29: 38.57747683 | AE29: 37.60096141 | AF29: Retten i Roskilde
A30: Retten i Hillerød | B30: 98.37624366 | C30: 92.68948395 | D30: 93.0362009 | E30: 83.08629181 | F30: 111.8642549 | G30: 111.2224862 | H30: 0.2259331167 | I30: 0.1991529722 | J30: 93 | K30: 113 | L30: 457.4690265 | M30: 502.826087 | N30: 49.4952913 | O30: 52.278487 | P30: 56.25 | Q30: 41.37931034 | R30: 50 | S30: 50 | T30: 9.2 | U30: 11.2 | V30: 20.1 | W30: 12.9 | X30: 51.95118 | Y30: 51.27185 | Z30: 14.9175 | AA30: 15.82924 | AB30: 25.88941 | AC30: 24.89634 | AD30: 26.59530339 | AE30: 25.43023796 | AF30: Retten i Hillerød
A31: Retten i Helsingør | B31: 96.60724523 | C31: 95.73488114 | D31: 85.9110245 | E31: 81.20297998 | F31: 105.9668203 | G31: 112.4083829 | H31: 0.1578139783 | I31: 0.1449705115 | J31: 106 | K31: 112 | L31: 446.7733333 | M31: 559.9230769 | N31: 55.7016081 | O31: 68.93901858 | P31: 53.84615385 | Q31: 40 | R31: - | S31: 0 | T31: 13.1 | U31: 10.5 | V31: 17.9 | W31: 8.1 | X31: 47.84352 | Y31: 48.75499 | Z31: 14.47586 | AA31: 15.65373 | AB31: 25.18211 | AC31: 23.82526 | AD31: 25.17136882 | AE31: 24.29663369 | AF31: Retten i Helsingør
A32: Retten i Lyngby | B32: 96.82753324 | C32: 88.90590959 | D32: 86.51477605 | E32: 79.383929 | F32: 110.7851418 | G32: 101.3125505 | H32: 0.2167293196 | I32: 0.2029569311 | J32: 103 | K32: 105 | L32: 475.2258065 | M32: 385.046729 | N32: 39.57969813 | O32: 41.28764479 | P32: 72.72727273 | Q32: 60 | R32: 100 | S32: 33.33333333 | T32: 9.7 | U32: 8.8 | V32: 15.3 | W32: 16.5 | X32: 55.74239 | Y32: 55.26352 | Z32: 19.51242 | AA32: 18.80749 | AB32: 29.6227 | AC32: 29.49397 | AD32: 31.14209533 | AE32: 29.34078699 | AF32: Retten i Lyngby
A33: Retten i Glostrup | B33: 98.98202225 | C33: 104.7182355 | D33: 100.008897 | E33: 103.6593422 | F33: 99.29484206 | G33: 101.7834329 | H33: 0.2005362955 | I33: 0.1838177813 | J33: 146 | K33: 142 | L33: 614.8410405 | M33: 509.8187702 | N33: 75.69489089 | O33: 80.59972946 | P33: 43.75 | Q33: 32.89473684 | R33: 0 | S33: 0 | T33: 11.8 | U33: 7.5 | V33: 20.6 | W33: 17.3 | X33: 115.40872 | Y33: 106.84539 | Z33: 32.60759 | AA33: 30.84999 | AB33: 66.42532 | AC33: 63.61432 | AD33: 56.2588608 | AE33: 54.12637493 | AF33: Retten i Glostrup
A34: Retten på Frederiksberg | B34: 101.2561076 | C34: 103.1249909 | D34: 97.63529013 | E34: 96.62965753 | F34: 107.7453051 | G34: 112.175938 | H34: 0.2027823079 | I34: 0.1769760671 | J34: 180 | K34: 162 | L34: 551.3023256 | M34: 542.7112299 | N34: 86.15949623 | O34: 76.66579713 | P34: 8.695652174 | Q34: 26.47058824 | R34: 0 | S34: 40 | T34: 12 | U34: 10.9 | V34: 18.3 | W34: 15.6 | X34: 79.92535 | Y34: 80.89792 | Z34: 23.83584 | AA34: 25.78624 | AB34: 44.71399 | AC34: 43.13565 | AD34: 40.40890417 | AE34: 40.72638703 | AF34: Retten på Frederiksberg
A35: Københavns Byret | B35: 96.14494276 | C35: 94.63679124 | D35: 97.09472333 | E35: 93.86221962 | F35: 91.31934696 | G35: 91.19352344 | H35: 0.2065795179 | I35: 0.2060769464 | J35: 96 | K35: 104 | L35: 512.7992278 | M35: 529.8726592 | N35: 78.12335474 | O35: 73.15736591 | P35: 70 | Q35: 38.02816901 | R35: - | S35: 16.66666667 | T35: 8.1 | U35: 10.3 | V35: 9.6 | W35: 8.7 | X35: 190.18872 | Y35: 186.12346 | Z35: 58.73651 | AA35: 59.37777 | AB35: 113.64497 | AC35: 108.74881 | AD35: 102.9923745 | AE35: 101.9412044 | AF35: Københavns Byret
A36: Retten på Bornholm | B36: 63.43657445 | C36: 62.38123174 | D36: 64.7059556 | E36: 61.18431382 | F36: 66.6434586 | G36: 67.97281795 | H36: 0.3379421224 | I36: 0.3262324987 | J36: 46 | K36: 35 | L36: 291.3529412 | M36: 332.1111111 | N36: 27.57464366 | O36: 27.50285249 | P36: 94.73684211 | Q36: 78.94736842 | R36: 100 | S36: - | T36: 7.2 | U36: 8.7 | V36: 6.4 | W36: 19.4 | X36: 14.55013 | Y36: 14.58443 | Z36: 3.48785 | AA36: 3.77068 | AB36: 7.80507 | AC36: 7.52959 | AD36: 7.31 | AE36: 7.08154941 | AF36: Retten på Bornholm
B37: 0 | C37: 0 | D37: 0 | E37: 0 | F37: 0 | G37: 0 | H37: 0 | I37: 0 | J37: 0 | K37: 0 | L37: 0 | M37: 0 | N37: 0 | O37: 0 | P37: 0 | Q37: 0 | R37: 0 | S37: 0 | T37: 0 | U37: 0 | V37: 0 | W37: 0 | X37: 0 | Y37: 0 | Z37: 0 | AA37: 0 | AB37: 0 | AC37: 0 | AD37: 0 | AE37: 0
B41: Samlet produktivitet, retten | D41: Samlet produktivitet, jurister | F41: Samlet produktivitet, kontor | H41: ÅRVK ledelse og adm. | J41: Sagstider domsmandssager | L41: Sagstider hfh. alm. Civil | N41: Sagstid alm. fogedsag | P41: Målopfyldelse vold | R41: Målopfyldelse voldtægt | T41: Sygefravær | V41: Personaleomsætning | X41: Årsværk retten | Z41: Årsværk jurist | AB41: Årsværk kontor | AD41: Samlet lønsum
A42: Ret | B42: 2010 | C42: 2011 | D42: 2010 | E42: 2011 | F42: 2010 | G42: 2011 | H42: 2011 | J42: 2011 | L42: 2011 | N42: 2011 | P42: 2011 | R42: 2011 | T42: 2011 | V42: 2011 | X42: 2011 | Z42: 2011 | AB42: 2011 | AD42: 2011
A43: Retten i Hjørring | H43: 0.1808500373 | I43: =#REF!-H43 ->  | J43: 93 | K43: =J13-J43 -> 3 | L43: 588.737931 | M43: =L13-L43 -> 43.03663544 | N43: 59.02804965 | O43: =N13-N43 -> -9.165354958 | P43: 72.72727273 | Q43: =P13-P43 -> -8.727272727 | R43: 75 | S43: =R13-R43 -> 0 | T43: 9.195340336 | U43: =T13-T43 -> -3.495340336 | V43: 13.3 | W43: =V13-V43 -> -0.6 | X43: 59.79526 | Y43: =#REF!-X43 ->  | Z43: 13.34803 | AA43: =#REF!-Z43 ->  | AB43: 33.06976 | AC43: =#REF!-AB43 ->  | AD43: 25.84077727 | AE43: =AD13-AD43 -> -0.61000303
A44: Retten i Aalborg | H44: 0.1440885883 | I44: =#REF!-H44 ->  | J44: 89 | K44: =J14-J44 -> 17 | L44: 549.7346939 | M44: =L14-L44 -> 43.74103428 | N44: 81.29756381 | O44: =N14-N44 -> -39.74046105 | P44: 70 | Q44: =P14-P44 -> -36.10169492 | R44: 0 | S44: =R14-R44 -> 60 | T44: 7.44756948 | U44: =T14-T44 -> -2.34756948 | V44: 11.1 | W44: =V14-V44 -> 0.9 | X44: 80.50898 | Y44: =#REF!-X44 ->  | Z44: 22.18722 | AA44: =#REF!-Z44 ->  | AB44: 48.742 | AC44: =#REF!-AB44 ->  | AD44: 38.77436805 | AE44: =AD14-AD44 -> -2.45152642
A45: Retten i Randers | H45: 0.2242573374 | I45: =#REF!-H45 ->  | J45: 160 | K45: -9 | L45: 633.4363636 | M45: -10.64977827 | N45: 76.65538674 | O45: -28.92977782 | P45: 43.1372549 | Q45: -3.137254902 | R45: 0 | S45: 0 | T45: 7.923213529 | U45: -1.023213529 | V45: 6.1 | W45: 4.7 | X45: 58.17027 | Y45: =#REF!-X45 ->  | Z45: 16.642 | AA45: =#REF!-Z45 ->  | AB45: 31.602 | AC45: =#REF!-AB45 ->  | AD45: 28.27830635 | AE45: -1.53165671
A46: Retten i Århus | H46: 0.1740744916 | I46: =#REF!-H46 ->  | J46: 187 | K46: -47 | L46: 585.8815789 | M46: -91.01315789 | N46: 68.09649662 | O46: -11.14068647 | P46: 44.44444444 | Q46: -5.982905983 | R46: 0 | S46: 100 | T46: 10.94548768 | U46: -0.1454876758 | V46: 11.4 | W46: 0.2 | X46: 90.00205 | Y46: =#REF!-X46 ->  | Z46: 26.56876 | AA46: =#REF!-Z46 ->  | AB46: 50.61565 | AC46: =#REF!-AB46 ->  | AD46: 43.96941009 | AE46: -2.94827794
A47: Retten i Viborg | H47: 0.1869106164 | I47: =#REF!-H47 ->  | J47: 110 | K47: -2 | L47: 598.0942408 | M47: -63.38692376 | N47: 70.36160608 | O47: -23.00530404 | P47: 67.64705882 | Q47: 0.09487666034 | R47: 100 | S47: -100 | T47: 7.021671724 | U47: -2.321671724 | V47: 10.2 | W47: 6 | X47: 55.19659 | Y47: =#REF!-X47 ->  | Z47: 15.1701 | AA47: =#REF!-Z47 ->  | AB47: 30.18242 | AC47: =#REF!-AB47 ->  | AD47: 26.64360749 | AE47: -0.7602469
A48: Retten i Holstebro | H48: 0.2156894162 | I48: =#REF!-H48 ->  | J48: 99 | K48: -13 | L48: 517.1038961 | M48: -41.2006703 | N48: 33.32733875 | O48: -0.787113838 | P48: 44.06779661 | Q48: 28.65947612 | R48: 66.66666667 | S48: 33.33333333 | T48: 7.512563132 | U48: -2.512563132 | V48: 11.9 | W48: 4.3 | X48: 46.44103 | Y48: =#REF!-X48 ->  | Z48: 11.27 | AA48: =#REF!-Z48 ->  | AB48: 23.056 | AC48: =#REF!-AB48 ->  | AD48: 21.76629581 | AE48: -2.36292676
A49: Retten i Herning | H49: 0.2140891957 | I49: =#REF!-H49 ->  | J49: 93 | K49: 1 | L49: 504 | M49: -70.02912621 | N49: 46.15043463 | O49: 0.6911232819 | P49: 60.41666667 | Q49: -7.785087719 | R49: 0 | S49: 16.66666667 | T49: 12.53367166 | U49: -3.933671661 | V49: 17.4 | W49: -2.1 | X49: 42.52615 | Y49: =#REF!-X49 ->  | Z49: 11.84873 | AA49: =#REF!-Z49 ->  | AB49: 23.57106 | AC49: =#REF!-AB49 ->  | AD49: 21.11471095 | AE49: -1.08911328
A50: Retten i Horsens | H50: 0.1978894442 | I50: =#REF!-H50 ->  | J50: 75 | K50: 21 | L50: 454.2037037 | M50: -36.2037037 | N50: 53.19851049 | O50: -3.481080771 | P50: 54.23728814 | Q50: -7.178464606 | R50: 999 | S50: -999 | T50: 9.656788281 | U50: -4.356788281 | V50: 12.5 | W50: 0.8 | X50: 53.41053 | Y50: =#REF!-X50 ->  | Z50: 14.38903 | AA50: =#REF!-Z50 ->  | AB50: 26.41923 | AC50: =#REF!-AB50 ->  | AD50: 25.08928797 | AE50: -0.55702694
A51: Retten i Kolding | H51: 0.1649720064 | I51: =#REF!-H51 ->  | J51: 150 | K51: -45 | L51: 651.4146341 | M51: -141.3681225 | N51: 50.7865086 | O51: -4.47278311 | P51: 65.51724138 | Q51: -4.292751583 | R51: 999 | S51: -899 | T51: 8.675627926 | U51: 3.024372074 | V51: 6.1 | W51: 0.5 | X51: 76.6875 | Y51: =#REF!-X51 ->  | Z51: 20.54952 | AA51: =#REF!-Z51 ->  | AB51: 45.06554 | AC51: =#REF!-AB51 ->  | AD51: 36.12998449 | AE51: -0.91798315
A52: Retten i Esbjerg | H52: 0.160884098 | I52: =#REF!-H52 ->  | J52: 134 | K52: 9 | L52: 627.5329949 | M52: 3.96421178 | N52: 57.25041368 | O52: 1.664444668 | P52: 31.91489362 | Q52: -1.050696086 | R52: 20 | S52: -20 | T52: 9.830962196 | U52: 0.469037804 | V52: 12.2 | W52: 2.8 | X52: 56.23196 | Y52: =#REF!-X52 ->  | Z52: 15.1442 | AA52: =#REF!-Z52 ->  | AB52: 32.03157 | AC52: =#REF!-AB52 ->  | AD52: 27.40345038 | AE52: -1.11861611
A53: Retten i Sønderborg | H53: 0.2093655007 | I53: =#REF!-H53 ->  | J53: 146 | K53: -69 | L53: 670.3020134 | M53: -82.27732206 | N53: 66.74565217 | O53: -13.89463951 | P53: 51.25 | Q53: 24.42567568 | R53: 0 | S53: 100 | T53: 5.1 | U53: 1.9 | V53: 12.9 | W53: -2.7 | X53: 62.58565 | Y53: =#REF!-X53 ->  | Z53: 15.411 | AA53: =#REF!-Z53 ->  | AB53: 36.905 | AC53: =#REF!-AB53 ->  | AD53: 32.31378702 | AE53: -0.24273886
A54: Retten i Odense | H54: 0.1463671875 | I54: =#REF!-H54 ->  | J54: 86 | K54: 11 | L54: 428.4694836 | M54: 31.54709102 | N54: 66.62457364 | O54: -16.25708768 | P54: 60.46511628 | Q54: -9.354005168 | R54: 37.5 | S54: 2.5 | T54: 7.222463525 | U54: 0.4775364751 | V54: 20.8 | W54: -12.5 | X54: 89.18757 | Y54: =#REF!-X54 ->  | Z54: 24.26146 | AA54: =#REF!-Z54 ->  | AB54: 52.27552 | AC54: =#REF!-AB54 ->  | AD54: 42.19547545 | AE54: -3.38033042
A55: Retten i Svendborg | H55: 0.2310023534 | I55: =#REF!-H55 ->  | J55: 100 | K55: 5 | L55: 457.0487805 | M55: 22.2170423 | N55: 39.74894068 | O55: 7.514131217 | P55: 60.52631579 | Q55: -3.922542205 | R55: 0 | S55: 40 | T55: 7.534810135 | U55: 6.665189865 | V55: 13.5 | W55: 4.2 | X55: 46.62935 | Y55: =#REF!-X55 ->  | Z55: 12.16381 | AA55: =#REF!-Z55 ->  | AB55: 26.86367 | AC55: =#REF!-AB55 ->  | AD55: 21.33413431 | AE55: -1.62707476
A56: Retten i Nykøbing F. | H56: 0.2106800886 | I56: =#REF!-H56 ->  | J56: 89 | K56: 5 | L56: 511.1076923 | M56: -120.8854701 | N56: 58.32441823 | O56: -7.095693557 | P56: 75 | Q56: -31.16438356 | R56: 33.33333333 | S56: 66.66666667 | T56: 3.1 | U56: 0.7 | V56: 5.9 | W56: 9.9 | X56: 57.71872 | Y56: =#REF!-X56 ->  | Z56: 15.11914 | AA56: =#REF!-Z56 ->  | AB56: 36.06329 | AC56: =#REF!-AB56 ->  | AD56: 27.75952561 | AE56: -2.07715721
A57: Retten i Næstved | H57: 0.2009634119 | I57: =#REF!-H57 ->  | J57: 175 | K57: -43 | L57: 667.1578947 | M57: -142.4040486 | N57: 90.31952363 | O57: -30.87716122 | P57: 19.60784314 | Q57: 18.48739496 | R57: 42.85714286 | S57: 7.142857143 | T57: 9.143692893 | U57: -0.1436928928 | V57: 8.7 | W57: 11 | X57: 71.95559 | Y57: =#REF!-X57 ->  | Z57: 19.95737 | AA57: =#REF!-Z57 ->  | AB57: 40.2327 | AC57: =#REF!-AB57 ->  | AD57: 33.44395386 | AE57: -1.8131826
A58: Retten i Holbæk | H58: 0.2013305659 | I58: =#REF!-H58 ->  | J58: 129 | K58: -8 | L58: 492.7288136 | M58: -69.53833737 | N58: 79.91707956 | O58: -18.53683265 | P58: 45.90163934 | Q58: 20.76502732 | R58: 0 | S58: 66.66666667 | T58: 10.0927266 | U58: -2.792726598 | V58: 3.7 | W58: 10.4 | X58: 52.84805 | Y58: =#REF!-X58 ->  | Z58: 12.96697 | AA58: =#REF!-Z58 ->  | AB58: 31.22812 | AC58: =#REF!-AB58 ->  | AD58: 24.06054675 | AE58: -0.97442037
A59: Retten i Roskilde | H59: 0.1985138754 | I59: =#REF!-H59 ->  | J59: 161 | K59: -9 | L59: 580.0681818 | M59: 51.66937474 | N59: 78.76805332 | O59: -16.62570169 | P59: 57.69230769 | Q59: -19.23076923 | R59: 0 | T59: 8.041632025 | U59: -0.04163202497 | V59: 8.1 | W59: 11.8 | X59: 81.93291 | Y59: =#REF!-X59 ->  | Z59: 20.991 | AA59: =#REF!-Z59 ->  | AB59: 50.15184 | AC59: =#REF!-AB59 ->  | AD59: 40.35202857 | AE59: -1.77455174
A60: Retten i Hillerød | H60: 0.1966681251 | I60: =#REF!-H60 ->  | J60: 94 | K60: =J30-J60 -> -1 | L60: 535.2297297 | M60: -77.76070318 | N60: 69.77698997 | O60: -20.28169867 | P60: 67.56756757 | Q60: -11.31756757 | R60: 0 | S60: 50 | T60: 10.53646297 | U60: -1.33646297 | V60: 15.7 | W60: 4.4 | X60: 59.93847 | Y60: =#REF!-X60 ->  | Z60: 15.51429 | AA60: =#REF!-Z60 ->  | AB60: 31.81079 | AC60: =#REF!-AB60 ->  | AD60: 28.1485882 | AE60: -1.55328481
A61: Retten i Helsingør | H61: 0.1747076542 | I61: =#REF!-H61 ->  | J61: 91 | K61: 15 | L61: 625.1616766 | M61: -178.3883433 | N61: 80.56226998 | O61: -24.86066188 | P61: 65.71428571 | Q61: -11.86813187 | R61: 33.33333333 | T61: 8.100239201 | U61: 4.999760799 | V61: 11 | W61: 6.9 | X61: 59.49472 | Y61: =#REF!-X61 ->  | Z61: 16.67005 | AA61: =#REF!-Z61 ->  | AB61: 30.65085 | AC61: =#REF!-AB61 ->  | AD61: 27.2421141 | AE61: -2.07074528
A62: Retten i Lyngby | H62: 0.215369746 | I62: =#REF!-H62 ->  | J62: 97 | K62: 6 | L62: 681.4340426 | M62: -206.2082361 | N62: 48.64405845 | O62: -9.064360324 | P62: 92 | Q62: -19.27272727 | R62: 0 | S62: 100 | T62: 13.96319244 | U62: -4.263192438 | V62: 11.4 | W62: 3.9 | X62: 64.72881 | Y62: =#REF!-X62 ->  | Z62: 18.96953 | AA62: =#REF!-Z62 ->  | AB62: 37.24601 | AC62: =#REF!-AB62 ->  | AD62: 32.28066977 | AE62: -1.13857444
A63: Retten i Glostrup | H63: 0.1969059645 | I63: =#REF!-H63 ->  | J63: 204 | K63: -58 | L63: 771.7123746 | M63: -156.8713341 | N63: 86.84454431 | O63: -11.14965342 | P63: 31.86813187 | Q63: 11.88186813 | R63: 0 | S63: 0 | T63: 10.93379043 | U63: 0.8662095749 | V63: 11.7 | W63: 8.9 | X63: 130.88573 | Y63: =#REF!-X63 ->  | Z63: 35.62068 | AA63: =#REF!-Z63 ->  | AB63: 77.10199 | AC63: =#REF!-AB63 ->  | AD63: 61.81072972 | AE63: -5.55186892
A64: Retten på Frederiksberg | H64: 0.174762062 | I64: =#REF!-H64 ->  | J64: 165 | K64: 15 | L64: 581.0327869 | M64: -29.7304613 | N64: 111.6069617 | O64: -25.44746547 | P64: 13.79310345 | Q64: -5.097451274 | R64: 0 | S64: 0 | T64: 13.6 | U64: -1.6 | V64: 6.9 | W64: 11.4 | X64: 85.6221 | Y64: =#REF!-X64 ->  | Z64: 23.5809 | AA64: =#REF!-Z64 ->  | AB64: 50.499 | AC64: =#REF!-AB64 ->  | AD64: 41.59169201 | AE64: -1.18278784
A65: Københavns Byret | H65: 0.2193251818 | I65: =#REF!-H65 ->  | J65: 149 | K65: -53 | L65: 545 | M65: -32.2007722 | N65: 119.5509634 | O65: -41.42760866 | P65: 31.50684932 | Q65: 38.49315068 | R65: 12.5 | T65: 9.68431915 | U65: -1.58431915 | V65: 7 | W65: 2.6 | X65: 193.76867 | Y65: =#REF!-X65 ->  | Z65: 57.94189 | AA65: =#REF!-Z65 ->  | AB65: 116.4215 | AC65: =#REF!-AB65 ->  | AD65: 102.5840725 | AE65: 0.40830193
A66: Retten på Bornholm | H66: 0.3437150824 | I66: =#REF!-H66 ->  | J66: 37 | K66: 9 | L66: 359.8181818 | M66: -68.46524064 | N66: 39.08944028 | O66: -11.51479662 | P66: 100 | Q66: -5.263157895 | R66: 999 | S66: -899 | T66: 6.887992143 | U66: 0.3120078568 | V66: 6.4 | W66: 0 | X66: 15.32718 | Y66: =#REF!-X66 ->  | Z66: 3.68583 | AA66: =#REF!-Z66 ->  | AB66: 8.36564 | AC66: =#REF!-AB66 ->  | AD66: 7.34 | AE66: -0.03
B67: 0 | C67: 0 | D67: 0 | E67: 0 | F67: 0 | G67: 0 | H67: 0 | I67: 0 | J67: 0 | K67: 0 | L67: 0 | M67: 0 | N67: 0 | O67: 0 | P67: 0 | Q67: 0 | R67: 0 | S67: 0 | T67: 0 | U67: 0 | V67: 0 | W67: 0 | X67: 0 | Y67: 0 | Z67: 0 | AA67: 0 | AB67: 0 | AC67: 0 | AD67: 0 | AE67: 0
